Workbook

Sheet Main
B10: 2018-07-05
B12: Sheet No. | C12: Template Name | D12: Summary
B13: 1 | C13: Future Intra | D13: For Intraday trading in F&O segment
B14: 2 | C14: Cash Intra | D14: For Intraday trading in cash market segment
B15: 3 | C15: Mid-cap Intra | D15: For Intraday trading in Mid-cap stocks
B16: 4 | C16: Bulk Deals | D16: Reveals Bulk Deals carried on NSE & BSE
B17: 5 | C17: Call Tracker

Sheet Future Intra
M5: Back to Main Page
A6: FOR INTRA DAY TRADING | L6: =Main!B10 -> 2018-07-05
A9: Sr.no | B9: Sector | C9: Scrip | D9: CLOSE RATE | E9: Pivot Point | F9: Supports | I9: Resistances
B10: Sector | D10: Point | E10: Point | F10: S1 | G10: S2 | H10: S3 | I10: R1 | J10: R2 | K10: R3 | L10: HIGH | M10: LOW | N10: OI | O10: % Change in OI
A11: 1 | B11: Index | C11: BANKNIFTY | D11: 26437.50 | E11: 26341.83 | F11: 26216.67 | G11: 25995.83 | H11: 25870.67 | I11: 26562.67 | J11: 26687.83 | K11: 26908.67 | L11: 26467 | M11: 26121 | N11: 2286640 | O11: 5.73%
A12: 2 | B12: Index | C12: NIFTY | D12: 10771.35 | E12: 10739.75 | F12: 10702.60 | G12: 10633.85 | H12: 10596.70 | I12: 10808.50 | J12: 10845.65 | K12: 10914.40 | L12: 10776.9 | M12: 10671 | N12: 21829650 | O12: 4.46%
A13: 3 | B13: Index | C13: NIFTYCPSE | D13: 2439.95 | E13: 813.32 | F13: 1626.63 | G13: 813.32 | H13: 1626.63 | I13: 1626.63 | J13: 813.32 | K13: 1626.63 | L13: 0 | M13: 0 | N13: 0 | O13: 0.00%
A14: 4 | B14: Index | C14: NIFTYINFRA | D14: 3500.75 | E14: 1166.92 | F14: 2333.83 | G14: 1166.92 | H14: 2333.83 | I14: 2333.83 | J14: 1166.92 | K14: 2333.83 | L14: 0 | M14: 0 | N14: 0 | O14: 0.00%
A15: 5 | B15: Index | C15: NIFTYIT | D15: 14129.00 | E15: 14139.33 | F15: 14087.67 | G15: 14046.33 | H15: 13994.67 | I15: 14180.67 | J15: 14232.33 | K15: 14273.67 | L15: 14191 | M15: 14098 | N15: 40700 | O15: -2.40%
A16: 6 | B16: Index | C16: NIFTYMID50 | D16: 4850.00 | E16: 4836.67 | F16: 4823.33 | G16: 4796.67 | H16: 4783.33 | I16: 4863.33 | J16: 4876.67 | K16: 4903.33 | L16: 4850 | M16: 4810 | N16: 591690 | O16: 0.00%
A17: 7 | B17: Index | C17: NIFTYPSE | D17: 3893.55 | E17: 1297.85 | F17: 2595.70 | G17: 1297.85 | H17: 2595.70 | I17: 2595.70 | J17: 1297.85 | K17: 2595.70 | L17: 0 | M17: 0 | N17: 0 | O17: 0.00%
A18: 8 | B18: Cement | C18: ACC | D18: 1350.45 | E18: 1344.82 | F18: 1334.33 | G18: 1318.22 | H18: 1307.73 | I18: 1360.93 | J18: 1371.42 | K18: 1387.53 | L18: 1355.3 | M18: 1328.7 | N18: 1942800 | O18: -1.94%
A19: 9 | B19: Others | C19: ADANIENT | D19: 106.95 | E19: 106.12 | F19: 103.98 | G19: 101.02 | H19: 98.88 | I19: 109.08 | J19: 111.22 | K19: 114.18 | L19: 108.25 | M19: 103.15 | N19: 15500000 | O19: -1.27%
A20: 10 | B20: Others | C20: ADANIPORTS | D20: 361.80 | E20: 361.33 | F20: 357.72 | G20: 353.63 | H20: 350.02 | I20: 365.42 | J20: 369.03 | K20: 373.12 | L20: 364.95 | M20: 357.25 | N20: 8375000 | O20: 3.20%
A21: 11 | B21: Power | C21: ADANIPOWER | D21: 16.15 | E21: 16.00 | F21: 15.75 | G21: 15.35 | H21: 15.10 | I21: 16.40 | J21: 16.65 | K21: 17.05 | L21: 16.25 | M21: 15.6 | N21: 97180000 | O21: -0.23%
A22: 12 | B22: Pharma | C22: AJANTPHARM | D22: 1032.35 | E22: 1036.12 | F22: 1021.23 | G22: 1010.12 | H22: 995.23 | I22: 1047.23 | J22: 1062.12 | K22: 1073.23 | L22: 1051 | M22: 1025 | N22: 903000 | O22: -1.85%
A23: 13 | B23: Banking | C23: ALBK | D23: 41.00 | E23: 41.00 | F23: 40.55 | G23: 40.10 | H23: 39.65 | I23: 41.45 | J23: 41.90 | K23: 42.35 | L23: 41.45 | M23: 40.55 | N23: 12309000 | O23: 3.04%
A24: 14 | B24: Automobile | C24: AMARAJABAT | D24: 774.25 | E24: 767.03 | F24: 757.42 | G24: 740.58 | H24: 730.97 | I24: 783.87 | J24: 793.48 | K24: 810.32 | L24: 776.65 | M24: 750.2 | N24: 1486100 | O24: -0.23%
A25: 15 | B25: Cement | C25: AMBUJACEM | D25: 202.20 | E25: 202.52 | F25: 200.03 | G25: 197.87 | H25: 195.38 | I25: 204.68 | J25: 207.17 | K25: 209.33 | L25: 205 | M25: 200.35 | N25: 13685000 | O25: -0.91%
A26: 16 | B26: Banking | C26: ANDHRABANK | D26: 32.10 | E26: 32.03 | F26: 31.67 | G26: 31.23 | H26: 30.87 | I26: 32.47 | J26: 32.83 | K26: 33.27 | L26: 32.4 | M26: 31.6 | N26: 22750000 | O26: 1.16%
A27: 17 | B27: Others | C27: APOLLOHOSP | D27: 1082.90 | E27: 1072.53 | F27: 1060.22 | G27: 1037.53 | H27: 1025.22 | I27: 1095.22 | J27: 1107.53 | K27: 1130.22 | L27: 1084.85 | M27: 1049.85 | N27: 833000 | O27: 8.75%
A28: 18 | B28: Automobile | C28: APOLLOTYRE | D28: 251.50 | E28: 249.37 | F28: 246.48 | G28: 241.47 | H28: 238.58 | I28: 254.38 | J28: 257.27 | K28: 262.28 | L28: 252.25 | M28: 244.35 | N28: 10029000 | O28: 1.89%
A29: 19 | B29: Textile | C29: ARVIND | D29: 396.90 | E29: 394.42 | F29: 391.08 | G29: 385.27 | H29: 381.93 | I29: 400.23 | J29: 403.57 | K29: 409.38 | L29: 397.75 | M29: 388.6 | N29: 4756000 | O29: -0.63%
A30: 20 | B30: Automobile | C30: ASHOKLEY | D30: 126.05 | E30: 126.03 | F30: 124.37 | G30: 122.68 | H30: 121.02 | I30: 127.72 | J30: 129.38 | K30: 131.07 | L30: 127.7 | M30: 124.35 | N30: 81360000 | O30: 0.40%
A31: 21 | B31: FMCG | C31: ASIANPAINT | D31: 1294.75 | E31: 1294.92 | F31: 1286.83 | G31: 1278.92 | H31: 1270.83 | I31: 1302.83 | J31: 1310.92 | K31: 1318.83 | L31: 1303 | M31: 1287 | N31: 5264400 | O31: 0.46%
A32: 22 | B32: Pharma | C32: AUROPHARMA | D32: 627.90 | E32: 628.75 | F32: 622.20 | G32: 616.50 | H32: 609.95 | I32: 634.45 | J32: 641.00 | K32: 646.70 | L32: 635.3 | M32: 623.05 | N32: 20448000 | O32: -1.17%
A33: 23 | B33: Banking | C33: AXISBANK | D33: 517.05 | E33: 514.97 | F33: 511.63 | G33: 506.22 | H33: 502.88 | I33: 520.38 | J33: 523.72 | K33: 529.13 | L33: 518.3 | M33: 509.55 | N33: 40028400 | O33: 0.83%
A34: 24 | B34: Automobile | C34: BAJAJ-AUTO | D34: 2926.35 | E34: 2889.18 | F34: 2842.37 | G34: 2758.38 | H34: 2711.57 | I34: 2973.17 | J34: 3019.98 | K34: 3103.97 | L34: 2936 | M34: 2805.2 | N34: 3124500 | O34: 4.81%
A35: 25 | B35: Others | C35: BAJAJFINSV | D35: 6048.15 | E35: 6004.32 | F35: 5940.83 | G35: 5833.52 | H35: 5770.03 | I35: 6111.63 | J35: 6175.12 | K35: 6282.43 | L35: 6067.8 | M35: 5897 | N35: 739625 | O35: -2.25%
A36: 26 | B36: Finance | C36: BAJFINANCE | D36: 2339.85 | E36: 2333.90 | F36: 2318.00 | G36: 2296.15 | H36: 2280.25 | I36: 2355.75 | J36: 2371.65 | K36: 2393.50 | L36: 2349.8 | M36: 2312.05 | N36: 5191500 | O36: -0.13%
A37: 27 | B37: Others | C37: BALKRISIND | D37: 1140.85 | E37: 1123.05 | F37: 1097.00 | G37: 1053.15 | H37: 1027.10 | I37: 1166.90 | J37: 1192.95 | K37: 1236.80 | L37: 1149.1 | M37: 1079.2 | N37: 1348000 | O37: -1.92%
A38: 28 | B38: Others | C38: BALRAMCHIN | D38: 63.00 | E38: 62.98 | F38: 62.32 | G38: 61.63 | H38: 60.97 | I38: 63.67 | J38: 64.33 | K38: 65.02 | L38: 63.65 | M38: 62.3 | N38: 14140000 | O38: -2.42%
A39: 29 | B39: Banking | C39: BANKBARODA | D39: 113.65 | E39: 113.55 | F39: 112.75 | G39: 111.85 | H39: 111.05 | I39: 114.45 | J39: 115.25 | K39: 116.15 | L39: 114.35 | M39: 112.65 | N39: 75984000 | O39: -0.41%
A40: 30 | B40: Banking | C40: BANKINDIA | D40: 86.25 | E40: 86.38 | F40: 85.02 | G40: 83.78 | H40: 82.42 | I40: 87.62 | J40: 88.98 | K40: 90.22 | L40: 87.75 | M40: 85.15 | N40: 27720000 | O40: 1.61%
A41: 31 | B41: FMCG | C41: BATAINDIA | D41: 830.00 | E41: 834.60 | F41: 822.90 | G41: 815.80 | H41: 804.10 | I41: 841.70 | J41: 853.40 | K41: 860.50 | L41: 846.3 | M41: 827.5 | N41: 3116300 | O41: 0.14%
A42: 32 | B42: Capital_Goods | C42: BEL | D42: 105.00 | E42: 105.73 | F42: 103.82 | G42: 102.63 | H42: 100.72 | I42: 106.92 | J42: 108.83 | K42: 110.02 | L42: 107.65 | M42: 104.55 | N42: 29388150 | O42: 0.54%
A43: 33 | B43: Infrastructure | C43: BEML | D43: 830.40 | E43: 827.27 | F43: 817.13 | G43: 803.87 | H43: 793.73 | I43: 840.53 | J43: 850.67 | K43: 863.93 | L43: 837.4 | M43: 814 | N43: 1786500 | O43: 0.99%
A44: 34 | B44: Others | C44: BERGEPAINT | D44: 285.75 | E44: 285.30 | F44: 283.10 | G44: 280.45 | H44: 278.25 | I44: 287.95 | J44: 290.15 | K44: 292.80 | L44: 287.5 | M44: 282.65 | N44: 1953600 | O44: 2.07%
A45: 35 | B45: Finance | C45: BHARATFIN | D45: 1195.95 | E45: 1190.08 | F45: 1181.02 | G45: 1166.08 | H45: 1157.02 | I45: 1205.02 | J45: 1214.08 | K45: 1229.02 | L45: 1199.15 | M45: 1175.15 | N45: 5410500 | O45: -1.90%
A46: 36 | B46: Automobile | C46: BHARATFORG | D46: 637.95 | E46: 631.70 | F46: 623.50 | G46: 609.05 | H46: 600.85 | I46: 646.15 | J46: 654.35 | K46: 668.80 | L46: 639.9 | M46: 617.25 | N46: 8988000 | O46: 1.27%
A47: 37 | B47: Telecom | C47: BHARTIARTL | D47: 366.10 | E47: 366.32 | F47: 361.43 | G47: 356.77 | H47: 351.88 | I47: 370.98 | J47: 375.87 | K47: 380.53 | L47: 371.2 | M47: 361.65 | N47: 46625900 | O47: 0.55%
A48: 38 | B48: Capital_Goods | C48: BHEL | D48: 69.60 | E48: 69.67 | F48: 68.63 | G48: 67.67 | H48: 66.63 | I48: 70.63 | J48: 71.67 | K48: 72.63 | L48: 70.7 | M48: 68.7 | N48: 50415000 | O48: 3.11%
A49: 39 | B49: Pharma | C49: BIOCON | D49: 631.15 | E49: 630.90 | F49: 624.50 | G49: 617.85 | H49: 611.45 | I49: 637.55 | J49: 643.95 | K49: 650.60 | L49: 637.3 | M49: 624.25 | N49: 9639000 | O49: 2.00%
A50: 40 | B50: Automobile | C50: BOSCHLTD | D50: 17600.00 | E50: 17581.75 | F50: 17468.25 | G50: 17336.50 | H50: 17223.00 | I50: 17713.50 | J50: 17827.00 | K50: 17958.75 | L50: 17695.25 | M50: 17450 | N50: 134670 | O50: -0.82%
A51: 41 | B51: Oil_Gas | C51: BPCL | D51: 368.35 | E51: 368.62 | F51: 363.48 | G51: 358.62 | H51: 353.48 | I51: 373.48 | J51: 378.62 | K51: 383.48 | L51: 373.75 | M51: 363.75 | N51: 10670400 | O51: -3.61%
A52: 42 | B52: FMCG | C52: BRITANNIA | D52: 6331.95 | E52: 6300.68 | F52: 6256.37 | G52: 6180.78 | H52: 6136.47 | I52: 6376.27 | J52: 6420.58 | K52: 6496.17 | L52: 6345 | M52: 6225.1 | N52: 749400 | O52: -0.64%
A53: 43 | B53: Pharma | C53: CADILAHC | D53: 396.10 | E53: 395.00 | F53: 391.30 | G53: 386.50 | H53: 382.80 | I53: 399.80 | J53: 403.50 | K53: 408.30 | L53: 398.7 | M53: 390.2 | N53: 7828800 | O53: -0.87%
A54: 44 | B54: Banking | C54: CANBK | D54: 245.90 | E54: 245.40 | F54: 243.30 | G54: 240.70 | H54: 238.60 | I54: 248.00 | J54: 250.10 | K54: 252.70 | L54: 247.5 | M54: 242.8 | N54: 13258000 | O54: -1.37%
A55: 45 | B55: Others | C55: CANFINHOME | D55: 337.10 | E55: 339.18 | F55: 333.57 | G55: 330.03 | H55: 324.42 | I55: 342.72 | J55: 348.33 | K55: 351.87 | L55: 344.8 | M55: 335.65 | N55: 3808750 | O55: 1.74%
A56: 46 | B56: Finance | C56: CAPF | D56: 522.45 | E56: 523.02 | F56: 517.28 | G56: 512.12 | H56: 506.38 | I56: 528.18 | J56: 533.92 | K56: 539.08 | L56: 528.75 | M56: 517.85 | N56: 8043200 | O56: 0.32%
A57: 47 | B57: Oil_Gas | C57: CASTROLIND | D57: 161.90 | E57: 159.98 | F57: 157.02 | G57: 152.13 | H57: 149.17 | I57: 164.87 | J57: 167.83 | K57: 172.72 | L57: 162.95 | M57: 155.1 | N57: 10528000 | O57: 4.68%
A58: 48 | B58: Automobile | C58: CEATLTD | D58: 1265.60 | E58: 1255.43 | F58: 1241.87 | G58: 1218.13 | H58: 1204.57 | I58: 1279.17 | J58: 1292.73 | K58: 1316.47 | L58: 1269 | M58: 1231.7 | N58: 1661100 | O58: 1.43%
A59: 49 | B59: Textile | C59: CENTURYTEX | D59: 867.65 | E59: 868.50 | F59: 857.70 | G59: 847.75 | H59: 836.95 | I59: 878.45 | J59: 889.25 | K59: 899.20 | L59: 879.3 | M59: 858.55 | N59: 5915250 | O59: -1.61%
A60: 50 | B60: Power | C60: CESC | D60: 881.60 | E60: 886.35 | F60: 871.75 | G60: 861.90 | H60: 847.30 | I60: 896.20 | J60: 910.80 | K60: 920.65 | L60: 900.95 | M60: 876.5 | N60: 6114350 | O60: 0.12%
A61: 51 | B61: Power | C61: CGPOWER | D61: 58.25 | E61: 56.83 | F61: 54.87 | G61: 51.48 | H61: 49.52 | I61: 60.22 | J61: 62.18 | K61: 65.57 | L61: 58.8 | M61: 53.45 | N61: 35316000 | O61: 2.58%
A62: 52 | B62: Others | C62: CHENNPETRO | D62: 291.20 | E62: 289.47 | F62: 285.93 | G62: 280.67 | H62: 277.13 | I62: 294.73 | J62: 298.27 | K62: 303.53 | L62: 293 | M62: 284.2 | N62: 2082000 | O62: 0.87%
A63: 53 | B63: Others | C63: CHOLAFIN | D63: 1504.25 | E63: 1501.40 | F63: 1487.85 | G63: 1471.45 | H63: 1457.90 | I63: 1517.80 | J63: 1531.35 | K63: 1547.75 | L63: 1514.95 | M63: 1485 | N63: 840500 | O63: -0.71%
A64: 54 | B64: Pharma | C64: CIPLA | D64: 629.50 | E64: 634.07 | F64: 621.58 | G64: 613.67 | H64: 601.18 | I64: 641.98 | J64: 654.47 | K64: 662.38 | L64: 646.55 | M64: 626.15 | N64: 8478000 | O64: -4.02%
A65: 55 | B65: Others | C65: COALINDIA | D65: 265.30 | E65: 264.67 | F65: 261.03 | G65: 256.77 | H65: 253.13 | I65: 268.93 | J65: 272.57 | K65: 276.83 | L65: 268.3 | M65: 260.4 | N65: 19602000 | O65: 2.76%
A66: 56 | B66: FMCG | C66: COLPAL | D66: 1171.00 | E66: 1171.98 | F66: 1157.07 | G66: 1143.13 | H66: 1128.22 | I66: 1185.92 | J66: 1200.83 | K66: 1214.77 | L66: 1186.9 | M66: 1158.05 | N66: 2198000 | O66: -0.51%
A67: 57 | B67: Others | C67: CONCOR | D67: 651.70 | E67: 652.22 | F67: 644.53 | G67: 637.37 | H67: 629.68 | I67: 659.38 | J67: 667.07 | K67: 674.23 | L67: 659.9 | M67: 645.05 | N67: 2916250 | O67: -0.30%
A68: 58 | B68: Capital_Goods | C68: CUMMINSIND | D68: 653.20 | E68: 654.27 | F68: 650.53 | G68: 647.87 | H68: 644.13 | I68: 656.93 | J68: 660.67 | K68: 663.33 | L68: 658 | M68: 651.6 | N68: 805700 | O68: -0.60%
A69: 59 | B69: FMCG | C69: DABUR | D69: 381.90 | E69: 381.85 | F69: 379.05 | G69: 376.20 | H69: 373.40 | I69: 384.70 | J69: 387.50 | K69: 390.35 | L69: 384.65 | M69: 379 | N69: 17090000 | O69: 2.86%
A70: 60 | B70: Cement | C70: DALMIABHA | D70: 2261.25 | E70: 2243.98 | F70: 2218.82 | G70: 2176.38 | H70: 2151.22 | I70: 2286.42 | J70: 2311.58 | K70: 2354.02 | L70: 2269.15 | M70: 2201.55 | N70: 759900 | O70: 0.40%
A71: 61 | B71: Banking | C71: DCBBANK | D71: 167.45 | E71: 166.83 | F71: 164.92 | G71: 162.38 | H71: 160.47 | I71: 169.37 | J71: 171.28 | K71: 173.82 | L71: 168.75 | M71: 164.3 | N71: 6853500 | O71: 0.59%
A72: 62 | B72: Finance | C72: DHFL | D72: 624.80 | E72: 626.43 | F72: 620.12 | G72: 615.43 | H72: 609.12 | I72: 631.12 | J72: 637.43 | K72: 642.12 | L72: 632.75 | M72: 621.75 | N72: 26614500 | O72: -1.04%
A73: 63 | B73: Media | C73: DISHTV | D73: 72.00 | E73: 72.20 | F73: 71.55 | G73: 71.10 | H73: 70.45 | I73: 72.65 | J73: 73.30 | K73: 73.75 | L73: 72.85 | M73: 71.75 | N73: 53216000 | O73: -1.66%
A74: 64 | B74: Pharma | C74: DIVISLAB | D74: 1102.85 | E74: 1095.23 | F74: 1084.07 | G74: 1065.28 | H74: 1054.12 | I74: 1114.02 | J74: 1125.18 | K74: 1143.97 | L74: 1106.4 | M74: 1076.45 | N74: 2660800 | O74: -3.34%
A75: 65 | B75: Realty | C75: DLF | D75: 185.90 | E75: 185.57 | F75: 183.73 | G75: 181.57 | H75: 179.73 | I75: 187.73 | J75: 189.57 | K75: 191.73 | L75: 187.4 | M75: 183.4 | N75: 33570000 | O75: -0.96%
A76: 66 | B76: Pharma | C76: DRREDDY | D76: 2303.50 | E76: 2297.05 | F76: 2266.50 | G76: 2229.50 | H76: 2198.95 | I76: 2334.05 | J76: 2364.60 | K76: 2401.60 | L76: 2327.6 | M76: 2260.05 | N76: 5036500 | O76: 1.19%
A77: 67 | B77: Automobile | C77: EICHERMOT | D77: 28368.50 | E77: 28306.48 | F77: 28132.97 | G77: 27897.43 | H77: 27723.92 | I77: 28542.02 | J77: 28715.53 | K77: 28951.07 | L77: 28480 | M77: 28070.95 | N77: 221850 | O77: 1.93%
A78: 68 | B78: Infrastructure | C78: ENGINERSIN | D78: 123.75 | E78: 123.80 | F78: 122.25 | G78: 120.75 | H78: 119.20 | I78: 125.30 | J78: 126.85 | K78: 128.35 | L78: 125.35 | M78: 122.3 | N78: 9348500 | O78: 2.30%
A79: 69 | B79: Finance | C79: EQUITAS | D79: 139.20 | E79: 137.92 | F79: 136.03 | G79: 132.87 | H79: 130.98 | I79: 141.08 | J79: 142.97 | K79: 146.13 | L79: 139.8 | M79: 134.75 | N79: 19860000 | O79: -0.06%
A80: 70 | B80: Automobile | C80: ESCORTS | D80: 883.25 | E80: 876.32 | F80: 864.98 | G80: 846.72 | H80: 835.38 | I80: 894.58 | J80: 905.92 | K80: 924.18 | L80: 887.65 | M80: 858.05 | N80: 4518800 | O80: 0.88%
A81: 71 | B81: Automobile | C81: EXIDEIND | D81: 263.25 | E81: 263.03 | F81: 260.82 | G81: 258.38 | H81: 256.17 | I81: 265.47 | J81: 267.68 | K81: 270.12 | L81: 265.25 | M81: 260.6 | N81: 9200000 | O81: -0.43%
A82: 72 | B82: Banking | C82: FEDERALBNK | D82: 83.45 | E82: 83.15 | F82: 82.55 | G82: 81.65 | H82: 81.05 | I82: 84.05 | J82: 84.65 | K82: 85.55 | L82: 83.75 | M82: 82.25 | N82: 59807000 | O82: -1.24%
A83: 73 | B83: Oil_Gas | C83: GAIL | D83: 349.50 | E83: 347.27 | F83: 343.58 | G83: 337.67 | H83: 333.98 | I83: 353.18 | J83: 356.87 | K83: 362.78 | L83: 350.95 | M83: 341.35 | N83: 13447014 | O83: 1.67%
A84: 74 | B84: Pharma | C84: GLENMARK | D84: 600.90 | E84: 600.20 | F84: 594.45 | G84: 588.00 | H84: 582.25 | I84: 606.65 | J84: 612.40 | K84: 618.85 | L84: 605.95 | M84: 593.75 | N84: 4450000 | O84: -0.02%
A85: 75 | B85: Infrastructure | C85: GMRINFRA | D85: 16.45 | E85: 16.32 | F85: 16.08 | G85: 15.72 | H85: 15.48 | I85: 16.68 | J85: 16.92 | K85: 17.28 | L85: 16.55 | M85: 15.95 | N85: 248040000 | O85: -1.64%
A86: 76 | B86: Others | C86: GODFRYPHLP | D86: 715.65 | E86: 719.73 | F86: 708.97 | G86: 702.28 | H86: 691.52 | I86: 726.42 | J86: 737.18 | K86: 743.87 | L86: 730.5 | M86: 713.05 | N86: 473900 | O86: 2.42%
A87: 77 | B87: FMCG | C87: GODREJCP | D87: 1265.10 | E87: 1262.30 | F87: 1253.30 | G87: 1241.50 | H87: 1232.50 | I87: 1274.10 | J87: 1283.10 | K87: 1294.90 | L87: 1271.3 | M87: 1250.5 | N87: 2195200 | O87: 0.96%
A88: 78 | B88: FMCG | C88: GODREJIND | D88: 615.40 | E88: 617.35 | F88: 609.65 | G88: 603.90 | H88: 596.20 | I88: 623.10 | J88: 630.80 | K88: 636.55 | L88: 625.05 | M88: 611.6 | N88: 1992000 | O88: 7.70%
A89: 79 | B89: Pharma | C89: GRANULES | D89: 84.50 | E89: 83.48 | F89: 81.42 | G89: 78.33 | H89: 76.27 | I89: 86.57 | J89: 88.63 | K89: 91.72 | L89: 85.55 | M89: 80.4 | N89: 12470000 | O89: 5.99%
A90: 80 | B90: Cement | C90: GRASIM | D90: 970.90 | E90: 976.55 | F90: 961.10 | G90: 951.30 | H90: 935.85 | I90: 986.35 | J90: 1001.80 | K90: 1011.60 | L90: 992 | M90: 966.75 | N90: 5482500 | O90: 4.15%
A91: 81 | B91: Others | C91: GSFC | D91: 106.15 | E91: 106.07 | F91: 105.18 | G91: 104.22 | H91: 103.33 | I91: 107.03 | J91: 107.92 | K91: 108.88 | L91: 106.95 | M91: 105.1 | N91: 15525000 | O91: 0.12%
A92: 82 | B92: Others | C92: HAVELLS | D92: 547.85 | E92: 545.53 | F92: 539.07 | G92: 530.28 | H92: 523.82 | I92: 554.32 | J92: 560.78 | K92: 569.57 | L92: 552 | M92: 536.75 | N92: 4194000 | O92: -1.29%
A93: 83 | B93: Others | C93: HCC | D93: 12.30 | E93: 12.28 | F93: 12.17 | G93: 12.03 | H93: 11.92 | I93: 12.42 | J93: 12.53 | K93: 12.67 | L93: 12.4 | M93: 12.15 | N93: 41976000 | O93: 0.43%
A94: 84 | B94: Technology | C94: HCLTECH | D94: 930.35 | E94: 933.82 | F94: 924.68 | G94: 919.02 | H94: 909.88 | I94: 939.48 | J94: 948.62 | K94: 954.28 | L94: 942.95 | M94: 928.15 | N94: 10591000 | O94: 1.08%
A95: 85 | B95: Finance | C95: HDFC | D95: 1911.10 | E95: 1898.97 | F95: 1883.93 | G95: 1856.77 | H95: 1841.73 | I95: 1926.13 | J95: 1941.17 | K95: 1968.33 | L95: 1914 | M95: 1871.8 | N95: 23831500 | O95: 0.26%
A96: 86 | B96: Banking | C96: HDFCBANK | D96: 2101.45 | E96: 2093.13 | F96: 2080.12 | G96: 2058.78 | H96: 2045.77 | I96: 2114.47 | J96: 2127.48 | K96: 2148.82 | L96: 2106.15 | M96: 2071.8 | N96: 19581500 | O96: 1.48%
A97: 88 | B97: Automobile | C97: HEROMOTOCO | D97: 3440.50 | E97: 3428.27 | F97: 3398.88 | G97: 3357.27 | H97: 3327.88 | I97: 3469.88 | J97: 3499.27 | K97: 3540.88 | L97: 3457.65 | M97: 3386.65 | N97: 1724600 | O97: 5.24%
A98: 89 | B98: Technology | C98: HEXAWARE | D98: 460.35 | E98: 462.08 | F98: 456.27 | G98: 452.18 | H98: 446.37 | I98: 466.17 | J98: 471.98 | K98: 476.07 | L98: 467.9 | M98: 458 | N98: 4582500 | O98: 0.56%
A99: 90 | B99: Metals | C99: HINDALCO | D99: 224.85 | E99: 223.87 | F99: 221.58 | G99: 218.32 | H99: 216.03 | I99: 227.13 | J99: 229.42 | K99: 232.68 | L99: 226.15 | M99: 220.6 | N99: 35675500 | O99: 0.69%
A100: 91 | B100: Oil_Gas | C100: HINDPETRO | D100: 253.65 | E100: 255.07 | F100: 249.98 | G100: 246.32 | H100: 241.23 | I100: 258.73 | J100: 263.82 | K100: 267.48 | L100: 260.15 | M100: 251.4 | N100: 29534400 | O100: 4.24%
A101: 92 | B101: FMCG | C101: HINDUNILVR | D101: 1679.10 | E101: 1669.02 | F101: 1654.73 | G101: 1630.37 | H101: 1616.08 | I101: 1693.38 | J101: 1707.67 | K101: 1732.03 | L101: 1683.3 | M101: 1644.65 | N101: 9223800 | O101: 1.43%
A102: 93 | B102: Metals | C102: HINDZINC | D102: 278.40 | E102: 277.53 | F102: 274.97 | G102: 271.53 | H102: 268.97 | I102: 280.97 | J102: 283.53 | K102: 286.97 | L102: 280.1 | M102: 274.1 | N102: 11084800 | O102: 1.88%
A103: 94 | B103: Finance | C103: IBULHSGFIN | D103: 1142.75 | E103: 1146.10 | F103: 1129.45 | G103: 1116.15 | H103: 1099.50 | I103: 1159.40 | J103: 1176.05 | K103: 1189.35 | L103: 1162.75 | M103: 1132.8 | N103: 17002500 | O103: -0.81%
A104: 95 | B104: Banking | C104: ICICIBANK | D104: 273.10 | E104: 272.93 | F104: 270.92 | G104: 268.73 | H104: 266.72 | I104: 275.12 | J104: 277.13 | K104: 279.32 | L104: 274.95 | M104: 270.75 | N104: 116083000 | O104: 0.01%
A105: 96 | B105: Others | C105: ICICIPRULI | D105: 372.25 | E105: 373.48 | F105: 369.17 | G105: 366.08 | H105: 361.77 | I105: 376.57 | J105: 380.88 | K105: 383.97 | L105: 377.8 | M105: 370.4 | N105: 8213400 | O105: 0.22%
A106: 97 | B106: Banking | C106: IDBI | D106: 51.95 | E106: 52.28 | F106: 51.07 | G106: 50.18 | H106: 48.97 | I106: 53.17 | J106: 54.38 | K106: 55.27 | L106: 53.5 | M106: 51.4 | N106: 67560000 | O106: -0.46%
A107: 98 | B107: Telecom | C107: IDEA | D107: 55.50 | E107: 56.20 | F107: 54.55 | G107: 53.60 | H107: 51.95 | I107: 57.15 | J107: 58.80 | K107: 59.75 | L107: 57.85 | M107: 55.25 | N107: 131810000 | O107: 1.77%
A108: 99 | B108: Finance | C108: IDFC | D108: 45.15 | E108: 45.37 | F108: 44.73 | G108: 44.32 | H108: 43.68 | I108: 45.78 | J108: 46.42 | K108: 46.83 | L108: 46 | M108: 44.95 | N108: 150453600 | O108: -0.65%
A109: 100 | B109: Banking | C109: IDFCBANK | D109: 38.90 | E109: 38.90 | F109: 38.45 | G109: 38.00 | H109: 37.55 | I109: 39.35 | J109: 39.80 | K109: 40.25 | L109: 39.35 | M109: 38.45 | N109: 192984000 | O109: -1.13%
A110: 101 | B110: Finance | C110: IFCI | D110: 15.35 | E110: 15.28 | F110: 15.17 | G110: 14.98 | H110: 14.87 | I110: 15.47 | J110: 15.58 | K110: 15.77 | L110: 15.4 | M110: 15.1 | N110: 64450000 | O110: 1.82%
A111: 102 | B111: Oil_Gas | C111: IGL | D111: 258.45 | E111: 258.43 | F111: 256.17 | G111: 253.88 | H111: 251.62 | I111: 260.72 | J111: 262.98 | K111: 265.27 | L111: 260.7 | M111: 256.15 | N111: 5761250 | O111: -1.04%
A112: 103 | B112: Cement | C112: INDIACEM | D112: 105.40 | E112: 105.10 | F112: 103.75 | G112: 102.10 | H112: 100.75 | I112: 106.75 | J112: 108.10 | K112: 109.75 | L112: 106.45 | M112: 103.45 | N112: 22116500 | O112: -0.16%
A113: 104 | B113: Banking | C113: INDIANB | D113: 337.55 | E113: 336.68 | F113: 333.87 | G113: 330.18 | H113: 327.37 | I113: 340.37 | J113: 343.18 | K113: 346.87 | L113: 339.5 | M113: 333 | N113: 2834000 | O113: 0.28%
A114: 105 | B114: Others | C114: INDIGO | D114: 1077.45 | E114: 1072.38 | F114: 1064.12 | G114: 1050.78 | H114: 1042.52 | I114: 1085.72 | J114: 1093.98 | K114: 1107.32 | L114: 1080.65 | M114: 1059.05 | N114: 4925400 | O114: -0.32%
A115: 106 | B115: Banking | C115: INDUSINDBK | D115: 1968.15 | E115: 1959.93 | F115: 1941.92 | G115: 1915.68 | H115: 1897.67 | I115: 1986.17 | J115: 2004.18 | K115: 2030.42 | L115: 1977.95 | M115: 1933.7 | N115: 6219300 | O115: 0.21%
A116: 107 | B116: Technology | C116: INFIBEAM | D116: 147.45 | E116: 147.63 | F116: 144.57 | G116: 141.68 | H116: 138.62 | I116: 150.52 | J116: 153.58 | K116: 156.47 | L116: 150.7 | M116: 144.75 | N116: 46956000 | O116: -0.19%
A117: 108 | B117: Telecom | C117: INFRATEL | D117: 286.15 | E117: 283.63 | F117: 278.92 | G117: 271.68 | H117: 266.97 | I117: 290.87 | J117: 295.58 | K117: 302.82 | L117: 288.35 | M117: 276.4 | N117: 6324000 | O117: 5.06%
A118: 109 | B118: Technology | C118: INFY | D118: 1344.25 | E118: 1345.13 | F118: 1337.37 | G118: 1330.48 | H118: 1322.72 | I118: 1352.02 | J118: 1359.78 | K118: 1366.67 | L118: 1352.9 | M118: 1338.25 | N118: 28497000 | O118: -0.05%
A119: 110 | B119: Oil_Gas | C119: IOC | D119: 155.60 | E119: 155.52 | F119: 154.28 | G119: 152.97 | H119: 151.73 | I119: 156.83 | J119: 158.07 | K119: 159.38 | L119: 156.75 | M119: 154.2 | N119: 30201000 | O119: -4.16%
A120: 111 | B120: Infrastructure | C120: IRB | D120: 210.60 | E120: 208.57 | F120: 205.53 | G120: 200.47 | H120: 197.43 | I120: 213.63 | J120: 216.67 | K120: 221.73 | L120: 211.6 | M120: 203.5 | N120: 17787500 | O120: 0.75%
A121: 112 | B121: FMCG | C121: ITC | D121: 265.85 | E121: 265.57 | F121: 263.88 | G121: 261.92 | H121: 260.23 | I121: 267.53 | J121: 269.22 | K121: 271.18 | L121: 267.25 | M121: 263.6 | N121: 74042400 | O121: 0.75%
A122: 113 | B122: Others | C122: JETAIRWAYS | D122: 342.20 | E122: 342.55 | F122: 336.70 | G122: 331.20 | H122: 325.35 | I122: 348.05 | J122: 353.90 | K122: 359.40 | L122: 348.4 | M122: 337.05 | N122: 7016400 | O122: -0.60%
A123: 114 | B123: Metals | C123: JINDALSTEL | D123: 217.10 | E123: 214.27 | F123: 209.73 | G123: 202.37 | H123: 197.83 | I123: 221.63 | J123: 226.17 | K123: 233.53 | L123: 218.8 | M123: 206.9 | N123: 33401250 | O123: 0.40%
A124: 115 | B124: Others | C124: JISLJALEQS | D124: 78.35 | E124: 78.12 | F124: 77.48 | G124: 76.62 | H124: 75.98 | I124: 78.98 | J124: 79.62 | K124: 80.48 | L124: 78.75 | M124: 77.25 | N124: 43947000 | O124: 0.10%
A125: 116 | B125: Realty | C125: JPASSOCIAT | D125: 16.05 | E125: 15.95 | F125: 15.30 | G125: 14.55 | H125: 13.90 | I125: 16.70 | J125: 17.35 | K125: 18.10 | L125: 16.6 | M125: 15.2 | N125: 194922000 | O125: 0.97%
A126: 117 | B126: Metals | C126: JSWSTEEL | D126: 310.90 | E126: 310.35 | F126: 307.45 | G126: 304.00 | H126: 301.10 | I126: 313.80 | J126: 316.70 | K126: 320.15 | L126: 313.25 | M126: 306.9 | N126: 65430000 | O126: 0.38%
A127: 118 | B127: Others | C127: JUBLFOOD | D127: 1433.40 | E127: 1434.32 | F127: 1420.63 | G127: 1407.87 | H127: 1394.18 | I127: 1447.08 | J127: 1460.77 | K127: 1473.53 | L127: 1448 | M127: 1421.55 | N127: 3483000 | O127: -2.19%
A128: 119 | B128: Others | C128: JUSTDIAL | D128: 579.50 | E128: 574.98 | F128: 562.02 | G128: 544.53 | H128: 531.57 | I128: 592.47 | J128: 605.43 | K128: 622.92 | L128: 587.95 | M128: 557.5 | N128: 4543000 | O128: 4.04%
A129: 120 | B129: Others | C129: KAJARIACER | D129: 465.85 | E129: 468.22 | F129: 461.53 | G129: 457.22 | H129: 450.53 | I129: 472.53 | J129: 479.22 | K129: 483.53 | L129: 474.9 | M129: 463.9 | N129: 1818000 | O129: 1.79%
A130: 121 | B130: Banking | C130: KOTAKBANK | D130: 1361.00 | E130: 1356.53 | F130: 1347.52 | G130: 1334.03 | H130: 1325.02 | I130: 1370.02 | J130: 1379.03 | K130: 1392.52 | L130: 1365.55 | M130: 1343.05 | N130: 11485600 | O130: 2.85%
A131: 122 | B131: Technology | C131: KPIT | D131: 276.55 | E131: 278.47 | F131: 272.38 | G131: 268.22 | H131: 262.13 | I131: 282.63 | J131: 288.72 | K131: 292.88 | L131: 284.55 | M131: 274.3 | N131: 5134500 | O131: 5.45%
A132: 123 | B132: Others | C132: KSCL | D132: 555.45 | E132: 552.93 | F132: 547.57 | G132: 539.68 | H132: 534.32 | I132: 560.82 | J132: 566.18 | K132: 574.07 | L132: 558.3 | M132: 545.05 | N132: 2034000 | O132: 1.04%
A133: 124 | B133: Banking | C133: KTKBANK | D133: 105.65 | E133: 105.52 | F133: 104.88 | G133: 104.12 | H133: 103.48 | I133: 106.28 | J133: 106.92 | K133: 107.68 | L133: 106.15 | M133: 104.75 | N133: 19332000 | O133: -0.53%
A134: 125 | B134: Finance | C134: L&TFH | D134: 147.75 | E134: 147.47 | F134: 146.33 | G134: 144.92 | H134: 143.78 | I134: 148.88 | J134: 150.02 | K134: 151.43 | L134: 148.6 | M134: 146.05 | N134: 31351500 | O134: -0.85%
A135: 126 | B135: Finance | C135: LICHSGFIN | D135: 465.60 | E135: 465.65 | F135: 456.50 | G135: 447.40 | H135: 438.25 | I135: 474.75 | J135: 483.90 | K135: 493.00 | L135: 474.8 | M135: 456.55 | N135: 12491600 | O135: 0.51%
A136: 127 | B136: Capital_Goods | C136: LT | D136: 1264.30 | E136: 1259.45 | F136: 1252.00 | G136: 1239.70 | H136: 1232.25 | I136: 1271.75 | J136: 1279.20 | K136: 1291.50 | L136: 1266.9 | M136: 1247.15 | N136: 15165750 | O136: -1.04%
A137: 128 | B137: Pharma | C137: LUPIN | D137: 935.65 | E137: 926.73 | F137: 915.47 | G137: 895.28 | H137: 884.02 | I137: 946.92 | J137: 958.18 | K137: 978.37 | L137: 938 | M137: 906.55 | N137: 10782800 | O137: 2.97%
A138: 129 | B138: Automobile | C138: M&M | D138: 895.65 | E138: 891.73 | F138: 884.92 | G138: 874.18 | H138: 867.37 | I138: 902.47 | J138: 909.28 | K138: 920.02 | L138: 898.55 | M138: 881 | N138: 15366000 | O138: 1.71%
A139: 130 | B139: Finance | C139: M&MFIN | D139: 461.10 | E139: 459.53 | F139: 453.57 | G139: 446.03 | H139: 440.07 | I139: 467.07 | J139: 473.03 | K139: 480.57 | L139: 465.5 | M139: 452 | N139: 8671250 | O139: 2.56%
A140: 131 | B140: Others | C140: MANAPPURAM | D140: 97.65 | E140: 98.18 | F140: 96.37 | G140: 95.08 | H140: 93.27 | I140: 99.47 | J140: 101.28 | K140: 102.57 | L140: 100 | M140: 96.9 | N140: 19014000 | O140: 6.88%
A141: 132 | B141: FMCG | C141: MARICO | D141: 344.20 | E141: 343.08 | F141: 339.42 | G141: 334.63 | H141: 330.97 | I141: 347.87 | J141: 351.53 | K141: 356.32 | L141: 346.75 | M141: 338.3 | N141: 4737200 | O141: -2.62%
A142: 133 | B142: Automobile | C142: MARUTI | D142: 9235.05 | E142: 9152.43 | F142: 9047.92 | G142: 8860.78 | H142: 8756.27 | I142: 9339.57 | J142: 9444.08 | K142: 9631.22 | L142: 9256.95 | M142: 8965.3 | N142: 2192400 | O142: -2.55%
A143: 134 | B143: FMCG | C143: MCDOWELL-N | D143: 668.95 | E143: 662.62 | F143: 653.03 | G143: 637.12 | H143: 627.53 | I143: 678.53 | J143: 688.12 | K143: 704.03 | L143: 672.2 | M143: 646.7 | N143: 10493750 | O143: 1.00%
A144: 135 | B144: Others | C144: MCX | D144: 740.75 | E144: 745.33 | F144: 732.67 | G144: 724.58 | H144: 711.92 | I144: 753.42 | J144: 766.08 | K144: 774.17 | L144: 758 | M144: 737.25 | N144: 3593100 | O144: -0.62%
A145: 136 | B145: Finance | C145: MFSL | D145: 409.70 | E145: 414.72 | F145: 402.98 | G145: 396.27 | H145: 384.53 | I145: 421.43 | J145: 433.17 | K145: 439.88 | L145: 426.45 | M145: 408 | N145: 3297600 | O145: 4.37%
A146: 137 | B146: Others | C146: MGL | D146: 816.95 | E146: 817.52 | F146: 810.43 | G146: 803.92 | H146: 796.83 | I146: 824.03 | J146: 831.12 | K146: 837.63 | L146: 824.6 | M146: 811 | N146: 1431600 | O146: 1.92%
A147: 138 | B147: Technology | C147: MINDTREE | D147: 1011.15 | E147: 1010.22 | F147: 1002.48 | G147: 993.82 | H147: 986.08 | I147: 1018.88 | J147: 1026.62 | K147: 1035.28 | L147: 1017.95 | M147: 1001.55 | N147: 4134000 | O147: -1.12%
A148: 139 | B148: Automobile | C148: MOTHERSUMI | D148: 295.35 | E148: 293.72 | F148: 291.53 | G148: 287.72 | H148: 285.53 | I148: 297.53 | J148: 299.72 | K148: 303.53 | L148: 295.9 | M148: 289.9 | N148: 13478400 | O148: -3.03%
A149: 140 | B149: Automobile | C149: MRF | D149: 76327.45 | E149: 76139.10 | F149: 75510.35 | G149: 74693.25 | H149: 74064.50 | I149: 76956.20 | J149: 77584.95 | K149: 78402.05 | L149: 76767.85 | M149: 75322 | N149: 24310 | O149: 1.67%
A150: 141 | B150: Others | C150: MRPL | D150: 78.20 | E150: 78.13 | F150: 77.27 | G150: 76.33 | H150: 75.47 | I150: 79.07 | J150: 79.93 | K150: 80.87 | L150: 79 | M150: 77.2 | N150: 6804000 | O150: 0.00%
A151: 142 | B151: Finance | C151: MUTHOOTFIN | D151: 397.80 | E151: 394.98 | F151: 390.47 | G151: 383.13 | H151: 378.62 | I151: 402.32 | J151: 406.83 | K151: 414.17 | L151: 399.5 | M151: 387.65 | N151: 1596000 | O151: -3.27%
A152: 143 | B152: Others | C152: NATIONALUM | D152: 62.45 | E152: 62.67 | F152: 61.68 | G152: 60.92 | H152: 59.93 | I152: 63.43 | J152: 64.42 | K152: 65.18 | L152: 63.65 | M152: 61.9 | N152: 48448000 | O152: 3.95%
A153: 144 | B153: Others | C153: NBCC | D153: 68.10 | E153: 69.33 | F153: 66.52 | G153: 64.93 | H153: 62.12 | I153: 70.92 | J153: 73.73 | K153: 75.32 | L153: 72.15 | M153: 67.75 | N153: 24738000 | O153: 10.83%
A154: 145 | B154: Infrastructure | C154: NCC | D154: 97.05 | E154: 97.25 | F154: 95.30 | G154: 93.55 | H154: 91.60 | I154: 99.00 | J154: 100.95 | K154: 102.70 | L154: 99.2 | M154: 95.5 | N154: 46768000 | O154: 1.74%
A155: 146 | B155: Others | C155: NESTLEIND | D155: 9918.20 | E155: 9891.83 | F155: 9833.67 | G155: 9749.13 | H155: 9690.97 | I155: 9976.37 | J155: 10034.53 | K155: 10119.07 | L155: 9950 | M155: 9807.3 | N155: 271100 | O155: 0.93%
A156: 147 | B156: Power | C156: NHPC | D156: 23.10 | E156: 23.02 | F156: 22.78 | G156: 22.47 | H156: 22.23 | I156: 23.33 | J156: 23.57 | K156: 23.88 | L156: 23.25 | M156: 22.7 | N156: 28890000 | O156: -1.83%
A157: 148 | B157: Technology | C157: NIITTECH | D157: 1116.10 | E157: 1116.68 | F157: 1104.57 | G157: 1093.03 | H157: 1080.92 | I157: 1128.22 | J157: 1140.33 | K157: 1151.87 | L157: 1128.8 | M157: 1105.15 | N157: 1461000 | O157: -2.84%
A158: 149 | B158: Metals | C158: NMDC | D158: 104.60 | E158: 104.40 | F158: 103.55 | G158: 102.50 | H158: 101.65 | I158: 105.45 | J158: 106.30 | K158: 107.35 | L158: 105.25 | M158: 103.35 | N158: 25578000 | O158: 0.61%
A159: 150 | B159: Power | C159: NTPC | D159: 153.65 | E159: 154.58 | F159: 152.42 | G159: 151.18 | H159: 149.02 | I159: 155.82 | J159: 157.98 | K159: 159.22 | L159: 156.75 | M159: 153.35 | N159: 43840000 | O159: -1.43%
A160: 151 | B160: Technology | C160: OFSS | D160: 3935.00 | E160: 3965.33 | F160: 3880.67 | G160: 3826.33 | H160: 3741.67 | I160: 4019.67 | J160: 4104.33 | K160: 4158.67 | L160: 4050 | M160: 3911 | N160: 60300 | O160: 5.24%
A161: 152 | B161: Oil_Gas | C161: OIL | D161: 208.70 | E161: 207.92 | F161: 206.23 | G161: 203.77 | H161: 202.08 | I161: 210.38 | J161: 212.07 | K161: 214.53 | L161: 209.6 | M161: 205.45 | N161: 2742993 | O161: 0.12%
A162: 153 | B162: Oil_Gas | C162: ONGC | D162: 156.70 | E162: 156.88 | F162: 155.32 | G162: 153.93 | H162: 152.37 | I162: 158.27 | J162: 159.83 | K162: 161.22 | L162: 158.45 | M162: 155.5 | N162: 39697500 | O162: 0.97%
A163: 154 | B163: Banking | C163: ORIENTBANK | D163: 74.30 | E163: 74.32 | F163: 73.18 | G163: 72.07 | H163: 70.93 | I163: 75.43 | J163: 76.57 | K163: 77.68 | L163: 75.45 | M163: 73.2 | N163: 12330000 | O163: -0.05%
A164: 155 | B164: Textile | C164: PAGEIND | D164: 28191.60 | E164: 28255.87 | F164: 28036.73 | G164: 27881.87 | H164: 27662.73 | I164: 28410.73 | J164: 28629.87 | K164: 28784.73 | L164: 28475 | M164: 28101 | N164: 56725 | O164: 4.71%
A165: 156 | B165: Others | C165: PCJEWELLER | D165: 132.05 | E165: 132.25 | F165: 128.80 | G165: 125.55 | H165: 122.10 | I165: 135.50 | J165: 138.95 | K165: 142.20 | L165: 135.7 | M165: 129 | N165: 7806000 | O165: 4.60%
A166: 157 | B166: Pharma | C166: PEL | D166: 2443.50 | E166: 2429.23 | F166: 2393.52 | G166: 2343.53 | H166: 2307.82 | I166: 2479.22 | J166: 2514.93 | K166: 2564.92 | L166: 2464.95 | M166: 2379.25 | N166: 2098598 | O166: 1.71%
A167: 158 | B167: Oil_Gas | C167: PETRONET | D167: 220.55 | E167: 219.53 | F167: 217.77 | G167: 214.98 | H167: 213.22 | I167: 222.32 | J167: 224.08 | K167: 226.87 | L167: 221.3 | M167: 216.75 | N167: 16491000 | O167: -0.43%
A168: 159 | B168: Finance | C168: PFC | D168: 72.90 | E168: 73.17 | F168: 71.93 | G168: 70.97 | H168: 69.73 | I168: 74.13 | J168: 75.37 | K168: 76.33 | L168: 74.4 | M168: 72.2 | N168: 87942000 | O168: -0.07%
A169: 160 | B169: FMCG | C169: PIDILITIND | D169: 1074.35 | E169: 1071.77 | F169: 1064.73 | G169: 1055.12 | H169: 1048.08 | I169: 1081.38 | J169: 1088.42 | K169: 1098.03 | L169: 1078.8 | M169: 1062.15 | N169: 3539000 | O169: 0.45%
A170: 161 | B170: Banking | C170: PNB | D170: 76.40 | E170: 76.55 | F170: 75.70 | G170: 75.00 | H170: 74.15 | I170: 77.25 | J170: 78.10 | K170: 78.80 | L170: 77.4 | M170: 75.85 | N170: 84931000 | O170: 0.26%
A171: 162 | B171: Power | C171: POWERGRID | D171: 183.95 | E171: 185.48 | F171: 181.67 | G171: 179.38 | H171: 175.57 | I171: 187.77 | J171: 191.58 | K171: 193.87 | L171: 189.3 | M171: 183.2 | N171: 55108000 | O171: -1.00%
A172: 163 | B172: Power | C172: PTC | D172: 73.65 | E172: 73.62 | F172: 72.73 | G172: 71.82 | H172: 70.93 | I172: 74.53 | J172: 75.42 | K172: 76.33 | L172: 74.5 | M172: 72.7 | N172: 17048000 | O172: 0.66%
A173: 164 | B173: Others | C173: PVR | D173: 1381.25 | E173: 1385.72 | F173: 1369.48 | G173: 1357.72 | H173: 1341.48 | I173: 1397.48 | J173: 1413.72 | K173: 1425.48 | L173: 1401.95 | M173: 1373.95 | N173: 857600 | O173: 1.08%
A174: 165 | B174: Cement | C174: RAMCOCEM | D174: 698.65 | E174: 693.32 | F174: 686.63 | G174: 674.62 | H174: 667.93 | I174: 705.33 | J174: 712.02 | K174: 724.03 | L174: 700 | M174: 681.3 | N174: 891200 | O174: -0.62%
A175: 166 | B175: Others | C175: RAYMOND | D175: 897.80 | E175: 894.35 | F175: 880.50 | G175: 863.20 | H175: 849.35 | I175: 911.65 | J175: 925.50 | K175: 942.80 | L175: 908.2 | M175: 877.05 | N175: 4882400 | O175: -0.39%
A176: 167 | B176: Banking | C176: RBLBANK | D176: 571.75 | E176: 571.53 | F176: 565.07 | G176: 558.38 | H176: 551.92 | I176: 578.22 | J176: 584.68 | K176: 591.37 | L176: 578 | M176: 564.85 | N176: 4326000 | O176: 9.14%
A177: 168 | B177: Telecom | C177: RCOM | D177: 13.65 | E177: 13.77 | F177: 13.43 | G177: 13.22 | H177: 12.88 | I177: 13.98 | J177: 14.32 | K177: 14.53 | L177: 14.1 | M177: 13.55 | N177: 89124000 | O177: 1.76%
A178: 169 | B178: Power | C178: RECLTD | D178: 101.20 | E178: 101.43 | F178: 99.87 | G178: 98.53 | H178: 96.97 | I178: 102.77 | J178: 104.33 | K178: 105.67 | L178: 103 | M178: 100.1 | N178: 41988000 | O178: 1.76%
A179: 170 | B179: Finance | C179: RELCAPITAL | D179: 365.65 | E179: 366.05 | F179: 359.55 | G179: 353.45 | H179: 346.95 | I179: 372.15 | J179: 378.65 | K179: 384.75 | L179: 372.55 | M179: 359.95 | N179: 9186000 | O179: 2.20%
A180: 171 | B180: Oil_Gas | C180: RELIANCE | D180: 992.45 | E180: 986.48 | F180: 979.27 | G180: 966.08 | H180: 958.87 | I180: 999.67 | J180: 1006.88 | K180: 1020.07 | L180: 993.7 | M180: 973.3 | N180: 49185000 | O180: 1.29%
A181: 172 | B181: Power | C181: RELINFRA | D181: 383.00 | E181: 383.82 | F181: 377.68 | G181: 372.37 | H181: 366.23 | I181: 389.13 | J181: 395.27 | K181: 400.58 | L181: 389.95 | M181: 378.5 | N181: 7355400 | O181: 3.08%
A182: 173 | B182: Others | C182: REPCOHOME | D182: 577.35 | E182: 570.87 | F182: 561.83 | G182: 546.32 | H182: 537.28 | I182: 586.38 | J182: 595.42 | K182: 610.93 | L182: 579.9 | M182: 555.35 | N182: 578700 | O182: 6.46%
A183: 174 | B183: Power | C183: RPOWER | D183: 30.90 | E183: 31.03 | F183: 30.37 | G183: 29.83 | H183: 29.17 | I183: 31.57 | J183: 32.23 | K183: 32.77 | L183: 31.7 | M183: 30.5 | N183: 51168000 | O183: 1.03%
A184: 175 | B184: Metals | C184: SAIL | D184: 80.80 | E184: 80.68 | F184: 79.12 | G184: 77.43 | H184: 75.87 | I184: 82.37 | J184: 83.93 | K184: 85.62 | L184: 82.25 | M184: 79 | N184: 89832000 | O184: 0.67%
A185: 176 | B185: Banking | C185: SBIN | D185: 258.95 | E185: 258.08 | F185: 256.52 | G185: 254.08 | H185: 252.52 | I185: 260.52 | J185: 262.08 | K185: 264.52 | L185: 259.65 | M185: 255.65 | N185: 73560000 | O185: 0.43%
A186: 177 | B186: Cement | C186: SHREECEM | D186: 16003.20 | E186: 16050.93 | F186: 15841.82 | G186: 15680.43 | H186: 15471.32 | I186: 16212.32 | J186: 16421.43 | K186: 16582.82 | L186: 16260.05 | M186: 15889.55 | N186: 88800 | O186: 0.97%
A187: 178 | B187: Capital_Goods | C187: SIEMENS | D187: 974.80 | E187: 977.15 | F187: 967.90 | G187: 961.00 | H187: 951.75 | I187: 984.05 | J187: 993.30 | K187: 1000.20 | L187: 986.4 | M187: 970.25 | N187: 1129500 | O187: 0.22%
A188: 179 | B188: Banking | C188: SOUTHBANK | D188: 21.60 | E188: 21.60 | F188: 21.30 | G188: 21.00 | H188: 20.70 | I188: 21.90 | J188: 22.20 | K188: 22.50 | L188: 21.9 | M188: 21.3 | N188: 147179181 | O188: -1.00%
A189: 180 | B189: Others | C189: SREINFRA | D189: 58.95 | E189: 58.00 | F189: 56.25 | G189: 53.55 | H189: 51.80 | I189: 60.70 | J189: 62.45 | K189: 65.15 | L189: 59.75 | M189: 55.3 | N189: 19978000 | O189: 0.32%
A190: 181 | B190: Textile | C190: SRF | D190: 1655.35 | E190: 1658.37 | F190: 1645.43 | G190: 1635.52 | H190: 1622.58 | I190: 1668.28 | J190: 1681.22 | K190: 1691.13 | L190: 1671.3 | M190: 1648.45 | N190: 688500 | O190: 0.07%
A191: 182 | B191: Finance | C191: SRTRANSFIN | D191: 1146.05 | E191: 1137.62 | F191: 1055.23 | G191: 964.42 | H191: 882.03 | I191: 1228.43 | J191: 1310.82 | K191: 1401.63 | L191: 1220 | M191: 1046.8 | N191: 7391400 | O191: 57.79%
A192: 183 | B192: Pharma | C192: STAR | D192: 411.95 | E192: 407.77 | F192: 400.68 | G192: 389.42 | H192: 382.33 | I192: 419.03 | J192: 426.12 | K192: 437.38 | L192: 414.85 | M192: 396.5 | N192: 4106400 | O192: 0.96%
A193: 184 | B193: Pharma | C193: SUNPHARMA | D193: 580.80 | E193: 582.30 | F193: 573.60 | G193: 566.40 | H193: 557.70 | I193: 589.50 | J193: 598.20 | K193: 605.40 | L193: 591 | M193: 575.1 | N193: 43022100 | O193: -1.13%
A194: 185 | B194: Media | C194: SUNTV | D194: 794.85 | E194: 793.52 | F194: 784.53 | G194: 774.22 | H194: 765.23 | I194: 803.83 | J194: 812.82 | K194: 823.13 | L194: 802.5 | M194: 783.2 | N194: 7036000 | O194: -0.27%
A195: 186 | B195: Power | C195: SUZLON | D195: 7.60 | E195: 7.58 | F195: 7.47 | G195: 7.33 | H195: 7.22 | I195: 7.72 | J195: 7.83 | K195: 7.97 | L195: 7.7 | M195: 7.45 | N195: 295200000 | O195: 0.15%
A196: 187 | B196: Banking | C196: SYNDIBANK | D196: 40.45 | E196: 40.30 | F196: 39.85 | G196: 39.25 | H196: 38.80 | I196: 40.90 | J196: 41.35 | K196: 41.95 | L196: 40.75 | M196: 39.7 | N196: 27054000 | O196: 0.43%
A197: 188 | B197: Fertilisers | C197: TATACHEM | D197: 674.00 | E197: 677.42 | F197: 666.98 | G197: 659.97 | H197: 649.53 | I197: 684.43 | J197: 694.87 | K197: 701.88 | L197: 687.85 | M197: 670.4 | N197: 3546750 | O197: 0.87%
A198: 189 | B198: Telecom | C198: TATACOMM | D198: 590.45 | E198: 589.67 | F198: 584.58 | G198: 578.72 | H198: 573.63 | I198: 595.53 | J198: 600.62 | K198: 606.48 | L198: 594.75 | M198: 583.8 | N198: 3121600 | O198: -1.66%
A199: 190 | B199: Technology | C199: TATAELXSI | D199: 1355.60 | E199: 1356.40 | F199: 1345.30 | G199: 1335.00 | H199: 1323.90 | I199: 1366.70 | J199: 1377.80 | K199: 1388.10 | L199: 1367.5 | M199: 1346.1 | N199: 1398400 | O199: -1.52%
A200: 191 | B200: FMCG | C200: TATAGLOBAL | D200: 278.55 | E200: 278.45 | F200: 275.35 | G200: 272.15 | H200: 269.05 | I200: 281.65 | J200: 284.75 | K200: 287.95 | L200: 281.55 | M200: 275.25 | N200: 12519000 | O200: -2.71%
A201: 192 | B201: Automobile | C201: TATAMOTORS | D201: 268.55 | E201: 269.37 | F201: 265.93 | G201: 263.32 | H201: 259.88 | I201: 271.98 | J201: 275.42 | K201: 278.03 | L201: 272.8 | M201: 266.75 | N201: 92677500 | O201: 0.28%
A202: 193 | B202: Automobile | C202: TATAMTRDVR | D202: 157.95 | E202: 157.48 | F202: 155.92 | G202: 153.88 | H202: 152.32 | I202: 159.52 | J202: 161.08 | K202: 163.12 | L202: 159.05 | M202: 155.45 | N202: 26303200 | O202: -0.46%
A203: 194 | B203: Power | C203: TATAPOWER | D203: 71.25 | E203: 71.18 | F203: 70.72 | G203: 70.18 | H203: 69.72 | I203: 71.72 | J203: 72.18 | K203: 72.72 | L203: 71.65 | M203: 70.65 | N203: 45513000 | O203: 1.38%
A204: 195 | B204: Metals | C204: TATASTEEL | D204: 562.80 | E204: 560.08 | F204: 554.97 | G204: 547.13 | H204: 542.02 | I204: 567.92 | J204: 573.03 | K204: 580.87 | L204: 565.2 | M204: 552.25 | N204: 44323275 | O204: -3.15%
A205: 196 | B205: Technology | C205: TCS | D205: 1873.80 | E205: 1874.07 | F205: 1863.78 | G205: 1853.77 | H205: 1843.48 | I205: 1884.08 | J205: 1894.37 | K205: 1904.38 | L205: 1884.35 | M205: 1864.05 | N205: 11740000 | O205: 1.76%
A206: 197 | B206: Technology | C206: TECHM | D206: 643.25 | E206: 645.33 | F206: 638.17 | G206: 633.08 | H206: 625.92 | I206: 650.42 | J206: 657.58 | K206: 662.67 | L206: 652.5 | M206: 640.25 | N206: 17538000 | O206: 0.83%
... 35 more rows

Sheet Cash Intra
M5: Back to Main Page
A6: FOR INTRA DAY TRADING | K6: =Main!B10 -> 2018-07-05
A8: Sr.no | B8: Scrip | C8: CLOSE RATE | D8: Pivot Point | E8: Supports | H8: Resistances
C9: Point | E9: S1 | F9: S2 | G9: S3 | H9: R1 | I9: R2 | J9: R3 | K9: HIGH | L9: LOW | M9: Total Trade Quanity in Lakhs
A10: 1 | B10: Nifty 50 | C10: 10769.9 | D10: 10741.60 | E10: 10706.05 | F10: 10642.20 | G10: 10606.65 | H10: 10805.45 | I10: 10841.00 | J10: 10904.85 | K10: 10777.15 | L10: 10677.75
A11: 2 | B11: Nifty Bank | C11: 26433.95 | D11: 26349.12 | E11: 26217.73 | F11: 26001.52 | G11: 25870.13 | H11: 26565.33 | I11: 26696.72 | J11: 26912.93 | K11: 26480.5 | L11: 26132.9
A12: 3 | B12: Nifty CPSE | C12: 2205.8 | D12: 2202.27 | E12: 2194.18 | F12: 2182.57 | G12: 2174.48 | H12: 2213.88 | I12: 2221.97 | J12: 2233.58 | K12: 2210.35 | L12: 2190.65
A13: 4 | B13: Nifty Infra | C13: 3060.6 | D13: 3059.35 | E13: 3047.35 | F13: 3034.10 | G13: 3022.10 | H13: 3072.60 | I13: 3084.60 | J13: 3097.85 | K13: 3071.35 | L13: 3046.1
A14: 5 | B14: Nifty IT | C14: 14126.15 | D14: 14156.45 | E14: 14068.95 | F14: 14011.75 | G14: 13924.25 | H14: 14213.65 | I14: 14301.15 | J14: 14358.35 | K14: 14243.95 | L14: 14099.25
A15: 6 | B15: Nifty PSE | C15: 3465.05 | D15: 3473.98 | E15: 3451.27 | F15: 3437.48 | G15: 3414.77 | H15: 3487.77 | I15: 3510.48 | J15: 3524.27 | K15: 3496.7 | L15: 3460.2
A16: 7 | B16: Nifty Midcap 50 | C16: 4899.05 | D16: 4888.07 | E16: 4871.33 | F16: 4843.62 | G16: 4826.88 | H16: 4915.78 | I16: 4932.52 | J16: 4960.23 | K16: 4904.8 | L16: 4860.35
A17: 8 | B17: ABB | C17: 1179.35 | D17: 1180.08 | E17: 1170.32 | F17: 1161.28 | G17: 1151.52 | H17: 1189.12 | I17: 1198.88 | J17: 1207.92 | K17: 1189.85 | L17: 1171.05 | M17: 0.20762
A18: 9 | B18: ACC | C18: 1350.85 | D18: 1347.37 | E18: 1335.23 | F18: 1319.62 | G18: 1307.48 | H18: 1362.98 | I18: 1375.12 | J18: 1390.73 | K18: 1359.5 | L18: 1331.75 | M18: 3.89155
A19: 10 | B19: AIAENG | C19: 1549.45 | D19: 1536.33 | E19: 1502.67 | F19: 1455.88 | G19: 1422.22 | H19: 1583.12 | I19: 1616.78 | J19: 1663.57 | K19: 1570 | L19: 1489.55 | M19: 1.34255
A20: 11 | B20: AUBANK | C20: 680.2 | D20: 679.10 | E20: 665.10 | F20: 650.00 | G20: 636.00 | H20: 694.20 | I20: 708.20 | J20: 723.30 | K20: 693.1 | L20: 664 | M20: 0.7688
A21: 12 | B21: ADANIENT | C21: 107.7 | D21: 106.73 | E21: 104.72 | F21: 101.73 | G21: 99.72 | H21: 109.72 | I21: 111.73 | J21: 114.72 | K21: 108.75 | L21: 103.75 | M21: 70.81273
A22: 13 | B22: ADANIPORTS | C22: 359.95 | D22: 359.80 | E22: 356.10 | F22: 352.25 | G22: 348.55 | H22: 363.65 | I22: 367.35 | J22: 371.20 | K22: 363.5 | L22: 355.95 | M22: 16.16705
A23: 14 | B23: ADANIPOWER | C23: 16.1 | D23: 16.03 | E23: 15.77 | F23: 15.43 | G23: 15.17 | H23: 16.37 | I23: 16.63 | J23: 16.97 | K23: 16.3 | L23: 15.7 | M23: 87.46331
A24: 15 | B24: ABFRL | C24: 137.9 | D24: 138.48 | E24: 136.47 | F24: 135.03 | G24: 133.02 | H24: 139.92 | I24: 141.93 | J24: 143.37 | K24: 140.5 | L24: 137.05 | M24: 1.43894
A25: 16 | B25: AJANTPHARM | C25: 1030.8 | D25: 1034.08 | E25: 1018.72 | F25: 1006.63 | G25: 991.27 | H25: 1046.17 | I25: 1061.53 | J25: 1073.62 | K25: 1049.45 | L25: 1022 | M25: 5.97062
A26: 17 | B26: ALKEM | C26: 1868.15 | D26: 1877.05 | E26: 1851.15 | F26: 1834.15 | G26: 1808.25 | H26: 1894.05 | I26: 1919.95 | J26: 1936.95 | K26: 1902.95 | L26: 1860.05 | M26: 0.1198
A27: 18 | B27: AMARAJABAT | C27: 777 | D27: 771.57 | E27: 761.48 | F27: 745.97 | G27: 735.88 | H27: 787.08 | I27: 797.17 | J27: 812.68 | K27: 781.65 | L27: 756.05 | M27: 4.46982
A28: 19 | B28: AMBUJACEM | C28: 201 | D28: 201.67 | E28: 199.03 | F28: 197.07 | G28: 194.43 | H28: 203.63 | I28: 206.27 | J28: 208.23 | K28: 204.3 | L28: 199.7 | M28: 22.62034
A29: 20 | B29: APOLLOHOSP | C29: 1081.9 | D29: 1073.30 | E29: 1061.60 | F29: 1041.30 | G29: 1029.60 | H29: 1093.60 | I29: 1105.30 | J29: 1125.60 | K29: 1085 | L29: 1053 | M29: 4.49504
A30: 21 | B30: APOLLOTYRE | C30: 253.3 | D30: 251.37 | E30: 248.58 | F30: 243.87 | G30: 241.08 | H30: 256.08 | I30: 258.87 | J30: 263.58 | K30: 254.15 | L30: 246.65 | M30: 21.13615
A31: 22 | B31: ARVIND | C31: 396.75 | D31: 394.27 | E31: 390.83 | F31: 384.92 | G31: 381.48 | H31: 400.18 | I31: 403.62 | J31: 409.53 | K31: 397.7 | L31: 388.35 | M31: 7.2041
A32: 23 | B32: ASHOKLEY | C32: 127.85 | D32: 127.97 | E32: 126.43 | F32: 125.02 | G32: 123.48 | H32: 129.38 | I32: 130.92 | J32: 132.33 | K32: 129.5 | L32: 126.55 | M32: 160.28413
A33: 24 | B33: ASIANPAINT | C33: 1289.8 | D33: 1290.83 | E33: 1281.72 | F33: 1273.63 | G33: 1264.52 | H33: 1298.92 | I33: 1308.03 | J33: 1316.12 | K33: 1299.95 | L33: 1282.75 | M33: 6.19316
A34: 25 | B34: AUROPHARMA | C34: 625.45 | D34: 626.38 | E34: 619.37 | F34: 613.28 | G34: 606.27 | H34: 632.47 | I34: 639.48 | J34: 645.57 | K34: 633.4 | L34: 620.3 | M34: 26.3448
A35: 26 | B35: DMART | C35: 1538.3 | D35: 1539.75 | E35: 1521.55 | F35: 1504.80 | G35: 1486.60 | H35: 1556.50 | I35: 1574.70 | J35: 1591.45 | K35: 1557.95 | L35: 1523 | M35: 7.49317
A36: 27 | B36: AXISBANK | C36: 514.75 | D36: 512.88 | E36: 509.52 | F36: 504.28 | G36: 500.92 | H36: 518.12 | I36: 521.48 | J36: 526.72 | K36: 516.25 | L36: 507.65 | M36: 38.93493
A37: 28 | B37: BAJAJ-AUTO | C37: 2979.05 | D37: 2941.28 | E37: 2893.57 | F37: 2808.08 | G37: 2760.37 | H37: 3026.77 | I37: 3074.48 | J37: 3159.97 | K37: 2989 | L37: 2855.8 | M37: 8.45034
A38: 29 | B38: BAJFINANCE | C38: 2331.4 | D38: 2327.65 | E38: 2310.30 | F38: 2289.20 | G38: 2271.85 | H38: 2348.75 | I38: 2366.10 | J38: 2387.20 | K38: 2345 | L38: 2306.55 | M38: 9.16379
A39: 30 | B39: BAJAJFINSV | C39: 6032.85 | D39: 5986.58 | E39: 5924.17 | F39: 5815.48 | G39: 5753.07 | H39: 6095.27 | I39: 6157.68 | J39: 6266.37 | K39: 6049 | L39: 5877.9 | M39: 1.92202
A40: 31 | B40: BALKRISIND | C40: 1138.6 | D40: 1120.50 | E40: 1094.00 | F40: 1049.40 | G40: 1022.90 | H40: 1165.10 | I40: 1191.60 | J40: 1236.20 | K40: 1147 | L40: 1075.9 | M40: 8.51693
A41: 32 | B41: BANKBARODA | C41: 113.1 | D41: 113.05 | E41: 112.30 | F41: 111.50 | G41: 110.75 | H41: 113.85 | I41: 114.60 | J41: 115.40 | K41: 113.8 | L41: 112.25 | M41: 88.61062
A42: 33 | B42: BANKINDIA | C42: 85.9 | D42: 86.13 | E42: 84.77 | F42: 83.63 | G42: 82.27 | H42: 87.27 | I42: 88.63 | J42: 89.77 | K42: 87.5 | L42: 85 | M42: 48.68538
A43: 34 | B43: BATAINDIA | C43: 828.7 | D43: 833.90 | E43: 821.00 | F43: 813.30 | G43: 800.40 | H43: 841.60 | I43: 854.50 | J43: 862.20 | K43: 846.8 | L43: 826.2 | M43: 10.60828
A44: 35 | B44: BERGEPAINT | C44: 286.15 | D44: 286.13 | E44: 283.52 | F44: 280.88 | G44: 278.27 | H44: 288.77 | I44: 291.38 | J44: 294.02 | K44: 288.75 | L44: 283.5 | M44: 4.60699
A45: 36 | B45: BEL | C45: 104.35 | D45: 105.15 | E45: 103.05 | F45: 101.75 | G45: 99.65 | H45: 106.45 | I45: 108.55 | J45: 109.85 | K45: 107.25 | L45: 103.85 | M45: 43.52715
A46: 37 | B46: BHARATFIN | C46: 1194.25 | D46: 1188.47 | E46: 1178.78 | F46: 1163.32 | G46: 1153.63 | H46: 1203.93 | I46: 1213.62 | J46: 1229.08 | K46: 1198.15 | L46: 1173 | M46: 3.53296
A47: 38 | B47: BHARATFORG | C47: 636.75 | D47: 630.45 | E47: 622.10 | F47: 607.45 | G47: 599.10 | H47: 645.10 | I47: 653.45 | J47: 668.10 | K47: 638.8 | L47: 615.8 | M47: 11.02281
A48: 39 | B48: BHEL | C48: 69.2 | D48: 69.38 | E48: 68.37 | F48: 67.53 | G48: 66.52 | H48: 70.22 | I48: 71.23 | J48: 72.07 | K48: 70.4 | L48: 68.55 | M48: 52.6676
A49: 40 | B49: BPCL | C49: 367.85 | D49: 369.32 | E49: 363.18 | F49: 358.52 | G49: 352.38 | H49: 373.98 | I49: 380.12 | J49: 384.78 | K49: 375.45 | L49: 364.65 | M49: 33.60223
A50: 41 | B50: BHARTIARTL | C50: 367.4 | D50: 367.33 | E50: 362.77 | F50: 358.13 | G50: 353.57 | H50: 371.97 | I50: 376.53 | J50: 381.17 | K50: 371.9 | L50: 362.7 | M50: 39.25362
A51: 42 | B51: INFRATEL | C51: 299.5 | D51: 296.97 | E51: 292.08 | F51: 284.67 | G51: 279.78 | H51: 304.38 | I51: 309.27 | J51: 316.68 | K51: 301.85 | L51: 289.55 | M51: 21.71623
A52: 43 | B52: BIOCON | C52: 628.25 | D52: 628.58 | E52: 621.17 | F52: 614.08 | G52: 606.67 | H52: 635.67 | I52: 643.08 | J52: 650.17 | K52: 636 | L52: 621.5 | M52: 15.87731
A53: 44 | B53: BOSCHLTD | C53: 17508.8 | D53: 17501.25 | E53: 17367.55 | F53: 17226.30 | G53: 17092.60 | H53: 17642.50 | I53: 17776.20 | J53: 17917.45 | K53: 17634.95 | L53: 17360 | M53: 0.04665
A54: 45 | B54: BRITANNIA | C54: 6299.75 | D54: 6276.30 | E54: 6233.50 | F54: 6167.25 | G54: 6124.45 | H54: 6342.55 | I54: 6385.35 | J54: 6451.60 | K54: 6319.1 | L54: 6210.05 | M54: 0.98954
A55: 46 | B55: CRISIL | C55: 1782.1 | D55: 1775.98 | E55: 1763.02 | F55: 1743.93 | G55: 1730.97 | H55: 1795.07 | I55: 1808.03 | J55: 1827.12 | K55: 1788.95 | L55: 1756.9 | M55: 0.0277
A56: 47 | B56: CADILAHC | C56: 394.7 | D56: 393.23 | E56: 389.67 | F56: 384.63 | G56: 381.07 | H56: 398.27 | I56: 401.83 | J56: 406.87 | K56: 396.8 | L56: 388.2 | M56: 12.30554
A57: 48 | B57: CANBK | C57: 244.65 | D57: 244.43 | E57: 242.22 | F57: 239.78 | G57: 237.57 | H57: 246.87 | I57: 249.08 | J57: 251.52 | K57: 246.65 | L57: 242 | M57: 58.5357
A58: 49 | B58: CASTROLIND | C58: 160.85 | D58: 159.25 | E58: 156.35 | F58: 151.85 | G58: 148.95 | H58: 163.75 | I58: 166.65 | J58: 171.15 | K58: 162.15 | L58: 154.75 | M58: 27.67782
A59: 50 | B59: CENTRALBK | C59: 67.45 | D59: 67.47 | E59: 67.03 | F59: 66.62 | G59: 66.18 | H59: 67.88 | I59: 68.32 | J59: 68.73 | K59: 67.9 | L59: 67.05 | M59: 2.06221
A60: 51 | B60: CENTURYTEX | C60: 872.25 | D60: 873.32 | E60: 862.03 | F60: 851.82 | G60: 840.53 | H60: 883.53 | I60: 894.82 | J60: 905.03 | K60: 884.6 | L60: 863.1 | M60: 6.2057
A61: 52 | B61: CHOLAFIN | C61: 1501.95 | D61: 1501.88 | E61: 1483.77 | F61: 1465.58 | G61: 1447.47 | H61: 1520.07 | I61: 1538.18 | J61: 1556.37 | K61: 1520 | L61: 1483.7 | M61: 1.88292
A62: 53 | B62: CIPLA | C62: 628.9 | D62: 633.57 | E62: 619.13 | F62: 609.37 | G62: 594.93 | H62: 643.33 | I62: 657.77 | J62: 667.53 | K62: 648 | L62: 623.8 | M62: 50.43141
A63: 54 | B63: COALINDIA | C63: 264.35 | D63: 263.63 | E63: 260.32 | F63: 256.28 | G63: 252.97 | H63: 267.67 | I63: 270.98 | J63: 275.02 | K63: 266.95 | L63: 259.6 | M63: 30.32831
A64: 55 | B64: COLPAL | C64: 1166.2 | D64: 1166.95 | E64: 1149.30 | F64: 1132.40 | G64: 1114.75 | H64: 1183.85 | I64: 1201.50 | J64: 1218.40 | K64: 1184.6 | L64: 1150.05 | M64: 5.92588
A65: 56 | B65: CONCOR | C65: 648.25 | D65: 650.07 | E65: 642.18 | F65: 636.12 | G65: 628.23 | H65: 656.13 | I65: 664.02 | J65: 670.08 | K65: 657.95 | L65: 644 | M65: 3.25118
A66: 57 | B66: COROMANDEL | C66: 434.5 | D66: 430.88 | E66: 423.77 | F66: 413.03 | G66: 405.92 | H66: 441.62 | I66: 448.73 | J66: 459.47 | K66: 438 | L66: 420.15 | M66: 1.43372
A67: 58 | B67: CROMPTON | C67: 226.6 | D67: 226.17 | E67: 224.53 | F67: 222.47 | G67: 220.83 | H67: 228.23 | I67: 229.87 | J67: 231.93 | K67: 227.8 | L67: 224.1 | M67: 4.55082
A68: 59 | B68: CUMMINSIND | C68: 650.65 | D68: 652.93 | E68: 646.37 | F68: 642.08 | G68: 635.52 | H68: 657.22 | I68: 663.78 | J68: 668.07 | K68: 659.5 | L68: 648.65 | M68: 0.53316
A69: 60 | B69: DLF | C69: 185.3 | D69: 185.27 | E69: 183.58 | F69: 181.87 | G69: 180.18 | H69: 186.98 | I69: 188.67 | J69: 190.38 | K69: 186.95 | L69: 183.55 | M69: 37.18019
A70: 61 | B70: DABUR | C70: 379.75 | D70: 380.47 | E70: 376.98 | F70: 374.22 | G70: 370.73 | H70: 383.23 | I70: 386.72 | J70: 389.48 | K70: 383.95 | L70: 377.7 | M70: 24.52019
A71: 62 | B71: DALMIABHA | C71: 2250.95 | D71: 2233.83 | E71: 2207.97 | F71: 2164.98 | G71: 2139.12 | H71: 2276.82 | I71: 2302.68 | J71: 2345.67 | K71: 2259.7 | L71: 2190.85 | M71: 0.39231
A72: 63 | B72: DHFL | C72: 623.15 | D72: 624.97 | E72: 619.18 | F72: 615.22 | G72: 609.43 | H72: 628.93 | I72: 634.72 | J72: 638.68 | K72: 630.75 | L72: 621 | M72: 39.21122
A73: 64 | B73: DISHTV | C73: 71.9 | D73: 72.05 | E73: 71.50 | F73: 71.10 | G73: 70.55 | H73: 72.45 | I73: 73.00 | J73: 73.40 | K73: 72.6 | L73: 71.65 | M73: 64.50893
A74: 65 | B74: DIVISLAB | C74: 1102.3 | D74: 1093.42 | E74: 1080.88 | F74: 1059.47 | G74: 1046.93 | H74: 1114.83 | I74: 1127.37 | J74: 1148.78 | K74: 1105.95 | L74: 1072 | M74: 13.47815
A75: 66 | B75: LALPATHLAB | C75: 930.1 | D75: 931.08 | E75: 919.97 | F75: 909.83 | G75: 898.72 | H75: 941.22 | I75: 952.33 | J75: 962.47 | K75: 942.2 | L75: 920.95 | M75: 0.38933
A76: 67 | B76: DRREDDY | C76: 2317.25 | D76: 2309.68 | E76: 2281.37 | F76: 2245.48 | G76: 2217.17 | H76: 2345.57 | I76: 2373.88 | J76: 2409.77 | K76: 2338 | L76: 2273.8 | M76: 10.65535
A77: 68 | B77: EDELWEISS | C77: 288.95 | D77: 290.28 | E77: 285.72 | F77: 282.48 | G77: 277.92 | H77: 293.52 | I77: 298.08 | J77: 301.32 | K77: 294.85 | L77: 287.05 | M77: 22.75969
A78: 69 | B78: EICHERMOT | C78: 28238 | D78: 28237.67 | E78: 28085.33 | F78: 27932.67 | G78: 27780.33 | H78: 28390.33 | I78: 28542.67 | J78: 28695.33 | K78: 28390 | L78: 28085 | M78: 0.37877
A79: 70 | B79: EMAMILTD | C79: 517.6 | D79: 520.87 | E79: 511.73 | F79: 505.87 | G79: 496.73 | H79: 526.73 | I79: 535.87 | J79: 541.73 | K79: 530 | L79: 515 | M79: 2.18892
A80: 71 | B80: ENDURANCE | C80: 1249.35 | D80: 1250.07 | E80: 1234.33 | F80: 1219.32 | G80: 1203.58 | H80: 1265.08 | I80: 1280.82 | J80: 1295.83 | K80: 1265.8 | L80: 1235.05 | M80: 0.10031
A81: 72 | B81: ENGINERSIN | C81: 123.3 | D81: 123.25 | E81: 121.80 | F81: 120.30 | G81: 118.85 | H81: 124.75 | I81: 126.20 | J81: 127.70 | K81: 124.7 | L81: 121.75 | M81: 20.37229
A82: 73 | B82: EXIDEIND | C82: 262.35 | D82: 262.58 | E82: 259.77 | F82: 257.18 | G82: 254.37 | H82: 265.17 | I82: 267.98 | J82: 270.57 | K82: 265.4 | L82: 260 | M82: 14.38456
A83: 74 | B83: FEDERALBNK | C83: 83.5 | D83: 83.25 | E83: 82.60 | F83: 81.70 | G83: 81.05 | H83: 84.15 | I83: 84.80 | J83: 85.70 | K83: 83.9 | L83: 82.35 | M83: 76.72119
A84: 75 | B84: GAIL | C84: 348.35 | D84: 346.52 | E84: 343.13 | F84: 337.92 | G84: 334.53 | H84: 351.73 | I84: 355.12 | J84: 360.33 | K84: 349.9 | L84: 341.3 | M84: 43.17908
A85: 76 | B85: GMRINFRA | C85: 16.5 | D85: 16.35 | E85: 16.10 | F85: 15.70 | G85: 15.45 | H85: 16.75 | I85: 17.00 | J85: 17.40 | K85: 16.6 | L85: 15.95 | M85: 287.04974
A86: 77 | B86: GSKCONS | C86: 6445.05 | D86: 6446.68 | E86: 6368.37 | F86: 6291.68 | G86: 6213.37 | H86: 6523.37 | I86: 6601.68 | J86: 6678.37 | K86: 6525 | L86: 6370 | M86: 0.07559
A87: 78 | B87: GLAXO | C87: 2902.1 | D87: 2910.33 | E87: 2825.77 | F87: 2749.43 | G87: 2664.87 | H87: 2986.67 | I87: 3071.23 | J87: 3147.57 | K87: 2994.9 | L87: 2834 | M87: 0.77516
A88: 79 | B88: GLENMARK | C88: 597.45 | D88: 596.57 | E88: 590.53 | F88: 583.62 | G88: 577.58 | H88: 603.48 | I88: 609.52 | J88: 616.43 | K88: 602.6 | L88: 589.65 | M88: 10.4174
A89: 80 | B89: GODREJCP | C89: 1263.8 | D89: 1261.67 | E89: 1248.88 | F89: 1233.97 | G89: 1221.18 | H89: 1276.58 | I89: 1289.37 | J89: 1304.28 | K89: 1274.45 | L89: 1246.75 | M89: 2.30629
A90: 81 | B90: GODREJIND | C90: 612.05 | D90: 614.17 | E90: 606.13 | F90: 600.22 | G90: 592.18 | H90: 620.08 | I90: 628.12 | J90: 634.03 | K90: 622.2 | L90: 608.25 | M90: 3.57969
A91: 82 | B91: GRUH | C91: 334.8 | D91: 330.13 | E91: 323.67 | F91: 312.53 | G91: 306.07 | H91: 341.27 | I91: 347.73 | J91: 358.87 | K91: 336.6 | L91: 319 | M91: 7.96301
A92: 83 | B92: GPPL | C92: 107.05 | D92: 107.52 | E92: 104.13 | F92: 101.22 | G92: 97.83 | H92: 110.43 | I92: 113.82 | J92: 116.73 | K92: 110.9 | L92: 104.6 | M92: 10.95117
A93: 84 | B93: GSPL | C93: 179.15 | D93: 178.42 | E93: 176.83 | F93: 174.52 | G93: 172.93 | H93: 180.73 | I93: 182.32 | J93: 184.63 | K93: 180 | L93: 176.1 | M93: 0.70758
A94: 85 | B94: HCLTECH | C94: 925.65 | D94: 929.38 | E94: 920.27 | F94: 914.88 | G94: 905.77 | H94: 934.77 | I94: 943.88 | J94: 949.27 | K94: 938.5 | L94: 924 | M94: 7.73947
A95: 86 | B95: HDFCBANK | C95: 2103.55 | D95: 2093.53 | E95: 2079.02 | F95: 2054.48 | G95: 2039.97 | H95: 2118.07 | I95: 2132.58 | J95: 2157.12 | K95: 2108.05 | L95: 2069 | M95: 15.24498
A96: 87 | B96: HAVELLS | C96: 547.4 | D96: 544.63 | E96: 538.37 | F96: 529.33 | G96: 523.07 | H96: 553.67 | I96: 559.93 | J96: 568.97 | K96: 550.9 | L96: 535.6 | M96: 6.02897
A97: 88 | B97: HEROMOTOCO | C97: 3458.8 | D97: 3451.10 | E97: 3423.15 | F97: 3387.50 | G97: 3359.55 | H97: 3486.75 | I97: 3514.70 | J97: 3550.35 | K97: 3479.05 | L97: 3415.45 | M97: 2.66759
A98: 89 | B98: HEXAWARE | C98: 461.7 | D98: 463.55 | E98: 457.55 | F98: 453.40 | G98: 447.40 | H98: 467.70 | I98: 473.70 | J98: 477.85 | K98: 469.55 | L98: 459.4 | M98: 6.93474
A99: 90 | B99: HINDALCO | C99: 224.1 | D99: 223.33 | E99: 220.87 | F99: 217.63 | G99: 215.17 | H99: 226.57 | I99: 229.03 | J99: 232.27 | K99: 225.8 | L99: 220.1 | M99: 52.46876
A100: 91 | B100: HINDPETRO | C100: 252.3 | D100: 254.23 | E100: 248.67 | F100: 245.03 | G100: 239.47 | H100: 257.87 | I100: 263.43 | J100: 267.07 | K100: 259.8 | L100: 250.6 | M100: 65.28287
A101: 92 | B101: HINDUNILVR | C101: 1676 | D101: 1666.02 | E101: 1649.63 | F101: 1623.27 | G101: 1606.88 | H101: 1692.38 | I101: 1708.77 | J101: 1735.13 | K101: 1682.4 | L101: 1639.65 | M101: 12.44751
A102: 93 | B102: HINDZINC | C102: 280 | D102: 278.48 | E102: 275.02 | F102: 270.03 | G102: 266.57 | H102: 283.47 | I102: 286.93 | J102: 291.92 | K102: 281.95 | L102: 273.5 | M102: 19.24866
A103: 94 | B103: HUDCO | C103: 54.45 | D103: 54.23 | E103: 53.27 | F103: 52.08 | G103: 51.12 | H103: 55.42 | I103: 56.38 | J103: 57.57 | K103: 55.2 | L103: 53.05 | M103: 6.37626
A104: 95 | B104: HDFC | C104: 1922.5 | D104: 1910.43 | E104: 1894.17 | F104: 1865.83 | G104: 1849.57 | H104: 1938.77 | I104: 1955.03 | J104: 1983.37 | K104: 1926.7 | L104: 1882.1 | M104: 26.09336
A105: 96 | B105: ITC | C105: 264.4 | D105: 264.30 | E105: 262.30 | F105: 260.20 | G105: 258.20 | H105: 266.40 | I105: 268.40 | J105: 270.50 | K105: 266.3 | L105: 262.2 | M105: 78.81279
A106: 97 | B106: ICICIBANK | C106: 273.25 | D106: 273.03 | E106: 271.22 | F106: 269.18 | G106: 267.37 | H106: 275.07 | I106: 276.88 | J106: 278.92 | K106: 274.85 | L106: 271 | M106: 82.33522
A107: 98 | B107: ICICIPRULI | C107: 370.05 | D107: 371.93 | E107: 366.62 | F107: 363.18 | G107: 357.87 | H107: 375.37 | I107: 380.68 | J107: 384.12 | K107: 377.25 | L107: 368.5 | M107: 8.21415
A108: 99 | B108: IDBI | C108: 51.75 | D108: 52.15 | E108: 50.85 | F108: 49.95 | G108: 48.65 | H108: 53.05 | I108: 54.35 | J108: 55.25 | K108: 53.45 | L108: 51.25 | M108: 214.9505
A109: 100 | B109: IDFCBANK | C109: 39.4 | D109: 39.38 | E109: 38.92 | F109: 38.43 | G109: 37.97 | H109: 39.87 | I109: 40.33 | J109: 40.82 | K109: 39.85 | L109: 38.9 | M109: 134.0719
A110: 101 | B110: IDFC | C110: 45.6 | D110: 45.83 | E110: 45.22 | F110: 44.83 | G110: 44.22 | H110: 46.22 | I110: 46.83 | J110: 47.22 | K110: 46.45 | L110: 45.45 | M110: 37.98972
A111: 102 | B111: IRB | C111: 210.1 | D111: 208.42 | E111: 205.18 | F111: 200.27 | G111: 197.03 | H111: 213.33 | I111: 216.57 | J111: 221.48 | K111: 211.65 | L111: 203.5 | M111: 8.81369
A112: 103 | B112: IDEA | C112: 55.15 | D112: 55.77 | E112: 54.43 | F112: 53.72 | G112: 52.38 | H112: 56.48 | I112: 57.82 | J112: 58.53 | K112: 57.1 | L112: 55.05 | M112: 101.86599
A113: 104 | B113: IBULHSGFIN | C113: 1139.7 | D113: 1141.80 | E113: 1123.90 | F113: 1108.10 | G113: 1090.20 | H113: 1157.60 | I113: 1175.50 | J113: 1191.30 | K113: 1159.7 | L113: 1126 | M113: 10.35005
A114: 105 | B114: INDIANB | C114: 337.25 | D114: 337.97 | E114: 333.73 | F114: 330.22 | G114: 325.98 | H114: 341.48 | I114: 345.72 | J114: 349.23 | K114: 342.2 | L114: 334.45 | M114: 8.4762
A115: 106 | B115: INDHOTEL | C115: 131 | D115: 130.87 | E115: 129.78 | F115: 128.57 | G115: 127.48 | H115: 132.08 | I115: 133.17 | J115: 134.38 | K115: 131.95 | L115: 129.65 | M115: 2.2851
A116: 107 | B116: IOC | C116: 155.25 | D116: 155.23 | E116: 154.12 | F116: 152.98 | G116: 151.87 | H116: 156.37 | I116: 157.48 | J116: 158.62 | K116: 156.35 | L116: 154.1 | M116: 59.4584
A117: 108 | B117: IGL | C117: 257.05 | D117: 257.48 | E117: 254.17 | F117: 251.28 | G117: 247.97 | H117: 260.37 | I117: 263.68 | J117: 266.57 | K117: 260.8 | L117: 254.6 | M117: 13.19652
A118: 109 | B118: INDUSINDBK | C118: 1976.3 | D118: 1969.12 | E118: 1952.48 | F118: 1928.67 | G118: 1912.03 | H118: 1992.93 | I118: 2009.57 | J118: 2033.38 | K118: 1985.75 | L118: 1945.3 | M118: 15.14361
A119: 110 | B119: NAUKRI | C119: 1163.65 | D119: 1167.58 | E119: 1148.42 | F119: 1133.18 | G119: 1114.02 | H119: 1182.82 | I119: 1201.98 | J119: 1217.22 | K119: 1186.75 | L119: 1152.35 | M119: 1.14142
A120: 111 | B120: INFY | C120: 1345.2 | D120: 1345.57 | E120: 1338.48 | F120: 1331.77 | G120: 1324.68 | H120: 1352.28 | I120: 1359.37 | J120: 1366.08 | K120: 1352.65 | L120: 1338.85 | M120: 25.12861
A121: 112 | B121: INDIGO | C121: 1081.1 | D121: 1076.63 | E121: 1068.27 | F121: 1055.43 | G121: 1047.07 | H121: 1089.47 | I121: 1097.83 | J121: 1110.67 | K121: 1085 | L121: 1063.8 | M121: 5.27078
A122: 113 | B122: IPCALAB | C122: 717.6 | D122: 707.32 | E122: 681.28 | F122: 644.97 | G122: 618.93 | H122: 743.63 | I122: 769.67 | J122: 805.98 | K122: 733.35 | L122: 671 | M122: 3.67986
A123: 114 | B123: JSWENERGY | C123: 66.4 | D123: 65.58 | E123: 64.47 | F123: 62.53 | G123: 61.42 | H123: 67.52 | I123: 68.63 | J123: 70.57 | K123: 66.7 | L123: 63.65 | M123: 8.68737
A124: 115 | B124: JSWSTEEL | C124: 312.15 | D124: 311.98 | E124: 308.67 | F124: 305.18 | G124: 301.87 | H124: 315.47 | I124: 318.78 | J124: 322.27 | K124: 315.3 | L124: 308.5 | M124: 38.38343
A125: 116 | B125: JINDALSTEL | C125: 216.45 | D125: 213.62 | E125: 209.33 | F125: 202.22 | G125: 197.93 | H125: 220.73 | I125: 225.02 | J125: 232.13 | K125: 217.9 | L125: 206.5 | M125: 110.75743
A126: 117 | B126: JUBLFOOD | C126: 1428.9 | D126: 1428.95 | E126: 1418.45 | F126: 1408.00 | G126: 1397.50 | H126: 1439.40 | I126: 1449.90 | J126: 1460.35 | K126: 1439.45 | L126: 1418.5 | M126: 9.80448
A127: 118 | B127: JUBILANT | C127: 714.15 | D127: 711.13 | E127: 700.27 | F127: 686.38 | G127: 675.52 | H127: 725.02 | I127: 735.88 | J127: 749.77 | K127: 722 | L127: 697.25 | M127: 2.72801
A128: 119 | B128: KARURVYSYA | C128: 101.25 | D128: 101.70 | E128: 100.45 | F128: 99.65 | G128: 98.40 | H128: 102.50 | I128: 103.75 | J128: 104.55 | K128: 102.95 | L128: 100.9 | M128: 3.51078
A129: 120 | B129: KOTAKBANK | C129: 1365.25 | D129: 1360.50 | E129: 1351.10 | F129: 1336.95 | G129: 1327.55 | H129: 1374.65 | I129: 1384.05 | J129: 1398.20 | K129: 1369.9 | L129: 1346.35 | M129: 13.47778
A130: 121 | B130: L&TFH | C130: 147.25 | D130: 147.35 | E130: 146.30 | F130: 145.35 | G130: 144.30 | H130: 148.30 | I130: 149.35 | J130: 150.30 | K130: 148.4 | L130: 146.4 | M130: 21.56813
A131: 122 | B131: LICHSGFIN | C131: 463 | D131: 464.85 | E131: 453.55 | F131: 444.10 | G131: 432.80 | H131: 474.30 | I131: 485.60 | J131: 495.05 | K131: 476.15 | L131: 455.4 | M131: 20.7646
A132: 123 | B132: LT | C132: 1259.5 | D132: 1254.70 | E132: 1248.00 | F132: 1236.50 | G132: 1229.80 | H132: 1266.20 | I132: 1272.90 | J132: 1284.40 | K132: 1261.4 | L132: 1243.2 | M132: 18.42579
A133: 124 | B133: LUPIN | C133: 934.2 | D133: 926.95 | E133: 914.90 | F133: 895.60 | G133: 883.55 | H133: 946.25 | I133: 958.30 | J133: 977.60 | K133: 939 | L133: 907.65 | M133: 56.74097
A134: 125 | B134: MRF | C134: 75896.95 | D134: 75765.65 | E134: 75181.30 | F134: 74465.65 | G134: 73881.30 | H134: 76481.30 | I134: 77065.65 | J134: 77781.30 | K134: 76350 | L134: 75050 | M134: 0.02761
A135: 126 | B135: MGL | C135: 813.45 | D135: 814.73 | E135: 805.57 | F135: 797.68 | G135: 788.52 | H135: 822.62 | I135: 831.78 | J135: 839.67 | K135: 823.9 | L135: 806.85 | M135: 1.80375
A136: 127 | B136: M&MFIN | C136: 462.1 | D136: 461.93 | E136: 455.17 | F136: 448.23 | G136: 441.47 | H136: 468.87 | I136: 475.63 | J136: 482.57 | K136: 468.7 | L136: 455 | M136: 21.82954
A137: 128 | B137: M&M | C137: 900.1 | D137: 896.10 | E137: 889.50 | F137: 878.90 | G137: 872.30 | H137: 906.70 | I137: 913.30 | J137: 923.90 | K137: 902.7 | L137: 885.5 | M137: 14.57165
A138: 129 | B138: MANAPPURAM | C138: 97 | D138: 97.82 | E138: 95.68 | F138: 94.37 | G138: 92.23 | H138: 99.13 | I138: 101.27 | J138: 102.58 | K138: 99.95 | L138: 96.5 | M138: 39.17557
A139: 130 | B139: MRPL | C139: 77.8 | D139: 77.78 | E139: 76.92 | F139: 76.03 | G139: 75.17 | H139: 78.67 | I139: 79.53 | J139: 80.42 | K139: 78.65 | L139: 76.9 | M139: 6.59434
A140: 131 | B140: MARICO | C140: 343.85 | D140: 342.28 | E140: 339.27 | F140: 334.68 | G140: 331.67 | H140: 346.87 | I140: 349.88 | J140: 354.47 | K140: 345.3 | L140: 337.7 | M140: 10.01539
A141: 132 | B141: MARUTI | C141: 9220.8 | D141: 9140.85 | E141: 9032.45 | F141: 8844.10 | G141: 8735.70 | H141: 9329.20 | I141: 9437.60 | J141: 9625.95 | K141: 9249.25 | L141: 8952.5 | M141: 6.56141
A142: 133 | B142: MFSL | C142: 407.95 | D142: 413.57 | E142: 400.13 | F142: 392.32 | G142: 378.88 | H142: 421.38 | I142: 434.82 | J142: 442.63 | K142: 427 | L142: 405.75 | M142: 5.73764
A143: 134 | B143: MINDTREE | C143: 1008.25 | D143: 1008.55 | E143: 1000.90 | F143: 993.55 | G143: 985.90 | H143: 1015.90 | I143: 1023.55 | J143: 1030.90 | K143: 1016.2 | L143: 1001.2 | M143: 7.89424
A144: 135 | B144: MOTHERSUMI | C144: 295.5 | D144: 294.12 | E144: 291.58 | F144: 287.67 | G144: 285.13 | H144: 298.03 | I144: 300.57 | J144: 304.48 | K144: 296.65 | L144: 290.2 | M144: 25.89444
A145: 136 | B145: MPHASIS | C145: 1090.1 | D145: 1095.37 | E145: 1075.73 | F145: 1061.37 | G145: 1041.73 | H145: 1109.73 | I145: 1129.37 | J145: 1143.73 | K145: 1115 | L145: 1081 | M145: 3.02162
A146: 137 | B146: MUTHOOTFIN | C146: 397.35 | D146: 393.48 | E146: 387.27 | F146: 377.18 | G146: 370.97 | H146: 403.57 | I146: 409.78 | J146: 419.87 | K146: 399.7 | L146: 383.4 | M146: 6.37813
A147: 138 | B147: NATCOPHARM | C147: 803.85 | D147: 804.42 | E147: 795.43 | F147: 787.02 | G147: 778.03 | H147: 812.83 | I147: 821.82 | J147: 830.23 | K147: 813.4 | L147: 796 | M147: 1.62613
A148: 139 | B148: NBCC | C148: 67.7 | D148: 68.95 | E148: 66.05 | F148: 64.40 | G148: 61.50 | H148: 70.60 | I148: 73.50 | J148: 75.15 | K148: 71.85 | L148: 67.3 | M148: 92.37695
A149: 140 | B149: NHPC | C149: 22.95 | D149: 22.93 | E149: 22.62 | F149: 22.28 | G149: 21.97 | H149: 23.27 | I149: 23.58 | J149: 23.92 | K149: 23.25 | L149: 22.6 | M149: 47.53762
A150: 141 | B150: NMDC | C150: 103.95 | D150: 104.27 | E150: 102.83 | F150: 101.72 | G150: 100.28 | H150: 105.38 | I150: 106.82 | J150: 107.93 | K150: 105.7 | L150: 103.15 | M150: 16.91146
A151: 142 | B151: NTPC | C151: 152.9 | D151: 153.75 | E151: 151.65 | F151: 150.40 | G151: 148.30 | H151: 155.00 | I151: 157.10 | J151: 158.35 | K151: 155.85 | L151: 152.5 | M151: 95.15047
A152: 143 | B152: NATIONALUM | C152: 62.1 | D152: 62.42 | E152: 61.33 | F152: 60.57 | G152: 59.48 | H152: 63.18 | I152: 64.27 | J152: 65.03 | K152: 63.5 | L152: 61.65 | M152: 83.91237
A153: 144 | B153: OBEROIRLTY | C153: 471.85 | D153: 471.65 | E153: 466.35 | F153: 460.85 | G153: 455.55 | H153: 477.15 | I153: 482.45 | J153: 487.95 | K153: 476.95 | L153: 466.15 | M153: 1.57423
A154: 145 | B154: ONGC | C154: 156 | D154: 156.35 | E154: 154.70 | F154: 153.40 | G154: 151.75 | H154: 157.65 | I154: 159.30 | J154: 160.60 | K154: 158 | L154: 155.05 | M154: 51.9403
A155: 146 | B155: OIL | C155: 208.25 | D155: 207.53 | E155: 205.17 | F155: 202.08 | G155: 199.72 | H155: 210.62 | I155: 212.98 | J155: 216.07 | K155: 209.9 | L155: 204.45 | M155: 4.15428
A156: 147 | B156: OFSS | C156: 3921.05 | D156: 3941.80 | E156: 3879.25 | F156: 3837.45 | G156: 3774.90 | H156: 3983.60 | I156: 4046.15 | J156: 4087.95 | K156: 4004.35 | L156: 3900 | M156: 0.14606
A157: 148 | B157: PCJEWELLER | C157: 131.75 | D157: 131.78 | E157: 128.17 | F157: 124.58 | G157: 120.97 | H157: 135.37 | I157: 138.98 | J157: 142.57 | K157: 135.4 | L157: 128.2 | M157: 78.63353
A158: 149 | B158: PIIND | C158: 792.2 | D158: 784.53 | E158: 764.07 | F158: 735.93 | G158: 715.47 | H158: 812.67 | I158: 833.13 | J158: 861.27 | K158: 805 | L158: 756.4 | M158: 0.68662
A159: 150 | B159: PNBHOUSING | C159: 1121.75 | D159: 1120.25 | E159: 1092.50 | F159: 1063.25 | G159: 1035.50 | H159: 1149.50 | I159: 1177.25 | J159: 1206.50 | K159: 1148 | L159: 1091 | M159: 2.24925
A160: 151 | B160: PAGEIND | C160: 28028.15 | D160: 28112.17 | E160: 27826.33 | F160: 27624.52 | G160: 27338.68 | H160: 28313.98 | I160: 28599.82 | J160: 28801.63 | K160: 28398 | L160: 27910.35 | M160: 0.19901
A161: 152 | B161: PETRONET | C161: 220 | D161: 219.03 | E161: 217.32 | F161: 214.63 | G161: 212.92 | H161: 221.72 | I161: 223.43 | J161: 226.12 | K161: 220.75 | L161: 216.35 | M161: 11.80834
A162: 153 | B162: PIDILITIND | C162: 1069.4 | D162: 1066.70 | E162: 1059.40 | F162: 1049.40 | G162: 1042.10 | H162: 1076.70 | I162: 1084.00 | J162: 1094.00 | K162: 1074 | L162: 1056.7 | M162: 1.91772
A163: 154 | B163: PEL | C163: 2464.3 | D163: 2450.05 | E163: 2417.15 | F163: 2370.00 | G163: 2337.10 | H163: 2497.20 | I163: 2530.10 | J163: 2577.25 | K163: 2482.95 | L163: 2402.9 | M163: 2.27008
A164: 155 | B164: PFC | C164: 72.55 | D164: 72.87 | E164: 71.68 | F164: 70.82 | G164: 69.63 | H164: 73.73 | I164: 74.92 | J164: 75.78 | K164: 74.05 | L164: 72 | M164: 64.94021
A165: 156 | B165: POWERGRID | C165: 183 | D165: 184.80 | E165: 180.35 | F165: 177.70 | G165: 173.25 | H165: 187.45 | I165: 191.90 | J165: 194.55 | K165: 189.25 | L165: 182.15 | M165: 59.77279
A166: 157 | B166: PRESTIGE | C166: 282.95 | D166: 279.77 | E166: 272.18 | F166: 261.42 | G166: 253.83 | H166: 290.53 | I166: 298.12 | J166: 308.88 | K166: 287.35 | L166: 269 | M166: 1.54398
A167: 158 | B167: PGHH | C167: 9877.85 | D167: 9870.08 | E167: 9807.77 | F167: 9737.68 | G167: 9675.37 | H167: 9940.17 | I167: 10002.48 | J167: 10072.57 | K167: 9932.4 | L167: 9800 | M167: 0.03979
A168: 159 | B168: PNB | C168: 76.1 | D168: 76.28 | E168: 75.42 | F168: 74.73 | G168: 73.87 | H168: 76.97 | I168: 77.83 | J168: 78.52 | K168: 77.15 | L168: 75.6 | M168: 154.53638
A169: 160 | B169: RBLBANK | C169: 570.25 | D169: 569.83 | E169: 563.67 | F169: 557.08 | G169: 550.92 | H169: 576.42 | I169: 582.58 | J169: 589.17 | K169: 576 | L169: 563.25 | M169: 22.66725
A170: 161 | B170: RAJESHEXPO | C170: 580.85 | D170: 586.45 | E170: 572.90 | F170: 564.95 | G170: 551.40 | H170: 594.40 | I170: 607.95 | J170: 615.90 | K170: 600 | L170: 578.5 | M170: 7.10765
A171: 162 | B171: RELCAPITAL | C171: 363.9 | D171: 365.13 | E171: 358.42 | F171: 352.93 | G171: 346.22 | H171: 370.62 | I171: 377.33 | J171: 382.82 | K171: 371.85 | L171: 359.65 | M171: 41.31338
A172: 163 | B172: RCOM | C172: 13.65 | D172: 13.75 | E172: 13.45 | F172: 13.25 | G172: 12.95 | H172: 13.95 | I172: 14.25 | J172: 14.45 | K172: 14.05 | L172: 13.55 | M172: 627.92631
A173: 164 | B173: RELIANCE | C173: 990.1 | D173: 984.37 | E173: 976.73 | F173: 963.37 | G173: 955.73 | H173: 997.73 | I173: 1005.37 | J173: 1018.73 | K173: 992 | L173: 971 | M173: 50.00724
A174: 165 | B174: RELINFRA | C174: 381.4 | D174: 382.55 | E174: 376.60 | F174: 371.80 | G174: 365.85 | H174: 387.35 | I174: 393.30 | J174: 398.10 | K174: 388.5 | L174: 377.75 | M174: 19.7543
A175: 166 | B175: RPOWER | C175: 30.8 | D175: 30.97 | E175: 30.38 | F175: 29.97 | G175: 29.38 | H175: 31.38 | I175: 31.97 | J175: 32.38 | K175: 31.55 | L175: 30.55 | M175: 50.64375
A176: 167 | B176: RECLTD | C176: 100.75 | D176: 101.02 | E176: 99.53 | F176: 98.32 | G176: 96.83 | H176: 102.23 | I176: 103.72 | J176: 104.93 | K176: 102.5 | L176: 99.8 | M176: 37.64546
A177: 168 | B177: SRF | C177: 1650.55 | D177: 1653.47 | E177: 1639.48 | F177: 1628.42 | G177: 1614.43 | H177: 1664.53 | I177: 1678.52 | J177: 1689.58 | K177: 1667.45 | L177: 1642.4 | M177: 1.69081
A178: 169 | B178: SHREECEM | C178: 15998.1 | D178: 15985.12 | E178: 15877.83 | F178: 15757.57 | G178: 15650.28 | H178: 16105.38 | I178: 16212.67 | J178: 16332.93 | K178: 16092.4 | L178: 15864.85 | M178: 0.06876
A179: 170 | B179: SRTRANSFIN | C179: 1145.25 | D179: 1139.10 | E179: 1054.15 | F179: 963.05 | G179: 878.10 | H179: 1230.20 | I179: 1315.15 | J179: 1406.25 | K179: 1224.05 | L179: 1048 | M179: 183.92412
A180: 171 | B180: SIEMENS | C180: 970.95 | D180: 973.63 | E180: 963.97 | F180: 956.98 | G180: 947.32 | H180: 980.62 | I180: 990.28 | J180: 997.27 | K180: 983.3 | L180: 966.65 | M180: 0.63218
A181: 172 | B181: SBIN | C181: 257.45 | D181: 256.77 | E181: 255.18 | F181: 252.92 | G181: 251.33 | H181: 259.03 | I181: 260.62 | J181: 262.88 | K181: 258.35 | L181: 254.5 | M181: 142.06935
A182: 173 | B182: SAIL | C182: 80.3 | D182: 80.13 | E182: 78.97 | F182: 77.63 | G182: 76.47 | H182: 81.47 | I182: 82.63 | J182: 83.97 | K182: 81.3 | L182: 78.8 | M182: 114.97091
A183: 174 | B183: SPARC | C183: 381.45 | D183: 383.87 | E183: 375.73 | F183: 370.02 | G183: 361.88 | H183: 389.58 | I183: 397.72 | J183: 403.43 | K183: 392 | L183: 378.15 | M183: 3.73181
A184: 175 | B184: SUNPHARMA | C184: 579.3 | D184: 580.40 | E184: 571.95 | F184: 564.60 | G184: 556.15 | H184: 587.75 | I184: 596.20 | J184: 603.55 | K184: 588.85 | L184: 573.05 | M184: 94.06196
A185: 176 | B185: SUNTV | C185: 792.85 | D185: 791.35 | E185: 782.70 | F185: 772.55 | G185: 763.90 | H185: 801.50 | I185: 810.15 | J185: 820.30 | K185: 800 | L185: 781.2 | M185: 13.28667
A186: 177 | B186: SUZLON | C186: 7.55 | D186: 7.50 | E186: 7.40 | F186: 7.25 | G186: 7.15 | H186: 7.65 | I186: 7.75 | J186: 7.90 | K186: 7.6 | L186: 7.35 | M186: 119.75882
A187: 178 | B187: SYNDIBANK | C187: 40.2 | D187: 40.12 | E187: 39.58 | F187: 38.97 | G187: 38.43 | H187: 40.73 | I187: 41.27 | J187: 41.88 | K187: 40.65 | L187: 39.5 | M187: 28.42622
A188: 179 | B188: SYNGENE | C188: 605.6 | D188: 607.27 | E188: 595.68 | F188: 585.77 | G188: 574.18 | H188: 617.18 | I188: 628.77 | J188: 638.68 | K188: 618.85 | L188: 597.35 | M188: 0.59155
A189: 180 | B189: TV18BRDCST | C189: 47.4 | D189: 47.55 | E189: 46.40 | F189: 45.40 | G189: 44.25 | H189: 48.55 | I189: 49.70 | J189: 50.70 | K189: 48.7 | L189: 46.55 | M189: 43.79269
A190: 181 | B190: TVSMOTOR | C190: 581.4 | D190: 575.53 | E190: 566.07 | F190: 550.73 | G190: 541.27 | H190: 590.87 | I190: 600.33 | J190: 615.67 | K190: 585 | L190: 560.2 | M190: 8.16786
A191: 182 | B191: TATACHEM | C191: 691.65 | D191: 695.48 | E191: 685.97 | F191: 680.28 | G191: 670.77 | H191: 701.17 | I191: 710.68 | J191: 716.37 | K191: 705 | L191: 689.8 | M191: 3.58908
A192: 183 | B192: TATACOMM | C192: 590.7 | D192: 590.10 | E192: 584.90 | F192: 579.10 | G192: 573.90 | H192: 595.90 | I192: 601.10 | J192: 606.90 | K192: 595.3 | L192: 584.3 | M192: 1.80726
A193: 184 | B193: TCS | C193: 1866.15 | D193: 1867.73 | E193: 1855.57 | F193: 1844.98 | G193: 1832.82 | H193: 1878.32 | I193: 1890.48 | J193: 1901.07 | K193: 1879.9 | L193: 1857.15 | M193: 27.00614
A194: 185 | B194: TATAGLOBAL | C194: 277.3 | D194: 277.88 | E194: 274.77 | F194: 272.23 | G194: 269.12 | H194: 280.42 | I194: 283.53 | J194: 286.07 | K194: 281 | L194: 275.35 | M194: 35.98212
A195: 186 | B195: TATAMTRDVR | C195: 157.35 | D195: 156.78 | E195: 155.32 | F195: 153.28 | G195: 151.82 | H195: 158.82 | I195: 160.28 | J195: 162.32 | K195: 158.25 | L195: 154.75 | M195: 15.90678
A196: 187 | B196: TATAMOTORS | C196: 267.05 | D196: 268.07 | E196: 264.63 | F196: 262.22 | G196: 258.78 | H196: 270.48 | I196: 273.92 | J196: 276.33 | K196: 271.5 | L196: 265.65 | M196: 73.94858
A197: 188 | B197: TATAPOWER | C197: 72.05 | D197: 72.07 | E197: 71.58 | F197: 71.12 | G197: 70.63 | H197: 72.53 | I197: 73.02 | J197: 73.48 | K197: 72.55 | L197: 71.6 | M197: 23.27587
A198: 189 | B198: TATASTEEL | C198: 571.1 | D198: 568.02 | E198: 562.63 | F198: 554.17 | G198: 548.78 | H198: 576.48 | I198: 581.87 | J198: 590.33 | K198: 573.4 | L198: 559.55 | M198: 68.62947
A199: 190 | B199: TECHM | C199: 654.5 | D199: 657.30 | E199: 649.20 | F199: 643.90 | G199: 635.80 | H199: 662.60 | I199: 670.70 | J199: 676.00 | K199: 665.4 | L199: 652 | M199: 20.70241
A200: 191 | B200: RAMCOCEM | C200: 701.9 | D200: 698.08 | E200: 692.32 | F200: 682.73 | G200: 676.97 | H200: 707.67 | I200: 713.43 | J200: 723.02 | K200: 703.85 | L200: 688.5 | M200: 0.79619
A201: 192 | B201: TITAN | C201: 886.55 | D201: 889.47 | E201: 879.58 | F201: 872.62 | G201: 862.73 | H201: 896.43 | I201: 906.32 | J201: 913.28 | K201: 899.35 | L201: 882.5 | M201: 11.04449
A202: 193 | B202: TORNTPHARM | C202: 1425.15 | D202: 1434.48 | E202: 1409.97 | F202: 1394.78 | G202: 1370.27 | H202: 1449.67 | I202: 1474.18 | J202: 1489.37 | K202: 1459 | L202: 1419.3 | M202: 1.69296
A203: 194 | B203: TORNTPOWER | C203: 218.25 | D203: 218.75 | E203: 214.60 | F203: 210.95 | G203: 206.80 | H203: 222.40 | I203: 226.55 | J203: 230.20 | K203: 222.9 | L203: 215.1 | M203: 8.26769
A204: 195 | B204: UPL | C204: 624.2 | D204: 626.25 | E204: 618.50 | F204: 612.80 | G204: 605.05 | H204: 631.95 | I204: 639.70 | J204: 645.40 | K204: 634 | L204: 620.55 | M204: 7.16832
A205: 196 | B205: ULTRACEMCO | C205: 3790.65 | D205: 3776.88 | E205: 3748.77 | F205: 3706.88 | G205: 3678.77 | H205: 3818.77 | I205: 3846.88 | J205: 3888.77 | K205: 3805 | L205: 3735 | M205: 1.90572
... 30 more rows

Sheet MidCap Intra
L5: Back To Main Page
A6: FOR INTRA DAY TRADING | K6: =Main!B10 -> 2018-07-05
A9: Sr.no | B9: Scrip | C9: CLOSE RATE | D9: Pivot Point | E9: Supports | H9: Resistances
C10: Point | E10: S1 | F10: S2 | G10: S3 | H10: R1 | I10: R2 | J10: R3 | K10: HIGH | L10: LOW | M10: Total Trade Quanity in Lakhs
A11: 1 | B11: 3MINDIA | C11: 19561.25 | D11: 19585.90 | E11: 19421.85 | F11: 19282.45 | G11: 19118.40 | H11: 19725.30 | I11: 19889.35 | J11: 20028.75 | K11: 19749.95 | L11: 19446.5 | M11: 0.00446
A12: 2 | B12: 8KMILES | C12: 348 | D12: 337.80 | E12: 327.60 | F12: 307.20 | G12: 297.00 | H12: 358.20 | I12: 368.40 | J12: 388.80 | K12: 348 | L12: 317.4 | M12: 28.60435
A13: 3 | B13: AARTIIND | C13: 1198.7 | D13: 1203.57 | E13: 1185.13 | F13: 1171.57 | G13: 1153.13 | H13: 1217.13 | I13: 1235.57 | J13: 1249.13 | K13: 1222 | L13: 1190 | M13: 0.16236
A14: 4 | B14: ABAN | C14: 113.75 | D14: 113.40 | E14: 111.55 | F14: 109.35 | G14: 107.50 | H14: 115.60 | I14: 117.45 | J14: 119.65 | K14: 115.25 | L14: 111.2 | M14: 8.44093
A15: 5 | B15: ABB | C15: 1179.35 | D15: 1180.08 | E15: 1170.32 | F15: 1161.28 | G15: 1151.52 | H15: 1189.12 | I15: 1198.88 | J15: 1207.92 | K15: 1189.85 | L15: 1171.05 | M15: 0.20762
A16: 6 | B16: ABCAPITAL | C16: 129.05 | D16: 129.02 | E16: 128.03 | F16: 127.02 | G16: 126.03 | H16: 130.03 | I16: 131.02 | J16: 132.03 | K16: 130 | L16: 128 | M16: 8.36873
A17: 7 | B17: ABFRL | C17: 137.9 | D17: 138.48 | E17: 136.47 | F17: 135.03 | G17: 133.02 | H17: 139.92 | I17: 141.93 | J17: 143.37 | K17: 140.5 | L17: 137.05 | M17: 1.43894
A18: 8 | B18: ACC | C18: 1350.85 | D18: 1347.37 | E18: 1335.23 | F18: 1319.62 | G18: 1307.48 | H18: 1362.98 | I18: 1375.12 | J18: 1390.73 | K18: 1359.5 | L18: 1331.75 | M18: 3.89155
A19: 9 | B19: ADANIPORTS | C19: 359.95 | D19: 359.80 | E19: 356.10 | F19: 352.25 | G19: 348.55 | H19: 363.65 | I19: 367.35 | J19: 371.20 | K19: 363.5 | L19: 355.95 | M19: 16.16705
A20: 10 | B20: ADANIPOWER | C20: 16.1 | D20: 16.03 | E20: 15.77 | F20: 15.43 | G20: 15.17 | H20: 16.37 | I20: 16.63 | J20: 16.97 | K20: 16.3 | L20: 15.7 | M20: 87.46331
A21: 11 | B21: ADANITRANS | C21: 156.85 | D21: 155.87 | E21: 152.23 | F21: 147.62 | G21: 143.98 | H21: 160.48 | I21: 164.12 | J21: 168.73 | K21: 159.5 | L21: 151.25 | M21: 5.93481
A22: 12 | B22: ADVENZYMES | C22: 212.3 | D22: 213.25 | E22: 211.05 | F22: 209.80 | G22: 207.60 | H22: 214.50 | I22: 216.70 | J22: 217.95 | K22: 215.45 | L22: 212 | M22: 0.43371
A23: 13 | B23: AEGISCHEM | C23: 209.4 | D23: 209.20 | E23: 207.40 | F23: 205.40 | G23: 203.60 | H23: 211.20 | I23: 213.00 | J23: 215.00 | K23: 211 | L23: 207.2 | M23: 0.38566
A24: 14 | B24: AIAENG | C24: 1549.45 | D24: 1536.33 | E24: 1502.67 | F24: 1455.88 | G24: 1422.22 | H24: 1583.12 | I24: 1616.78 | J24: 1663.57 | K24: 1570 | L24: 1489.55 | M24: 1.34255
A25: 15 | B25: AJANTPHARM | C25: 1030.8 | D25: 1034.08 | E25: 1018.72 | F25: 1006.63 | G25: 991.27 | H25: 1046.17 | I25: 1061.53 | J25: 1073.62 | K25: 1049.45 | L25: 1022 | M25: 5.97062
A26: 16 | B26: AKZOINDIA | C26: 1876.6 | D26: 1872.58 | E26: 1864.27 | F26: 1851.93 | G26: 1843.62 | H26: 1884.92 | I26: 1893.23 | J26: 1905.57 | K26: 1880.9 | L26: 1860.25 | M26: 0.01364
A27: 17 | B27: ALBK | C27: 40.9 | D27: 40.87 | E27: 40.43 | F27: 39.97 | G27: 39.53 | H27: 41.33 | I27: 41.77 | J27: 42.23 | K27: 41.3 | L27: 40.4 | M27: 37.84225
A28: 18 | B28: ALKEM | C28: 1868.15 | D28: 1877.05 | E28: 1851.15 | F28: 1834.15 | G28: 1808.25 | H28: 1894.05 | I28: 1919.95 | J28: 1936.95 | K28: 1902.95 | L28: 1860.05 | M28: 0.1198
A29: 19 | B29: ALLCARGO | C29: 117.3 | D29: 116.35 | E29: 113.00 | F29: 108.70 | G29: 105.35 | H29: 120.65 | I29: 124.00 | J29: 128.30 | K29: 119.7 | L29: 112.05 | M29: 13.32958
A30: 20 | B30: AMARAJABAT | C30: 777 | D30: 771.57 | E30: 761.48 | F30: 745.97 | G30: 735.88 | H30: 787.08 | I30: 797.17 | J30: 812.68 | K30: 781.65 | L30: 756.05 | M30: 4.46982
A31: 21 | B31: AMBUJACEM | C31: 201 | D31: 201.67 | E31: 199.03 | F31: 197.07 | G31: 194.43 | H31: 203.63 | I31: 206.27 | J31: 208.23 | K31: 204.3 | L31: 199.7 | M31: 22.62034
A32: 22 | B32: ANDHRABANK | C32: 31.95 | D32: 31.93 | E32: 31.52 | F32: 31.08 | G32: 30.67 | H32: 32.37 | I32: 32.78 | J32: 33.22 | K32: 32.35 | L32: 31.5 | M32: 31.38403
A33: 23 | B33: APLAPOLLO | C33: 1653.65 | D33: 1634.90 | E33: 1603.90 | F33: 1554.15 | G33: 1523.15 | H33: 1684.65 | I33: 1715.65 | J33: 1765.40 | K33: 1665.9 | L33: 1585.15 | M33: 0.25076
A34: 24 | B34: APLLTD | C34: 539.35 | D34: 542.27 | E34: 530.53 | F34: 521.72 | G34: 509.98 | H34: 551.08 | I34: 562.82 | J34: 571.63 | K34: 554 | L34: 533.45 | M34: 2.16087
A35: 25 | B35: APOLLOHOSP | C35: 1081.9 | D35: 1073.30 | E35: 1061.60 | F35: 1041.30 | G35: 1029.60 | H35: 1093.60 | I35: 1105.30 | J35: 1125.60 | K35: 1085 | L35: 1053 | M35: 4.49504
A36: 26 | B36: APOLLOTYRE | C36: 253.3 | D36: 251.37 | E36: 248.58 | F36: 243.87 | G36: 241.08 | H36: 256.08 | I36: 258.87 | J36: 263.58 | K36: 254.15 | L36: 246.65 | M36: 21.13615
A37: 27 | B37: ARVIND | C37: 396.75 | D37: 394.27 | E37: 390.83 | F37: 384.92 | G37: 381.48 | H37: 400.18 | I37: 403.62 | J37: 409.53 | K37: 397.7 | L37: 388.35 | M37: 7.2041
A38: 28 | B38: ASAHIINDIA | C38: 342.45 | D38: 339.77 | E38: 332.53 | F38: 322.62 | G38: 315.38 | H38: 349.68 | I38: 356.92 | J38: 366.83 | K38: 347 | L38: 329.85 | M38: 0.33766
A39: 29 | B39: ASHOKA | C39: 228 | D39: 230.98 | E39: 223.47 | F39: 218.93 | G39: 211.42 | H39: 235.52 | I39: 243.03 | J39: 247.57 | K39: 238.5 | L39: 226.45 | M39: 1.46582
A40: 30 | B40: ASHOKLEY | C40: 127.85 | D40: 127.97 | E40: 126.43 | F40: 125.02 | G40: 123.48 | H40: 129.38 | I40: 130.92 | J40: 132.33 | K40: 129.5 | L40: 126.55 | M40: 160.28413
A41: 31 | B41: ASIANPAINT | C41: 1289.8 | D41: 1290.83 | E41: 1281.72 | F41: 1273.63 | G41: 1264.52 | H41: 1298.92 | I41: 1308.03 | J41: 1316.12 | K41: 1299.95 | L41: 1282.75 | M41: 6.19316
A42: 32 | B42: ASTRAL | C42: 980.75 | D42: 983.87 | E42: 972.73 | F42: 964.72 | G42: 953.58 | H42: 991.88 | I42: 1003.02 | J42: 1011.03 | K42: 995 | L42: 975.85 | M42: 2.59242
A43: 33 | B43: ATUL | C43: 2683.85 | D43: 2689.32 | E43: 2659.63 | F43: 2635.42 | G43: 2605.73 | H43: 2713.53 | I43: 2743.22 | J43: 2767.43 | K43: 2719 | L43: 2665.1 | M43: 0.04507
A44: 34 | B44: AUBANK | C44: 680.2 | D44: 679.10 | E44: 665.10 | F44: 650.00 | G44: 636.00 | H44: 694.20 | I44: 708.20 | J44: 723.30 | K44: 693.1 | L44: 664 | M44: 0.7688
A45: 35 | B45: AUROPHARMA | C45: 625.45 | D45: 626.38 | E45: 619.37 | F45: 613.28 | G45: 606.27 | H45: 632.47 | I45: 639.48 | J45: 645.57 | K45: 633.4 | L45: 620.3 | M45: 26.3448
A46: 36 | B46: AVANTIFEED | C46: 509 | D46: 497.67 | E46: 481.33 | F46: 453.67 | G46: 437.33 | H46: 525.33 | I46: 541.67 | J46: 569.33 | K46: 514 | L46: 470 | M46: 23.71506
A47: 37 | B47: AXISBANK | C47: 514.75 | D47: 512.88 | E47: 509.52 | F47: 504.28 | G47: 500.92 | H47: 518.12 | I47: 521.48 | J47: 526.72 | K47: 516.25 | L47: 507.65 | M47: 38.93493
A48: 38 | B48: BAJAJ-AUTO | C48: 2979.05 | D48: 2941.28 | E48: 2893.57 | F48: 2808.08 | G48: 2760.37 | H48: 3026.77 | I48: 3074.48 | J48: 3159.97 | K48: 2989 | L48: 2855.8 | M48: 8.45034
A49: 39 | B49: BAJAJCORP | C49: 408.75 | D49: 410.02 | E49: 400.03 | F49: 391.32 | G49: 381.33 | H49: 418.73 | I49: 428.72 | J49: 437.43 | K49: 420 | L49: 401.3 | M49: 0.27839
A50: 40 | B50: BAJAJELEC | C50: 522.05 | D50: 525.68 | E50: 515.87 | F50: 509.68 | G50: 499.87 | H50: 531.87 | I50: 541.68 | J50: 547.87 | K50: 535.5 | L50: 519.5 | M50: 3.14949
A51: 41 | B51: BAJAJFINSV | C51: 6032.85 | D51: 5986.58 | E51: 5924.17 | F51: 5815.48 | G51: 5753.07 | H51: 6095.27 | I51: 6157.68 | J51: 6266.37 | K51: 6049 | L51: 5877.9 | M51: 1.92202
A52: 42 | B52: BAJAJHIND | C52: 6.5 | D52: 6.47 | E52: 6.38 | F52: 6.27 | G52: 6.18 | H52: 6.58 | I52: 6.67 | J52: 6.78 | K52: 6.55 | L52: 6.35 | M52: 12.21065
A53: 43 | B53: BAJAJHLDNG | C53: 2959.5 | D53: 2941.68 | E53: 2903.37 | F53: 2847.23 | G53: 2808.92 | H53: 2997.82 | I53: 3036.13 | J53: 3092.27 | K53: 2980 | L53: 2885.55 | M53: 0.1692
A54: 44 | B54: BAJFINANCE | C54: 2331.4 | D54: 2327.65 | E54: 2310.30 | F54: 2289.20 | G54: 2271.85 | H54: 2348.75 | I54: 2366.10 | J54: 2387.20 | K54: 2345 | L54: 2306.55 | M54: 9.16379
A55: 45 | B55: BALKRISIND | C55: 1138.6 | D55: 1120.50 | E55: 1094.00 | F55: 1049.40 | G55: 1022.90 | H55: 1165.10 | I55: 1191.60 | J55: 1236.20 | K55: 1147 | L55: 1075.9 | M55: 8.51693
A56: 46 | B56: BALLARPUR | C56: 10.1 | D56: 10.18 | E56: 9.97 | F56: 9.83 | G56: 9.62 | H56: 10.32 | I56: 10.53 | J56: 10.67 | K56: 10.4 | L56: 10.05 | M56: 5.74375
A57: 47 | B57: BALMLAWRIE | C57: 208.65 | D57: 209.23 | E57: 207.07 | F57: 205.48 | G57: 203.32 | H57: 210.82 | I57: 212.98 | J57: 214.57 | K57: 211.4 | L57: 207.65 | M57: 0.54016
A58: 48 | B58: BALRAMCHIN | C58: 62.6 | D58: 62.65 | E58: 61.95 | F58: 61.30 | G58: 60.60 | H58: 63.30 | I58: 64.00 | J58: 64.65 | K58: 63.35 | L58: 62 | M58: 42.0957
A59: 49 | B59: BANKBARODA | C59: 113.1 | D59: 113.05 | E59: 112.30 | F59: 111.50 | G59: 110.75 | H59: 113.85 | I59: 114.60 | J59: 115.40 | K59: 113.8 | L59: 112.25 | M59: 88.61062
A60: 50 | B60: BANKINDIA | C60: 85.9 | D60: 86.13 | E60: 84.77 | F60: 83.63 | G60: 82.27 | H60: 87.27 | I60: 88.63 | J60: 89.77 | K60: 87.5 | L60: 85 | M60: 48.68538
A61: 51 | B61: BASF | C61: 1942.75 | D61: 1931.57 | E61: 1903.13 | F61: 1863.52 | G61: 1835.08 | H61: 1971.18 | I61: 1999.62 | J61: 2039.23 | K61: 1960 | L61: 1891.95 | M61: 0.19085
A62: 52 | B62: BATAINDIA | C62: 828.7 | D62: 833.90 | E62: 821.00 | F62: 813.30 | G62: 800.40 | H62: 841.60 | I62: 854.50 | J62: 862.20 | K62: 846.8 | L62: 826.2 | M62: 10.60828
A63: 53 | B63: BBTC | C63: 1437.1 | D63: 1435.43 | E63: 1413.92 | F63: 1390.73 | G63: 1369.22 | H63: 1458.62 | I63: 1480.13 | J63: 1503.32 | K63: 1456.95 | L63: 1412.25 | M63: 1.10263
A64: 54 | B64: BEL | C64: 104.35 | D64: 105.15 | E64: 103.05 | F64: 101.75 | G64: 99.65 | H64: 106.45 | I64: 108.55 | J64: 109.85 | K64: 107.25 | L64: 103.85 | M64: 43.52715
A65: 55 | B65: BEML | C65: 825.9 | D65: 823.27 | E65: 812.63 | F65: 799.37 | G65: 788.73 | H65: 836.53 | I65: 847.17 | J65: 860.43 | K65: 833.9 | L65: 810 | M65: 7.64319
A66: 56 | B66: BERGEPAINT | C66: 286.15 | D66: 286.13 | E66: 283.52 | F66: 280.88 | G66: 278.27 | H66: 288.77 | I66: 291.38 | J66: 294.02 | K66: 288.75 | L66: 283.5 | M66: 4.60699
A67: 57 | B67: BFUTILITIE | C67: 310.25 | D67: 310.82 | E67: 303.73 | F67: 297.22 | G67: 290.13 | H67: 317.33 | I67: 324.42 | J67: 330.93 | K67: 317.9 | L67: 304.3 | M67: 3.13815
A68: 58 | B68: BGRENERGY | C68: 92 | D68: 92.23 | E68: 91.02 | F68: 90.03 | G68: 88.82 | H68: 93.22 | I68: 94.43 | J68: 95.42 | K68: 93.45 | L68: 91.25 | M68: 1.24438
A69: 59 | B69: BHARATFIN | C69: 1194.25 | D69: 1188.47 | E69: 1178.78 | F69: 1163.32 | G69: 1153.63 | H69: 1203.93 | I69: 1213.62 | J69: 1229.08 | K69: 1198.15 | L69: 1173 | M69: 3.53296
A70: 60 | B70: BHARATFORG | C70: 636.75 | D70: 630.45 | E70: 622.10 | F70: 607.45 | G70: 599.10 | H70: 645.10 | I70: 653.45 | J70: 668.10 | K70: 638.8 | L70: 615.8 | M70: 11.02281
A71: 61 | B71: BHARTIARTL | C71: 367.4 | D71: 367.33 | E71: 362.77 | F71: 358.13 | G71: 353.57 | H71: 371.97 | I71: 376.53 | J71: 381.17 | K71: 371.9 | L71: 362.7 | M71: 39.25362
A72: 62 | B72: BHEL | C72: 69.2 | D72: 69.38 | E72: 68.37 | F72: 67.53 | G72: 66.52 | H72: 70.22 | I72: 71.23 | J72: 72.07 | K72: 70.4 | L72: 68.55 | M72: 52.6676
A73: 63 | B73: BHUSANSTL | C73: 29.3 | D73: 28.78 | E73: 28.27 | F73: 27.23 | G73: 26.72 | H73: 29.82 | I73: 30.33 | J73: 31.37 | K73: 29.3 | L73: 27.75 | M73: 9.41743
A74: 64 | B74: BIOCON | C74: 628.25 | D74: 628.58 | E74: 621.17 | F74: 614.08 | G74: 606.67 | H74: 635.67 | I74: 643.08 | J74: 650.17 | K74: 636 | L74: 621.5 | M74: 15.87731
A75: 65 | B75: BIRLACORPN | C75: 707.7 | D75: 711.07 | E75: 701.63 | F75: 695.57 | G75: 686.13 | H75: 717.13 | I75: 726.57 | J75: 732.63 | K75: 720.5 | L75: 705 | M75: 0.77572
A76: 66 | B76: BLISSGVS | C76: 179.3 | D76: 177.60 | E76: 165.70 | F76: 152.10 | G76: 140.20 | H76: 191.20 | I76: 203.10 | J76: 216.70 | K76: 189.5 | L76: 164 | M76: 3.13802
A77: 67 | B77: BLUEDART | C77: 3632.45 | D77: 3646.67 | E77: 3594.33 | F77: 3556.22 | G77: 3503.88 | H77: 3684.78 | I77: 3737.12 | J77: 3775.23 | K77: 3699 | L77: 3608.55 | M77: 0.01594
A78: 68 | B78: BLUESTARCO | C78: 646.45 | D78: 645.83 | E78: 641.92 | F78: 637.38 | G78: 633.47 | H78: 650.37 | I78: 654.28 | J78: 658.82 | K78: 649.75 | L78: 641.3 | M78: 0.17338
A79: 69 | B79: BOMDYEING | C79: 211.35 | D79: 210.02 | E79: 206.93 | F79: 202.52 | G79: 199.43 | H79: 214.43 | I79: 217.52 | J79: 221.93 | K79: 213.1 | L79: 205.6 | M79: 4.55109
A80: 70 | B80: BOSCHLTD | C80: 17508.8 | D80: 17501.25 | E80: 17367.55 | F80: 17226.30 | G80: 17092.60 | H80: 17642.50 | I80: 17776.20 | J80: 17917.45 | K80: 17634.95 | L80: 17360 | M80: 0.04665
A81: 71 | B81: BPCL | C81: 367.85 | D81: 369.32 | E81: 363.18 | F81: 358.52 | G81: 352.38 | H81: 373.98 | I81: 380.12 | J81: 384.78 | K81: 375.45 | L81: 364.65 | M81: 33.60223
A82: 72 | B82: BRFL | C82: 24.1 | D82: 24.27 | E82: 23.53 | F82: 22.97 | G82: 22.23 | H82: 24.83 | I82: 25.57 | J82: 26.13 | K82: 25 | L82: 23.7 | M82: 0.37419
A83: 73 | B83: BRIGADE | C83: 215.45 | D83: 213.63 | E83: 207.87 | F83: 200.28 | G83: 194.52 | H83: 221.22 | I83: 226.98 | J83: 234.57 | K83: 219.4 | L83: 206.05 | M83: 0.21721
A84: 74 | B84: BRITANNIA | C84: 6299.75 | D84: 6276.30 | E84: 6233.50 | F84: 6167.25 | G84: 6124.45 | H84: 6342.55 | I84: 6385.35 | J84: 6451.60 | K84: 6319.1 | L84: 6210.05 | M84: 0.98954
A85: 75 | B85: BSE | C85: 854.9 | D85: 851.93 | E85: 843.97 | F85: 833.03 | G85: 825.07 | H85: 862.87 | I85: 870.83 | J85: 881.77 | K85: 859.9 | L85: 841 | M85: 1.12621
A86: 77 | B86: CADILAHC | C86: 394.7 | D86: 393.23 | E86: 389.67 | F86: 384.63 | G86: 381.07 | H86: 398.27 | I86: 401.83 | J86: 406.87 | K86: 396.8 | L86: 388.2 | M86: 12.30554
A87: 78 | B87: CANBK | C87: 244.65 | D87: 244.43 | E87: 242.22 | F87: 239.78 | G87: 237.57 | H87: 246.87 | I87: 249.08 | J87: 251.52 | K87: 246.65 | L87: 242 | M87: 58.5357
A88: 79 | B88: CANFINHOME | C88: 335.05 | D88: 337.12 | E88: 332.18 | F88: 329.32 | G88: 324.38 | H88: 339.98 | I88: 344.92 | J88: 347.78 | K88: 342.05 | L88: 334.25 | M88: 5.19879
A89: 80 | B89: CAPF | C89: 519 | D89: 520.33 | E89: 514.67 | F89: 510.33 | G89: 504.67 | H89: 524.67 | I89: 530.33 | J89: 534.67 | K89: 526 | L89: 516 | M89: 2.55435
A90: 81 | B90: CAPLIPOINT | C90: 398.5 | D90: 401.35 | E90: 390.70 | F90: 382.90 | G90: 372.25 | H90: 409.15 | I90: 419.80 | J90: 427.60 | K90: 412 | L90: 393.55 | M90: 0.51792
A91: 82 | B91: CARBORUNIV | C91: 319.55 | D91: 319.22 | E91: 316.43 | F91: 313.32 | G91: 310.53 | H91: 322.33 | I91: 325.12 | J91: 328.23 | K91: 322 | L91: 316.1 | M91: 0.13039
A92: 83 | B92: CARERATING | C92: 1252.55 | D92: 1245.73 | E92: 1227.82 | F92: 1203.08 | G92: 1185.17 | H92: 1270.47 | I92: 1288.38 | J92: 1313.12 | K92: 1263.65 | L92: 1221 | M92: 0.45648
A93: 84 | B93: CASTROLIND | C93: 160.85 | D93: 159.25 | E93: 156.35 | F93: 151.85 | G93: 148.95 | H93: 163.75 | I93: 166.65 | J93: 171.15 | K93: 162.15 | L93: 154.75 | M93: 27.67782
A94: 85 | B94: CCL | C94: 266.3 | D94: 267.02 | E94: 264.38 | F94: 262.47 | G94: 259.83 | H94: 268.93 | I94: 271.57 | J94: 273.48 | K94: 269.65 | L94: 265.1 | M94: 0.21641
A95: 86 | B95: CDSL | C95: 273.4 | D95: 273.00 | E95: 269.35 | F95: 265.30 | G95: 261.65 | H95: 277.05 | I95: 280.70 | J95: 284.75 | K95: 276.65 | L95: 268.95 | M95: 3.68893
A96: 87 | B96: CEATLTD | C96: 1269.7 | D96: 1260.52 | E96: 1247.18 | F96: 1224.67 | G96: 1211.33 | H96: 1283.03 | I96: 1296.37 | J96: 1318.88 | K96: 1273.85 | L96: 1238 | M96: 4.92606
A97: 88 | B97: CENTRALBK | C97: 67.45 | D97: 67.47 | E97: 67.03 | F97: 66.62 | G97: 66.18 | H97: 67.88 | I97: 68.32 | J97: 68.73 | K97: 67.9 | L97: 67.05 | M97: 2.06221
A98: 89 | B98: CENTURYPLY | C98: 247.15 | D98: 247.82 | E98: 244.68 | F98: 242.22 | G98: 239.08 | H98: 250.28 | I98: 253.42 | J98: 255.88 | K98: 250.95 | L98: 245.35 | M98: 0.92803
A99: 90 | B99: CENTURYTEX | C99: 872.25 | D99: 873.32 | E99: 862.03 | F99: 851.82 | G99: 840.53 | H99: 883.53 | I99: 894.82 | J99: 905.03 | K99: 884.6 | L99: 863.1 | M99: 6.2057
A100: 91 | B100: CERA | C100: 2736.05 | D100: 2753.15 | E100: 2708.40 | F100: 2680.75 | G100: 2636.00 | H100: 2780.80 | I100: 2825.55 | J100: 2853.20 | K100: 2797.9 | L100: 2725.5 | M100: 0.01782
A101: 92 | B101: CGPOWER | C101: 57.8 | D101: 56.55 | E101: 54.60 | F101: 51.40 | G101: 49.45 | H101: 59.75 | I101: 61.70 | J101: 64.90 | K101: 58.5 | L101: 53.35 | M101: 115.62871
A102: 93 | B102: CHAMBLFERT | C102: 154.55 | D102: 155.15 | E102: 153.40 | F102: 152.25 | G102: 150.50 | H102: 156.30 | I102: 158.05 | J102: 159.20 | K102: 156.9 | L102: 154 | M102: 3.14986
A103: 94 | B103: CHENNPETRO | C103: 299.35 | D103: 298.68 | E103: 295.37 | F103: 291.38 | G103: 288.07 | H103: 302.67 | I103: 305.98 | J103: 309.97 | K103: 302 | L103: 294.7 | M103: 3.39182
A104: 95 | B104: CHOLAFIN | C104: 1501.95 | D104: 1501.88 | E104: 1483.77 | F104: 1465.58 | G104: 1447.47 | H104: 1520.07 | I104: 1538.18 | J104: 1556.37 | K104: 1520 | L104: 1483.7 | M104: 1.88292
A105: 96 | B105: CIPLA | C105: 628.9 | D105: 633.57 | E105: 619.13 | F105: 609.37 | G105: 594.93 | H105: 643.33 | I105: 657.77 | J105: 667.53 | K105: 648 | L105: 623.8 | M105: 50.43141
A106: 97 | B106: COALINDIA | C106: 264.35 | D106: 263.63 | E106: 260.32 | F106: 256.28 | G106: 252.97 | H106: 267.67 | I106: 270.98 | J106: 275.02 | K106: 266.95 | L106: 259.6 | M106: 30.32831
A107: 98 | B107: COCHINSHIP | C107: 432.75 | D107: 434.50 | E107: 430.25 | F107: 427.75 | G107: 423.50 | H107: 437.00 | I107: 441.25 | J107: 443.75 | K107: 438.75 | L107: 432 | M107: 0.43607
A108: 99 | B108: COFFEEDAY | C108: 259.45 | D108: 263.50 | E108: 253.00 | F108: 246.55 | G108: 236.05 | H108: 269.95 | I108: 280.45 | J108: 286.90 | K108: 274 | L108: 257.05 | M108: 9.23879
A109: 100 | B109: COLPAL | C109: 1166.2 | D109: 1166.95 | E109: 1149.30 | F109: 1132.40 | G109: 1114.75 | H109: 1183.85 | I109: 1201.50 | J109: 1218.40 | K109: 1184.6 | L109: 1150.05 | M109: 5.92588
A110: 101 | B110: CONCOR | C110: 648.25 | D110: 650.07 | E110: 642.18 | F110: 636.12 | G110: 628.23 | H110: 656.13 | I110: 664.02 | J110: 670.08 | K110: 657.95 | L110: 644 | M110: 3.25118
A111: 102 | B111: COROMANDEL | C111: 434.5 | D111: 430.88 | E111: 423.77 | F111: 413.03 | G111: 405.92 | H111: 441.62 | I111: 448.73 | J111: 459.47 | K111: 438 | L111: 420.15 | M111: 1.43372
A112: 103 | B112: COX&KINGS | C112: 208.5 | D112: 207.43 | E112: 205.07 | F112: 201.63 | G112: 199.27 | H112: 210.87 | I112: 213.23 | J112: 216.67 | K112: 209.8 | L112: 204 | M112: 0.75721
A113: 104 | B113: CRISIL | C113: 1782.1 | D113: 1775.98 | E113: 1763.02 | F113: 1743.93 | G113: 1730.97 | H113: 1795.07 | I113: 1808.03 | J113: 1827.12 | K113: 1788.95 | L113: 1756.9 | M113: 0.0277
A114: 105 | B114: CROMPTON | C114: 226.6 | D114: 226.17 | E114: 224.53 | F114: 222.47 | G114: 220.83 | H114: 228.23 | I114: 229.87 | J114: 231.93 | K114: 227.8 | L114: 224.1 | M114: 4.55082
A115: 106 | B115: CUB | C115: 187.85 | D115: 187.32 | E115: 185.73 | F115: 183.62 | G115: 182.03 | H115: 189.43 | I115: 191.02 | J115: 193.13 | K115: 188.9 | L115: 185.2 | M115: 1.39526
A116: 107 | B116: CUMMINSIND | C116: 650.65 | D116: 652.93 | E116: 646.37 | F116: 642.08 | G116: 635.52 | H116: 657.22 | I116: 663.78 | J116: 668.07 | K116: 659.5 | L116: 648.65 | M116: 0.53316
A117: 108 | B117: CYIENT | C117: 733.3 | D117: 737.93 | E117: 725.87 | F117: 718.43 | G117: 706.37 | H117: 745.37 | I117: 757.43 | J117: 764.87 | K117: 750 | L117: 730.5 | M117: 1.51889
A118: 109 | B118: DABUR | C118: 379.75 | D118: 380.47 | E118: 376.98 | F118: 374.22 | G118: 370.73 | H118: 383.23 | I118: 386.72 | J118: 389.48 | K118: 383.95 | L118: 377.7 | M118: 24.52019
A119: 110 | B119: DBCORP | C119: 263.45 | D119: 262.90 | E119: 261.80 | F119: 260.15 | G119: 259.05 | H119: 264.55 | I119: 265.65 | J119: 267.30 | K119: 264 | L119: 261.25 | M119: 0.37004
A120: 111 | B120: DBL | C120: 689.55 | D120: 670.78 | E120: 650.02 | F120: 610.48 | G120: 589.72 | H120: 710.32 | I120: 731.08 | J120: 770.62 | K120: 691.55 | L120: 631.25 | M120: 5.58442
A121: 112 | B121: DBREALTY | C121: 37.3 | D121: 37.95 | E121: 36.35 | F121: 35.40 | G121: 33.80 | H121: 38.90 | I121: 40.50 | J121: 41.45 | K121: 39.55 | L121: 37 | M121: 3.73191
A122: 113 | B122: DCAL | C122: 265.05 | D122: 263.50 | E122: 260.50 | F122: 255.95 | G122: 252.95 | H122: 268.05 | I122: 271.05 | J122: 275.60 | K122: 266.5 | L122: 258.95 | M122: 0.87541
A123: 114 | B123: DCBBANK | C123: 167.8 | D123: 167.20 | E123: 164.40 | F123: 161.00 | G123: 158.20 | H123: 170.60 | I123: 173.40 | J123: 176.80 | K123: 170 | L123: 163.8 | M123: 8.97662
A124: 115 | B124: DCMSHRIRAM | C124: 310.2 | D124: 306.98 | E124: 301.97 | F124: 293.73 | G124: 288.72 | H124: 315.22 | I124: 320.23 | J124: 328.47 | K124: 312 | L124: 298.75 | M124: 3.62963
A125: 116 | B125: DEEPAKFERT | C125: 270.75 | D125: 270.67 | E125: 265.63 | F125: 260.52 | G125: 255.48 | H125: 275.78 | I125: 280.82 | J125: 285.93 | K125: 275.7 | L125: 265.55 | M125: 2.12267
A126: 117 | B126: DELTACORP | C126: 225.75 | D126: 224.00 | E126: 221.00 | F126: 216.25 | G126: 213.25 | H126: 228.75 | I126: 231.75 | J126: 236.50 | K126: 227 | L126: 219.25 | M126: 16.77827
A127: 118 | B127: DEN | C127: 75.3 | D127: 76.13 | E127: 73.77 | F127: 72.23 | G127: 69.87 | H127: 77.67 | I127: 80.03 | J127: 81.57 | K127: 78.5 | L127: 74.6 | M127: 4.50369
A128: 119 | B128: DENABANK | C128: 15.5 | D128: 15.50 | E128: 15.15 | F128: 14.80 | G128: 14.45 | H128: 15.85 | I128: 16.20 | J128: 16.55 | K128: 15.85 | L128: 15.15 | M128: 21.03076
A129: 120 | B129: DHFL | C129: 623.15 | D129: 624.97 | E129: 619.18 | F129: 615.22 | G129: 609.43 | H129: 628.93 | I129: 634.72 | J129: 638.68 | K129: 630.75 | L129: 621 | M129: 39.21122
A130: 121 | B130: DISHTV | C130: 71.9 | D130: 72.05 | E130: 71.50 | F130: 71.10 | G130: 70.55 | H130: 72.45 | I130: 73.00 | J130: 73.40 | K130: 72.6 | L130: 71.65 | M130: 64.50893
A131: 122 | B131: DIVISLAB | C131: 1102.3 | D131: 1093.42 | E131: 1080.88 | F131: 1059.47 | G131: 1046.93 | H131: 1114.83 | I131: 1127.37 | J131: 1148.78 | K131: 1105.95 | L131: 1072 | M131: 13.47815
A132: 123 | B132: DIXON | C132: 2891.8 | D132: 2904.93 | E132: 2866.87 | F132: 2841.93 | G132: 2803.87 | H132: 2929.87 | I132: 2967.93 | J132: 2992.87 | K132: 2943 | L132: 2880 | M132: 0.41483
A133: 124 | B133: DLF | C133: 185.3 | D133: 185.27 | E133: 183.58 | F133: 181.87 | G133: 180.18 | H133: 186.98 | I133: 188.67 | J133: 190.38 | K133: 186.95 | L133: 183.55 | M133: 37.18019
A134: 125 | B134: DMART | C134: 1538.3 | D134: 1539.75 | E134: 1521.55 | F134: 1504.80 | G134: 1486.60 | H134: 1556.50 | I134: 1574.70 | J134: 1591.45 | K134: 1557.95 | L134: 1523 | M134: 7.49317
A135: 126 | B135: DREDGECORP | C135: 504.9 | D135: 506.80 | E135: 493.60 | F135: 482.30 | G135: 469.10 | H135: 518.10 | I135: 531.30 | J135: 542.60 | K135: 520 | L135: 495.5 | M135: 2.95331
A136: 127 | B136: DRREDDY | C136: 2317.25 | D136: 2309.68 | E136: 2281.37 | F136: 2245.48 | G136: 2217.17 | H136: 2345.57 | I136: 2373.88 | J136: 2409.77 | K136: 2338 | L136: 2273.8 | M136: 10.65535
A137: 128 | B137: ECLERX | C137: 1287.8 | D137: 1287.90 | E137: 1277.95 | F137: 1268.10 | G137: 1258.15 | H137: 1297.75 | I137: 1307.70 | J137: 1317.55 | K137: 1297.85 | L137: 1278.05 | M137: 0.05001
A138: 129 | B138: EDELWEISS | C138: 288.95 | D138: 290.28 | E138: 285.72 | F138: 282.48 | G138: 277.92 | H138: 293.52 | I138: 298.08 | J138: 301.32 | K138: 294.85 | L138: 287.05 | M138: 22.75969
A139: 130 | B139: EICHERMOT | C139: 28238 | D139: 28237.67 | E139: 28085.33 | F139: 27932.67 | G139: 27780.33 | H139: 28390.33 | I139: 28542.67 | J139: 28695.33 | K139: 28390 | L139: 28085 | M139: 0.37877
A140: 131 | B140: EIDPARRY | C140: 227.35 | D140: 227.80 | E140: 223.55 | F140: 219.75 | G140: 215.50 | H140: 231.60 | I140: 235.85 | J140: 239.65 | K140: 232.05 | L140: 224 | M140: 0.69065
A141: 132 | B141: EIHOTEL | C141: 165.8 | D141: 164.50 | E141: 161.50 | F141: 157.20 | G141: 154.20 | H141: 168.80 | I141: 171.80 | J141: 176.10 | K141: 167.5 | L141: 160.2 | M141: 1.69179
A142: 133 | B142: EMAMILTD | C142: 517.6 | D142: 520.87 | E142: 511.73 | F142: 505.87 | G142: 496.73 | H142: 526.73 | I142: 535.87 | J142: 541.73 | K142: 530 | L142: 515 | M142: 2.18892
A143: 134 | B143: ENDURANCE | C143: 1249.35 | D143: 1250.07 | E143: 1234.33 | F143: 1219.32 | G143: 1203.58 | H143: 1265.08 | I143: 1280.82 | J143: 1295.83 | K143: 1265.8 | L143: 1235.05 | M143: 0.10031
A144: 135 | B144: ENGINERSIN | C144: 123.3 | D144: 123.25 | E144: 121.80 | F144: 120.30 | G144: 118.85 | H144: 124.75 | I144: 126.20 | J144: 127.70 | K144: 124.7 | L144: 121.75 | M144: 20.37229
A145: 136 | B145: EQUITAS | C145: 138.9 | D145: 137.65 | E145: 135.70 | F145: 132.50 | G145: 130.55 | H145: 140.85 | I145: 142.80 | J145: 146.00 | K145: 139.6 | L145: 134.45 | M145: 9.14607
A146: 137 | B146: ERIS | C146: 697.45 | D146: 687.83 | E146: 674.62 | F146: 651.78 | G146: 638.57 | H146: 710.67 | I146: 723.88 | J146: 746.72 | K146: 701.05 | L146: 665 | M146: 3.18632
A147: 138 | B147: EROSMEDIA | C147: 116.05 | D147: 115.33 | E147: 112.77 | F147: 109.48 | G147: 106.92 | H147: 118.62 | I147: 121.18 | J147: 124.47 | K147: 117.9 | L147: 112.05 | M147: 3.20107
A148: 139 | B148: ESCORTS | C148: 879.95 | D148: 872.98 | E148: 862.07 | F148: 844.18 | G148: 833.27 | H148: 890.87 | I148: 901.78 | J148: 919.67 | K148: 883.9 | L148: 855.1 | M148: 6.88067
A149: 140 | B149: EVEREADY | C149: 220.1 | D149: 220.60 | E149: 216.20 | F149: 212.30 | G149: 207.90 | H149: 224.50 | I149: 228.90 | J149: 232.80 | K149: 225 | L149: 216.7 | M149: 2.71978
A150: 141 | B150: EXIDEIND | C150: 262.35 | D150: 262.58 | E150: 259.77 | F150: 257.18 | G150: 254.37 | H150: 265.17 | I150: 267.98 | J150: 270.57 | K150: 265.4 | L150: 260 | M150: 14.38456
A151: 142 | B151: FCONSUMER | C151: 49.2 | D151: 49.18 | E151: 48.72 | F151: 48.23 | G151: 47.77 | H151: 49.67 | I151: 50.13 | J151: 50.62 | K151: 49.65 | L151: 48.7 | M151: 13.44873
A152: 143 | B152: FEDERALBNK | C152: 83.5 | D152: 83.25 | E152: 82.60 | F152: 81.70 | G152: 81.05 | H152: 84.15 | I152: 84.80 | J152: 85.70 | K152: 83.9 | L152: 82.35 | M152: 76.72119
A153: 144 | B153: FINCABLES | C153: 577.45 | D153: 574.82 | E153: 569.63 | F153: 561.82 | G153: 556.63 | H153: 582.63 | I153: 587.82 | J153: 595.63 | K153: 580 | L153: 567 | M153: 0.12502
A154: 145 | B154: FINPIPE | C154: 543.7 | D154: 546.38 | E154: 537.87 | F154: 532.03 | G154: 523.52 | H154: 552.22 | I154: 560.73 | J154: 566.57 | K154: 554.9 | L154: 540.55 | M154: 0.14733
A155: 146 | B155: FLFL | C155: 399.25 | D155: 402.87 | E155: 394.38 | F155: 389.52 | G155: 381.03 | H155: 407.73 | I155: 416.22 | J155: 421.08 | K155: 411.35 | L155: 398 | M155: 0.28297
A156: 147 | B156: FSL | C156: 65.25 | D156: 66.17 | E156: 63.93 | F156: 62.62 | G156: 60.38 | H156: 67.48 | I156: 69.72 | J156: 71.03 | K156: 68.4 | L156: 64.85 | M156: 45.71708
A157: 148 | B157: GAIL | C157: 348.35 | D157: 346.52 | E157: 343.13 | F157: 337.92 | G157: 334.53 | H157: 351.73 | I157: 355.12 | J157: 360.33 | K157: 349.9 | L157: 341.3 | M157: 43.17908
A158: 149 | B158: GATI | C158: 78.6 | D158: 78.23 | E158: 77.37 | F158: 76.13 | G158: 75.27 | H158: 79.47 | I158: 80.33 | J158: 81.57 | K158: 79.1 | L158: 77 | M158: 4.73173
A159: 150 | B159: GDL | C159: 173.85 | D159: 174.28 | E159: 172.62 | F159: 171.38 | G159: 169.72 | H159: 175.52 | I159: 177.18 | J159: 178.42 | K159: 175.95 | L159: 173.05 | M159: 1.67542
A160: 151 | B160: GEPIL | C160: 762.05 | D160: 765.12 | E160: 752.23 | F160: 742.42 | G160: 729.53 | H160: 774.93 | I160: 787.82 | J160: 797.63 | K160: 778 | L160: 755.3 | M160: 0.32467
A161: 152 | B161: GESHIP | C161: 267.8 | D161: 269.13 | E161: 265.67 | F161: 263.53 | G161: 260.07 | H161: 271.27 | I161: 274.73 | J161: 276.87 | K161: 272.6 | L161: 267 | M161: 0.23251
A162: 153 | B162: GET&D | C162: 272.45 | D162: 274.52 | E162: 269.58 | F162: 266.72 | G162: 261.78 | H162: 277.38 | I162: 282.32 | J162: 285.18 | K162: 279.45 | L162: 271.65 | M162: 0.20322
A163: 154 | B163: GHCL | C163: 268.95 | D163: 269.03 | E163: 266.07 | F163: 263.18 | G163: 260.22 | H163: 271.92 | I163: 274.88 | J163: 277.77 | K163: 272 | L163: 266.15 | M163: 0.53843
A164: 155 | B164: GICRE | C164: 751.6 | D164: 748.67 | E164: 742.43 | F164: 733.27 | G164: 727.03 | H164: 757.83 | I164: 764.07 | J164: 773.23 | K164: 754.9 | L164: 739.5 | M164: 0.49552
A165: 156 | B165: GILLETTE | C165: 6557.75 | D165: 6531.17 | E165: 6427.58 | F165: 6297.42 | G165: 6193.83 | H165: 6661.33 | I165: 6764.92 | J165: 6895.08 | K165: 6634.75 | L165: 6401 | M165: 0.02405
A166: 157 | B166: GLAXO | C166: 2902.1 | D166: 2910.33 | E166: 2825.77 | F166: 2749.43 | G166: 2664.87 | H166: 2986.67 | I166: 3071.23 | J166: 3147.57 | K166: 2994.9 | L166: 2834 | M166: 0.77516
A167: 158 | B167: GLENMARK | C167: 597.45 | D167: 596.57 | E167: 590.53 | F167: 583.62 | G167: 577.58 | H167: 603.48 | I167: 609.52 | J167: 616.43 | K167: 602.6 | L167: 589.65 | M167: 10.4174
A168: 159 | B168: GMDCLTD | C168: 104.35 | D168: 104.57 | E168: 103.63 | F168: 102.92 | G168: 101.98 | H168: 105.28 | I168: 106.22 | J168: 106.93 | K168: 105.5 | L168: 103.85 | M168: 0.52151
A169: 160 | B169: GMRINFRA | C169: 16.5 | D169: 16.35 | E169: 16.10 | F169: 15.70 | G169: 15.45 | H169: 16.75 | I169: 17.00 | J169: 17.40 | K169: 16.6 | L169: 15.95 | M169: 287.04974
A170: 161 | B170: GNFC | C170: 415.6 | D170: 413.50 | E170: 408.00 | F170: 400.40 | G170: 394.90 | H170: 421.10 | I170: 426.60 | J170: 434.20 | K170: 419 | L170: 405.9 | M170: 8.58108
A171: 162 | B171: GODFRYPHLP | C171: 712.3 | D171: 716.80 | E171: 706.25 | F171: 700.20 | G171: 689.65 | H171: 722.85 | I171: 733.40 | J171: 739.45 | K171: 727.35 | L171: 710.75 | M171: 0.84768
A172: 163 | B172: GODREJAGRO | C172: 610.5 | D172: 612.82 | E172: 605.83 | F172: 601.17 | G172: 594.18 | H172: 617.48 | I172: 624.47 | J172: 629.13 | K172: 619.8 | L172: 608.15 | M172: 0.77442
A173: 164 | B173: GODREJCP | C173: 1263.8 | D173: 1261.67 | E173: 1248.88 | F173: 1233.97 | G173: 1221.18 | H173: 1276.58 | I173: 1289.37 | J173: 1304.28 | K173: 1274.45 | L173: 1246.75 | M173: 2.30629
A174: 165 | B174: GODREJIND | C174: 612.05 | D174: 614.17 | E174: 606.13 | F174: 600.22 | G174: 592.18 | H174: 620.08 | I174: 628.12 | J174: 634.03 | K174: 622.2 | L174: 608.25 | M174: 3.57969
A175: 166 | B175: GODREJPROP | C175: 714.45 | D175: 714.30 | E175: 710.15 | F175: 705.85 | G175: 701.70 | H175: 718.60 | I175: 722.75 | J175: 727.05 | K175: 718.45 | L175: 710 | M175: 0.60167
A176: 167 | B176: GPPL | C176: 107.05 | D176: 107.52 | E176: 104.13 | F176: 101.22 | G176: 97.83 | H176: 110.43 | I176: 113.82 | J176: 116.73 | K176: 110.9 | L176: 104.6 | M176: 10.95117
A177: 168 | B177: GRANULES | C177: 84.05 | D177: 82.88 | E177: 80.77 | F177: 77.48 | G177: 75.37 | H177: 86.17 | I177: 88.28 | J177: 91.57 | K177: 85 | L177: 79.6 | M177: 65.04911
A178: 169 | B178: GRAPHITE | C178: 969.45 | D178: 956.02 | E178: 940.43 | F178: 911.42 | G178: 895.83 | H178: 985.03 | I178: 1000.62 | J178: 1029.63 | K178: 971.6 | L178: 927 | M178: 17.36756
A179: 170 | B179: GRASIM | C179: 965.45 | D179: 970.77 | E179: 956.03 | F179: 946.62 | G179: 931.88 | H179: 980.18 | I179: 994.92 | J179: 1004.33 | K179: 985.5 | L179: 961.35 | M179: 9.05422
A180: 171 | B180: GREAVESCOT | C180: 135.15 | D180: 134.97 | E180: 133.28 | F180: 131.42 | G180: 129.73 | H180: 136.83 | I180: 138.52 | J180: 140.38 | K180: 136.65 | L180: 133.1 | M180: 2.68745
A181: 172 | B181: GREENPLY | C181: 224.5 | D181: 226.33 | E181: 221.72 | F181: 218.93 | G181: 214.32 | H181: 229.12 | I181: 233.73 | J181: 236.52 | K181: 230.95 | L181: 223.55 | M181: 0.55656
A182: 173 | B182: GRUH | C182: 334.8 | D182: 330.13 | E182: 323.67 | F182: 312.53 | G182: 306.07 | H182: 341.27 | I182: 347.73 | J182: 358.87 | K182: 336.6 | L182: 319 | M182: 7.96301
A183: 174 | B183: GSFC | C183: 105.6 | D183: 105.85 | E183: 104.80 | F183: 104.00 | G183: 102.95 | H183: 106.65 | I183: 107.70 | J183: 108.50 | K183: 106.9 | L183: 105.05 | M183: 12.13824
A184: 175 | B184: GSKCONS | C184: 6445.05 | D184: 6446.68 | E184: 6368.37 | F184: 6291.68 | G184: 6213.37 | H184: 6523.37 | I184: 6601.68 | J184: 6678.37 | K184: 6525 | L184: 6370 | M184: 0.07559
A185: 176 | B185: GSPL | C185: 179.15 | D185: 178.42 | E185: 176.83 | F185: 174.52 | G185: 172.93 | H185: 180.73 | I185: 182.32 | J185: 184.63 | K185: 180 | L185: 176.1 | M185: 0.70758
A186: 177 | B186: GUJALKALI | C186: 523.9 | D186: 525.08 | E186: 517.17 | F186: 510.43 | G186: 502.52 | H186: 531.82 | I186: 539.73 | J186: 546.47 | K186: 533 | L186: 518.35 | M186: 0.75153
A187: 178 | B187: GUJFLUORO | C187: 759.4 | D187: 757.78 | E187: 747.77 | F187: 736.13 | G187: 726.12 | H187: 769.42 | I187: 779.43 | J187: 791.07 | K187: 767.8 | L187: 746.15 | M187: 0.42581
A188: 179 | B188: GUJGASLTD | C188: 731.8 | D188: 729.73 | E188: 724.52 | F188: 717.23 | G188: 712.02 | H188: 737.02 | I188: 742.23 | J188: 749.52 | K188: 734.95 | L188: 722.45 | M188: 0.10486
A189: 180 | B189: GULFOILLUB | C189: 848.3 | D189: 847.08 | E189: 839.32 | F189: 830.33 | G189: 822.57 | H189: 856.07 | I189: 863.83 | J189: 872.82 | K189: 854.85 | L189: 838.1 | M189: 0.05521
A190: 181 | B190: GVKPIL | C190: 9.95 | D190: 9.93 | E190: 9.67 | F190: 9.38 | G190: 9.12 | H190: 10.22 | I190: 10.48 | J190: 10.77 | K190: 10.2 | L190: 9.65 | M190: 31.73491
A191: 182 | B191: HATHWAY | C191: 24.2 | D191: 24.42 | E191: 23.63 | F191: 23.07 | G191: 22.28 | H191: 24.98 | I191: 25.77 | J191: 26.33 | K191: 25.2 | L191: 23.85 | M191: 4.78577
A192: 183 | B192: HATSUN | C192: 629.95 | D192: 629.73 | E192: 619.62 | F192: 609.28 | G192: 599.17 | H192: 640.07 | I192: 650.18 | J192: 660.52 | K192: 639.85 | L192: 619.4 | M192: 0.12261
A193: 184 | B193: HAVELLS | C193: 547.4 | D193: 544.63 | E193: 538.37 | F193: 529.33 | G193: 523.07 | H193: 553.67 | I193: 559.93 | J193: 568.97 | K193: 550.9 | L193: 535.6 | M193: 6.02897
A194: 185 | B194: HCC | C194: 12.2 | D194: 12.20 | E194: 12.05 | F194: 11.90 | G194: 11.75 | H194: 12.35 | I194: 12.50 | J194: 12.65 | K194: 12.35 | L194: 12.05 | M194: 67.11333
A195: 186 | B195: HCL-INSYS | C195: 33.85 | D195: 33.93 | E195: 33.47 | F195: 33.08 | G195: 32.62 | H195: 34.32 | I195: 34.78 | J195: 35.17 | K195: 34.4 | L195: 33.55 | M195: 10.62634
A196: 187 | B196: HCLTECH | C196: 925.65 | D196: 929.38 | E196: 920.27 | F196: 914.88 | G196: 905.77 | H196: 934.77 | I196: 943.88 | J196: 949.27 | K196: 938.5 | L196: 924 | M196: 7.73947
A197: 188 | B197: HDFC | C197: 1922.5 | D197: 1910.43 | E197: 1894.17 | F197: 1865.83 | G197: 1849.57 | H197: 1938.77 | I197: 1955.03 | J197: 1983.37 | K197: 1926.7 | L197: 1882.1 | M197: 26.09336
A198: 189 | B198: HDFCBANK | C198: 2103.55 | D198: 2093.53 | E198: 2079.02 | F198: 2054.48 | G198: 2039.97 | H198: 2118.07 | I198: 2132.58 | J198: 2157.12 | K198: 2108.05 | L198: 2069 | M198: 15.24498
A199: 190 | B199: HDIL | C199: 20.05 | D199: 20.05 | E199: 19.80 | F199: 19.55 | G199: 19.30 | H199: 20.30 | I199: 20.55 | J199: 20.80 | K199: 20.3 | L199: 19.8 | M199: 32.50777
A200: 191 | B200: HEG | C200: 3794.85 | D200: 3741.32 | E200: 3658.53 | F200: 3522.22 | G200: 3439.43 | H200: 3877.63 | I200: 3960.42 | J200: 4096.73 | K200: 3824.1 | L200: 3605 | M200: 4.72584
A201: 192 | B201: HEIDELBERG | C201: 135.2 | D201: 135.98 | E201: 132.57 | F201: 129.93 | G201: 126.52 | H201: 138.62 | I201: 142.03 | J201: 144.67 | K201: 139.4 | L201: 133.35 | M201: 0.37119
A202: 193 | B202: HERITGFOOD | C202: 612.05 | D202: 612.65 | E202: 605.30 | F202: 598.55 | G202: 591.20 | H202: 619.40 | I202: 626.75 | J202: 633.50 | K202: 620 | L202: 605.9 | M202: 0.15894
A203: 194 | B203: HEROMOTOCO | C203: 3458.8 | D203: 3451.10 | E203: 3423.15 | F203: 3387.50 | G203: 3359.55 | H203: 3486.75 | I203: 3514.70 | J203: 3550.35 | K203: 3479.05 | L203: 3415.45 | M203: 2.66759
A204: 195 | B204: HEXAWARE | C204: 461.7 | D204: 463.55 | E204: 457.55 | F204: 453.40 | G204: 447.40 | H204: 467.70 | I204: 473.70 | J204: 477.85 | K204: 469.55 | L204: 459.4 | M204: 6.93474
A205: 196 | B205: HFCL | C205: 28.7 | D205: 28.57 | E205: 28.23 | F205: 27.77 | G205: 27.43 | H205: 29.03 | I205: 29.37 | J205: 29.83 | K205: 28.9 | L205: 28.1 | M205: 56.99254
A206: 197 | B206: HIMATSEIDE | C206: 284.2 | D206: 285.70 | E206: 280.65 | F206: 277.10 | G206: 272.05 | H206: 289.25 | I206: 294.30 | J206: 297.85 | K206: 290.75 | L206: 282.15 | M206: 0.2199
... 305 more rows

Sheet Bulk Deals
E6: Back To Main Page
A7: Subject : | B7: BULK DEAL | D7: =Main!B10 -> 2018-07-05
A9: Date | B9: Scrip code | C9: Scrip Name | D9: Client Name | E9: Buy / Sell | F9: Quantity Traded | G9: Trade Price / Wt.Avg.trade price | H9: Exchange
A10: 2018-07-04 | B10: 539131 | C10: CLLIMITED | D10: NAVEEN GUPTA | E10: SELL | F10: 20,967 | G10: 19.52 | H10: BSE
A11: 2018-07-04 | B11: 539131 | C11: CLLIMITED | D11: NAVEEN GUPTA | E11: BUY | F11: 15,000 | G11: 19.27 | H11: BSE
A12: 2018-07-04 | B12: 511451 | C12: DHARFIN | D12: VEERAN DEEPA | E12: BUY | F12: 29,600 | G12: 5.09 | H12: BSE
A13: 2018-07-04 | B13: 511451 | C13: DHARFIN | D13: SURESH KUMAR GOPALAN NAIR | E13: SELL | F13: 30,328 | G13: 5.09 | H13: BSE
A14: 2018-07-04 | B14: 539009 | C14: GBLIL | D14: PUNJABI MOHAN LAXMANDAS | E14: SELL | F14: 50,000 | G14: 22.6 | H14: BSE
A15: 2018-07-04 | B15: 532960 | C15: IBVENTURES | D15: CINNAMON CAPITAL LIMITED | E15: SELL | F15: 13,834,381 | G15: 471 | H15: BSE
A16: 2018-07-04 | B16: 532960 | C16: IBVENTURES | D16: JASMINE CAPITAL INVESTMENTS PTE LTD | E16: BUY | F16: 13,834,381 | G16: 471 | H16: BSE
A17: 2018-07-04 | B17: 541347 | C17: PARVATI | D17: JAI NARAIN CHOUKSEY | E17: BUY | F17: 819,946 | G17: 3.56 | H17: BSE
A18: 2018-07-04 | B18: 541347 | C18: PARVATI | D18: AKRAM KHAN | E18: SELL | F18: 680,000 | G18: 3.56 | H18: BSE
A19: 2018-07-04 | B19: 541347 | C19: PARVATI | D19: MUBARIK KHAN | E19: SELL | F19: 702,001 | G19: 3.55 | H19: BSE
A20: 2018-07-04 | B20: 531454 | C20: POLYLINK | D20: Spark Securities Private Limited | E20: SELL | F20: 153,708 | G20: 15.3 | H20: BSE
A21: 2018-07-04 | B21: 531454 | C21: POLYLINK | D21: GYAN TRADERS LIMITED | E21: SELL | F21: 295,665 | G21: 15.3 | H21: BSE
A22: 2018-07-04 | B22: 531454 | C22: POLYLINK | D22: SANIDHYA MITTAL | E22: BUY | F22: 449,373 | G22: 15.3 | H22: BSE
A23: 2018-07-04 | B23: 538731 | C23: POWERGYM | D23: SUSHMA ASHOK GUPTA | E23: SELL | F23: 504,000 | G23: 6.42 | H23: BSE
A24: 2018-07-04 | B24: 538731 | C24: POWERGYM | D24: HRIDAYNATH CONSULTANCY PRIVATE LIMITED | E24: BUY | F24: 495,600 | G24: 6.42 | H24: BSE
A25: 2018-07-04 | B25: 534708 | C25: RCRL | D25: RADHAKRISHNAN * | E25: BUY | F25: 63,000 | G25: 15.36 | H25: BSE
A26: 2018-07-04 | B26: 539760 | C26: RELICAB | D26: NOPEA CAPITAL SERVICES PRIVATE LIMITED | E26: BUY | F26: 114,000 | G26: 40 | H26: BSE
A27: 2018-07-04 | B27: 533427 | C27: VMS | D27: C UMAMAHESWARI | E27: BUY | F27: 407,385 | G27: 11.69 | H27: BSE
A28: 2018-07-04 | B28: 533427 | C28: VMS | D28: MONOTYPE INDIA LIMITED | E28: SELL | F28: 407,385 | G28: 11.69 | H28: BSE
A29: 2018-07-04 | B29: 541445 | C29: WAA | D29: ANUJ KATTA | E29: SELL | F29: 38,400 | G29: 57.95 | H29: BSE
A30: 2018-07-04 | B30: 8KMILES | C30: 8K Miles Soft Serv Ltd | D30: SWAPNIL MEHTA | E30: BUY | F30: 153,706 | G30: 347.15 | H30: NSE
A31: 2018-07-04 | B31: CANDC | C31: C & C Constructions Limit | D31: MANBHUPINDER SINGH ATWAL | E31: BUY | F31: 245,000 | G31: 37.99 | H31: NSE
A32: 2018-07-04 | B32: GIRIRAJ | C32: Giriraj Civil Devp Ltd | D32: ARYAMAN CAPITAL MARKETS LIMITED | E32: BUY | F32: 9,600 | G32: 152.56 | H32: NSE
A33: 2018-07-04 | B33: JUSTDIAL | C33: Justdial Ltd. | D33: CROSSLAND TRADING CO | E33: BUY | F33: 406,320 | G33: 574 | H33: NSE
A34: 2018-07-04 | B34: JUSTDIAL | C34: Justdial Ltd. | D34: SHAASTRA SECURITIES TRADING PRIVATE LIMITED | E34: BUY | F34: 512,400 | G34: 573.34 | H34: NSE
A35: 2018-07-04 | B35: KWALITY | C35: Kwality Limited | D35: BP FINTRADE PRIVATE LIMITED | E35: BUY | F35: 2,356,002 | G35: 20.55 | H35: NSE
A36: 2018-07-04 | B36: SHRADHA | C36: Shradha Infraproj (N) Ltd | D36: ESSENN LPG BOTTLING PRIVATE LIMITED | E36: BUY | F36: 50,000 | G36: 46.08 | H36: NSE
A37: 2018-07-04 | B37: SUULD | C37: Suumaya Lifestyle Limited | D37: NEWEDGE VINIMAY PRIVATE LIMITED | E37: BUY | F37: 152,000 | G37: 18.3 | H37: NSE
A38: 2018-07-04 | B38: 8KMILES | C38: 8K Miles Soft Serv Ltd | D38: SWAPNIL MEHTA | E38: SELL | F38: 118,706 | G38: 346.83 | H38: NSE
A39: 2018-07-04 | B39: CANDC | C39: C & C Constructions Limit | D39: ANGAD SINGH ATWAL | E39: SELL | F39: 149,068 | G39: 38 | H39: NSE
A40: 2018-07-04 | B40: GIRIRAJ | C40: Giriraj Civil Devp Ltd | D40: ARYAMAN CAPITAL MARKETS LIMITED | E40: SELL | F40: 16,800 | G40: 149.5 | H40: NSE
A41: 2018-07-04 | B41: JUSTDIAL | C41: Justdial Ltd. | D41: CROSSLAND TRADING CO | E41: SELL | F41: 406,320 | G41: 574.54 | H41: NSE
A42: 2018-07-04 | B42: JUSTDIAL | C42: Justdial Ltd. | D42: SHAASTRA SECURITIES TRADING PRIVATE LIMITED | E42: SELL | F42: 512,400 | G42: 573.64 | H42: NSE
A43: 2018-07-04 | B43: KWALITY | C43: Kwality Limited | D43: BP FINTRADE PRIVATE LIMITED | E43: SELL | F43: 530,266 | G43: 20.64 | H43: NSE
A44: 2018-07-04 | B44: SHRADHA | C44: Shradha Infraproj (N) Ltd | D44: ARYAMAN CAPITAL MARKETS LIMITED | E44: SELL | F44: 54,000 | G44: 45.93 | H44: NSE
A45: 2018-07-04 | B45: SUULD | C45: Suumaya Lifestyle Limited | D45: SRICHAND VALIRAM KATARIA (HUF) | E45: SELL | F45: 136,000 | G45: 18.3 | H45: NSE

Sheet Call Tracker (Equity & F&O)
M5: Back To Main Page
A6: Retail Research Technical Calls & Fundamental Performance Report for the month of July -2018
M7: =Main!B10 -> 2018-07-05
B8: Positional Call
A9: Sr.no | B9: Date | D9: Company | E9: Rec | F9: Rec Price | G9: Stop Loss*** | H9: Call Closed At | I9: Target | J9: Remark | K9: Profit / Loss per Share | L9: Gain / Loss % | M9: Status | N9: Closed Date | O9: NSE Closed Price
A10: 1 | B10: 2018-06-18 | D10: BIOCON | E10: Buy | F10: 624 | G10: 596 | H10: 644.5 | I10: 675-685 | J10: Part Profit of Rs.20.5/- | K10: =H10-F10 -> 20.5 | L10: =K10/F10 -> 3.29% | M10: Successful | N10: 2018-06-25 | R10: R
A11: 2 | B11: 2018-06-21 | D11: CENTURYTEX | E11: Buy | F11: 902.5 | G11: 873 | H11: 864.5 | I11: 955-965 | J11: Loss of Rs.38/- | K11: =H11-F11 -> -38.00 | L11: -4.21% | M11: Unsuccessful | N11: 2018-07-02 | R11: R
A12: 3 | B12: 2018-06-27 | D12: RAMCOCEM | E12: Buy | F12: 703-707 | G12: 675 | I12: 760-770 | J12: Open | O12: =VLOOKUP(D12,Sheet2!$A$1:M2162,6,0) -> 701.9 | R12: R
A13: 4 | B13: 2018-06-29 | D13: CANBK | E13: Buy | F13: 251-254 | G13: 241 | I13: 270-280 | J13: Open | O13: =VLOOKUP(D13,Sheet2!$A$1:M2164,6,0) -> 244.65 | R13: H
A14: 5 | B14: 2018-07-03 | D14: MCDOWELL-N | E14: Buy | F14: 655-660 | G14: 620 | I14: 715-725 | J14: Open | O14: =VLOOKUP(D14,Sheet2!$A$1:M2165,6,0) -> 666.9 | R14: R
A15: 6 | B15: 2018-07-03 | D15: NILKAMAL | E15: Buy | F15: 1575 | G15: 1498 | H15: 1665 | I15: 1720-1740 | J15: Part Profit of Rs.90/- | K15: =H15-F15 -> 90 | L15: =K15/F15 -> 5.71% | M15: Successful | N15: 2018-07-04 | R15: R
A16: 7 | B16: 2018-07-03 | D16: ZEEL | E16: Buy | F16: 537-541 | G16: 518 | I16: 580-590 | J16: Open | O16: =VLOOKUP(D16,Sheet2!$A$1:M2167,6,0) -> 542.2 | R16: H
A20: CLBS = Closing Basis *** | F20: Reinitiated $
A21: Dividend adjusted <> | F21: Revised stoploss #
A23: Master Trade High Risk
A24: Sr.no | B24: Date | D24: Company | E24: Rec | F24: Rec Price | G24: Stop Loss | H24: Call Closed At | I24: Target | J24: Remark | K24: Profit / Loss per share | L24: Gain / Loss per Lot | M24: Lot | N24: Status | O24: Closed Date
A25: 1 | B25: 2018-07-02 | D25: NIFTY JUL FUT | E25: Buy | F25: 10645 | G25: 10545 | H25: 10745 | I25: 10850 | J25: Profit of Rs.100/- | K25: =H25-F25 -> 100 | L25: =M25*K25 -> 7500 | M25: 75 | N25: Successful | O25: 2018-07-04 | R25: R
A26: 2 | B26: 2018-07-03 | D26: BANKNIFTY JUL FUT | E26: Buy | F26: 26260-26280 | G26: 25950 | I26: 26900-27000 | J26: Open | R26: R
A34: Master Trade Medium Risk
A35: Sr.no | B35: Date | D35: Company | E35: Rec | F35: Rec Price | G35: Stop Loss | H35: Call Closed At | I35: Target | J35: Remark | K35: Profit/ Loss per lot | L35: Gain / Loss per Lot | M35: Lot | N35: Status | O35: Closed Date
B51: Smart Delivery Trade
A52: Sr.no | B52: Date | D52: Company | E52: Rec | F52: Rec Price | G52: Stop Loss*** | H52: Call Closed At | I52: Target | J52: Remark | K52: Profit / Loss per Share | L52: Gain / Loss % | M52: Status | N52: Closed Date | O52: NSE Closed Price
A53: 1 | B53: 2018-06-29 | D53: STAR | E53: Buy | F53: 394 | G53: 378.7 | H53: 408.5 | I53: 415-420 | J53: Profit of Rs.14.50/- | K53: =H53-F53 -> 14.50 | L53: =K53/F53 -> 3.68% | M53: Successful | N53: 2018-07-04 | R53: R
A54: 2 | B54: 2018-06-29 | D54: HCLTECH | E54: Buy | F54: 918-923 | G54: 889.8 | I54: 970-980 | J54: Open | O54: =VLOOKUP(D54,Sheet2!$A$1:M2216,6,0) -> 925.65 | R54: R
A55: 3 | B55: 2018-06-29 | D55: COLPAL | E55: Buy | F55: 1171-1177 | G55: 1148 | I55: 1215-1230 | J55: Open | O55: =VLOOKUP(D55,Sheet2!$A$1:M2217,6,0) -> 1166.2 | R55: H
A56: 4 | B56: 2018-06-29 | D56: SUNPHARMA | E56: Buy | F56: 564 | G56: 548 | H56: 581.5 | I56: 590-600 | J56: Profit of Rs.17.50/- | K56: =H56-F56 -> 17.50 | L56: =K56/F56 -> 3.10% | M56: Successful | N56: 2018-07-04 | R56: H
A57: 5 | B57: 2018-07-02 | D57: JINDALSTEL | E57: Buy | F57: 219 | G57: 213 | H57: 212 | I57: 230-232 | J57: Loss of Rs.7/- | K57: =H57-F57 -> -7.00 | L57: =K57/F57 -> -3.20% | M57: Unsuccessful | N57: 2018-07-02 | R57: H
A58: 6 | B58: 2018-07-02 | D58: VOLTAS | E58: Buy | F58: 520-522 | G58: 507 | I58: 550-555 | J58: Open | O58: =VLOOKUP(D58,Sheet2!$A$1:M2220,6,0) -> 525.4 | R58: R
A59: 7 | B59: 2018-07-03 | D59: TORNTPHARM | E59: Buy | F59: 1422.5 | G59: 1379 | H59: 1450 | I59: 1500-1510 | J59: Profit of Rs.27.50/- | K59: =H59-F59 -> 27.50 | L59: =K59/F59 -> 1.93% | M59: Successful | N59: 2018-07-03 | R59: R
A60: 8 | B60: 2018-07-04 | D60: JSWSTEEL | E60: Buy | F60: 307-309 | G60: 298 | I60: 325-330 | J60: Open | O60: =VLOOKUP(D60,Sheet2!$A$1:M2222,6,0) -> 312.15 | R60: H
A61: 9 | B61: 2018-07-04 | D61: L&TFH | E61: Buy | F61: 146-148 | G61: 142.7 | I61: 155-158 | J61: Open | O61: =VLOOKUP(D61,Sheet2!$A$1:M2223,6,0) -> 147.25 | R61: R
A62: 10 | B62: 2018-07-04 | D62: AMBUJACEM | E62: Buy | F62: 202-204 | G62: 194 | I62: 215-220 | J62: Open | O62: =VLOOKUP(D62,Sheet2!$A$1:M2224,6,0) -> 201 | R62: H
A63: 11 | B63: 2018-07-04 | D63: LICHSGFIN | E63: Buy | F63: 460-463 | G63: 444.4 | I63: 480-490 | J63: Open | O63: =VLOOKUP(D63,Sheet2!$A$1:M2225,6,0) -> 463 | R63: R
A68: CLBS = Closing Basis *** | F68: Reinitiated $
A69: Dividend adjusted <> | F69: Revised stoploss #
B72: Momentum Call
A73: Sr.no | B73: Date | D73: Company | E73: Rec | F73: Rec Price | G73: Stop Loss | H73: Call Closed At | I73: Target | J73: Remark | K73: Profit / Loss per Share/Lot | L73: Gain / Loss % | M73: Gain / Loss per Lot | N73: Lot | O73: Status | P73: Closed Date | Q73: NSE Closed Price
A74: 1 | B74: 2018-07-02 | D74: LT JUL FUT | E74: Buy | F74: 1258.5 | G74: 1240 | H74: 1266 | I74: 1290-1300 | J74: Profit of Rs.7.50/- | K74: =H74-F74 -> 7.5 | M74: =N74*K74 -> 5625 | N74: 750 | O74: Successful | P74: 2018-07-03 | R74: H
A75: 2 | B75: 2018-07-02 | D75: RBLBANK JUL FUT | E75: Buy | F75: 552.5 | G75: 541 | H75: 560.5 | I75: 570 | J75: Profit of Rs.8/- | K75: 8 | M75: 9600 | N75: 1200 | O75: Successful | P75: 2018-07-03 | R75: N
A76: 3 | B76: 2018-07-02 | D76: HINDUNILVR JUL FUT | E76: Buy | F76: 1647.5 | G76: 1628 | H76: 1661 | I76: 1700 | J76: Profit of Rs.13.5/- | K76: =H76-F76 -> 13.5 | M76: =N76*K76 -> 8100 | N76: 600 | O76: Successful | P76: 2018-07-03 | R76: R
A77: 4 | B77: 2018-07-02 | D77: ARVIND JUL FUT | E77: Buy | F77: 387 | G77: 382.5 | H77: 390.5 | I77: 395-398 | J77: Profit of Rs.3.50/- | K77: =H77-F77 -> 3.5 | M77: =N77*K77 -> 7000 | N77: 2000 | O77: Successful | P77: 2018-07-02 | R77: N
A78: 5 | B78: 2018-07-03 | D78: BANKBARODA | E78: Buy | F78: 112.5-113 | G78: 109.5 | I78: 117-119 | J78: Open | R78: H
A79: 6 | B79: 2018-07-03 | D79: EXIDEIND JUN FUT | E79: Buy | F79: 256.75 | G79: 253.5 | H79: 258.75 | I79: 265 | J79: Profit of Rs.2/- | K79: =H79-F79 -> 2 | M79: =N79*K79 -> 8000 | N79: 4000 | O79: Successful | P79: 2018-07-03 | R79: N
A80: 7 | B80: 2018-07-03 | D80: M&M JUL FUT | E80: Buy | F80: 878 | G80: 867 | H80: 886 | I80: 890-900 | J80: Profit of Rs.8/- | K80: =H80-F80 -> 8 | M80: =N80*K80 -> 8000 | N80: 1000 | O80: Successful | P80: 2018-07-03 | R80: H
A81: 8 | B81: 2018-07-03 | D81: ACC JUL FUT | E81: Buy | F81: 1316.5 | G81: 1290 | H81: 1335.5 | I81: 1350-1360 | J81: Profit of Rs.19/- | K81: =H81-F81 -> 19 | M81: =N81*K81 -> 7600 | N81: 400 | O81: Successful | P81: 2018-07-03 | R81: H
A82: 9 | B82: 2018-07-03 | D82: RELIANCE JULY FUT | E82: Buy | F82: 973 | G82: 959 | H82: 982.5 | I82: 990-995 | J82: Profit of Rs.9.5/- | K82: =H82-F82 -> 9.5 | M82: =N82*K82 -> 9500 | N82: 1000 | O82: Successful | P82: 2018-07-04 | R82: H
A83: 10 | B83: 2018-07-04 | D83: ARVIND JUL FUT | E83: Buy | F83: 389.5 | G83: 383 | H83: 393.75 | I83: 398-400 | J83: Profit of Rs.4.25/- | K83: 4.25 | M83: 8500 | N83: 2000 | O83: Successful | P83: 2018-07-04 | R83: N
A84: 11 | B84: 2018-07-04 | D84: NIITTECH JULY FUT | E84: Buy | F84: 1105.5 | G84: 1088 | H84: 1119 | I84: 1135-1145 | J84: Profit of Rs.13.50/- | K84: =H84-F84 -> 13.5 | M84: =N84*K84 -> 10125 | N84: 750 | O84: Successful | P84: 2018-07-04 | R84: H
A85: 12 | B85: 2018-07-04 | D85: MOTHERSUMI JULY FUT | E85: Sell | F85: 294.50-295.50 | G85: 302 | I85: 285 | J85: Open | R85: H
A91: CLBS = Closing Basis *** | F91: Reinitiated $
A92: Dividend adjusted <> | F92: Revised stoploss #
B94: Quick Pick Intraday
A95: Sr.no | B95: Date | D95: Company | E95: Rec | F95: Rec Price | G95: Stop Loss*** | H95: Call Closed At | I95: Target | J95: Remark | K95: Profit / Loss per Share | L95: Status | M95: Closed Date
A96: 1 | B96: 2018-07-04 | D96: JUBLFOOD | E96: Buy | F96: 1432.5 | G96: 1418 | H96: 1432.5 | I96: 1480 | J96: No profit no loss | K96: =H96-F96 -> 0 | L96: Neutral | M96: 2018-07-04
A109: Techno -Funda (positional)
A110: Sr.no | B110: Date | D110: Company | E110: Rec | F110: Rec Price | G110: Stop Loss*** | H110: Call Closed At | I110: Target | J110: Remark | K110: Profit / Loss per Share | L110: Gain / Loss % | M110: Status | N110: Closed Date | O110: NSE Closed Price
A111: 1 | B111: 2018-06-04 | D111: BAJAJ-AUTO | E111: Buy | F111: 2875-2895 | G111: 2730 | I111: 3170-3200 | J111: Open | R111: H
A113: CLBS = Closing Basis *** | F113: Reinitiated $
A114: Dividend adjusted <> | F114: Revised stoploss #
B119: Investment Idea
A120: Sr.no | B120: Date | D120: Company | E120: Rec | F120: Rec Price | G120: Point of Review | H120: Close Rate | I120: Target | J120: Remark | K120: Profit / Loss per Share | L120: Gain / Loss % | M120: Status | N120: Closed Date
A121: 1 | B121: 2013-11-01 | D121: L&T Finance Holding | E121: Accu | F121: 82.00 | G121: - | H121: 100 | I121: 100.00 | J121: Target Achieved | K121: =H121-F121 -> 18.00 | L121: =K121/F121 -> 21.95% | M121: Successful | N121: 2016-10-14
A122: 2 | B122: 2014-06-04 | D122: Finolex Inds | E122: Buy | F122: 257.00 | G122: - | H122: 300 | I122: 300.00 | J122: Target Achieved | K122: =H122-F122 -> 43.00 | L122: 16.73% | M122: Successful | N122: 2014-07-02
A123: =1+A122 -> 3 | B123: 2014-07-08 | D123: JK Cement | E123: Buy | F123: 393.00 | G123: - | H123: 468 | I123: 468.00 | J123: Target Achieved | K123: =H123-F123 -> 75.00 | L123: 19.08% | M123: Successful | N123: 2014-08-12
A124: 4 | B124: 2014-08-06 | D124: Finolex Cables | E124: Buy | F124: 205.00 | G124: - | H124: 275 | I124: 250.00 | J124: Target Achieved | K124: 70.00 | L124: 34.15% | M124: Successful | N124: 2014-11-19
A125: 5 | B125: 2014-09-04 | D125: Exide Inds | E125: Buy | F125: 162.00 | G125: - | H125: 190 | I125: 190.00 | J125: Target Achieved | K125: 28.00 | L125: 17.28% | M125: Successful | N125: 2015-01-02
A126: 6 | B126: 2014-09-04 | D126: Deepak Nitrite | E126: Buy | F126: 75.00 | G126: - | H126: 91.5 | I126: 95-100 | J126: Profit of Rs.16.50/- | K126: 16.50 | L126: 22.00% | M126: Successful | N126: 2014-11-11
A127: 7 | B127: 2014-10-01 | D127: Mercks | E127: Buy | F127: 850.00 | G127: - | H127: 982.5 | I127: 1050.00 | J127: Profit of Rs.132.50/- | K127: 132.50 | L127: 15.59% | M127: Successful | N127: 2015-02-04
A128: 8 | B128: 2014-10-01 | D128: Grindwell Norton | E128: Buy | F128: 475.00 | G128: - | H128: 515 | I128: 600.00 | J128: Profit of Rs.40/- | K128: 40.00 | L128: 8.42% | M128: Successful | N128: 2014-10-27
A129: 9 | B129: 2014-10-01 | D129: Snowman Logistics | E129: Buy | F129: 86.00 | G129: - | H129: 99 | I129: 140.00 | J129: Profit of Rs.13.00/- | K129: 13.00 | L129: 15.12% | M129: Successful | N129: 2014-10-27
A130: 10 | B130: 2014-10-14 | D130: Birla Corp | E130: Buy | F130: 496.60 | G130: - | H130: 621 | I130: 580.00 | J130: Target Achieved | K130: 124.40 | L130: 25.05% | M130: Successful | N130: 2016-08-23
A131: 11 | B131: 2014-10-14 | D131: Ultratech Cem | E131: Buy | F131: 2481.90 | G131: - | H131: 2840 | I131: 2870.00 | J131: Profit of Rs.358.10/- | K131: 358.10 | L131: 14.43% | M131: Successful | N131: 2015-01-13
A132: =1+A129 -> 10 | B132: 2014-10-16 | D132: Sintex Inds | E132: Buy | F132: 84.50 | G132: - | H132: 93 | I132: 110.00 | J132: Profit of Rs.8.50/- | K132: 8.50 | L132: 10.06% | M132: Successful | N132: 2014-10-27
A133: =1+A132 -> 11 | B133: 2014-10-16 | D133: HSIL | E133: Buy | F133: 401.00 | G133: - | H133: 428 | I133: 450.00 | J133: Profit of Rs.27.00/- | K133: 27.00 | L133: 6.73% | M133: Successful | N133: 2015-01-16
A134: 12 | B134: 2014-10-16 | D134: Eveready Inds | E134: Buy | F134: 101.00 | G134: - | H134: 112 | I134: 120.00 | J134: Profit of Rs.11.00/- | K134: 11.00 | L134: 10.89% | M134: Successful | N134: 2014-10-27
A135: 13 | B135: 2014-11-11 | D135: Pennar Inds | E135: Buy | F135: 59.00 | G135: - | H135: 76 | I135: 76.00 | J135: Target Achieved | K135: 17.00 | L135: 28.81% | M135: Successful | N135: 2017-10-24
A136: 14 | B136: 2014-11-11 | D136: Snowman Logistics | E136: Buy | F136: 99.00 | G136: - | H136: 120 | I136: 120.00 | J136: Profit of Rs.21/- | K136: 21.00 | L136: 21.21% | M136: Successful | N136: 2014-11-17
A137: 15 | B137: 2014-11-13 | D137: Dharamsi Morarji Chem | E137: Buy | F137: 22.00 | G137: - | H137: 33.55 | I137: 32.00 | J137: Profit of Rs 11.55/- | K137: 11.55 | L137: 52.50% | M137: Successful | N137: 2015-07-03
A138: 16 | B138: 2014-12-03 | D138: Tatachem | E138: Buy | F138: 440.00 | G138: - | H138: 520 | I138: 520.00 | J138: Profit of Rs 80.00/- | K138: 80.00 | L138: 18.18% | M138: Successful | N138: 2015-07-23
A139: 17 | B139: 2014-12-03 | D139: Advanta | E139: Buy | F139: 360.00 | G139: - | H139: 427 | I139: 425.00 | J139: Profit of Rs.67.00/- | K139: 67.00 | L139: 18.61% | M139: Successful | N139: 2015-02-23
A140: 18 | B140: 2015-01-08 | D140: GDL | E140: Buy | F140: 360.00 | G140: - | H140: 455 | I140: 420.00 | J140: Profit of Rs.95.00/- | K140: 95.00 | L140: 26.39% | M140: Successful | N140: 2015-01-20
A141: 19 | B141: 2015-01-08 | D141: NRB Bearing | E141: Buy | F141: 130.00 | H141: 175.5 | I141: 165.00 | J141: Profit of Rs 45.50/- | K141: 45.50 | L141: 35.00% | M141: Successful | N141: 2017-12-19
A142: 20 | B142: 2015-02-05 | D142: GSFC | E142: Accu | F142: 98.00 | H142: 120 | I142: 120.00 | J142: Target Achieved | K142: 22.00 | L142: 22.45% | M142: Successful | N142: 2017-01-18
A143: 21 | B143: 2015-02-05 | D143: Sundrmfast | E143: Accu | F143: 196.00 | H143: 262 | I143: 255.00 | J143: Target Achieved | K143: 66.00 | L143: 33.67% | M143: Successful | N143: 2016-08-17
A144: 22 | B144: 2015-03-04 | D144: GPPL | E144: Accu | F144: 230-240 | I144: 280-285 | J144: Open
A145: 23 | B145: 2015-03-04 | D145: ORIENTCEM | E145: Accu | F145: 185.00 | H145: 224 | I145: 220-225 | J145: Target Achieved | K145: 39.00 | L145: =K145/F145 -> 21.08% | M145: Successful | N145: 2016-10-04
A146: 24 | B146: 2015-03-27 | D146: PFS | E146: Accu | F146: 49-50 | I146: 67.00 | J146: Open
A147: 25 | B147: 2015-03-30 | D147: Walchandnagar Ind Ltd | E147: Accu | F147: 183.50 | H147: 219 | I147: 218.00 | J147: Profit of Rs.35.50/- | K147: 35.50 | L147: =K147/F147 -> 19.35% | M147: Successful | N147: 2015-04-09
A148: 26 | B148: 2015-04-20 | D148: Kalpataru Power Transmission Ltd | E148: Accu | F148: =(227+237)/2 -> 232.00 | H148: 298 | I148: 298.00 | J148: Target Achieved | K148: 66.00 | L148: 28.45% | M148: Successful | N148: 2017-03-29
A149: 27 | B149: 2015-05-04 | D149: Mastek Ltd | E149: Buy | F149: 385.00 | H149: =212.5+331 -> 543.5 | I149: 510.00 | J149: Profit of Rs 158.50/- | K149: 158.50 | L149: 41.17% | M149: Successful | N149: 2015-08-19
A150: 28 | B150: 2015-05-04 | D150: Suprajit Eng | E150: Buy | F150: 115.50 | H150: 146 | I150: 142.00 | J150: Profit of Rs 30.50/- | K150: 30.50 | L150: 26.41% | M150: Successful | N150: 2015-07-17
A151: 29 | B151: 2015-05-27 | D151: TCI | E151: Buy | F151: 237.50 | H151: 279.5 | I151: 278.00 | J151: Target Achieved | K151: 42.00 | L151: 17.68% | M151: Successful | N151: 2015-08-06
A152: 30 | B152: 2015-06-19 | D152: HSIL | E152: Accu | F152: 340.00 | H152: 448 | I152: 448.00 | J152: Target Achieved | K152: 108.00 | L152: 31.76% | M152: Successful | N152: 2017-10-10
A153: 31 | B153: 2015-07-06 | D153: Capital First | E153: Accu | F153: 390.00 | H153: 460 | I153: 460.00 | J153: Target Achieved | K153: 70.00 | L153: 17.95% | M153: Successful | N153: 2016-04-18
A154: 32 | B154: 2015-07-10 | D154: Dolphin OffShore | E154: Accu | F154: 118-127 | I154: 172.00 | J154: Open
A155: 33 | B155: 2015-08-03 | D155: Allcargo logistics | E155: Accu | F155: 297.50 | H155: 350 | I155: 360.00 | J155: Profit of Rs 52.50/- | K155: 52.50 | L155: =K155/F155 -> 17.65% | M155: Successful | N155: 2015-08-16
A156: 34 | B156: 2015-08-03 | D156: Camline Fine | E156: Accu | F156: 115.50 | H156: 149 | I156: 140.00 | J156: Profit of Rs 33.50/- | K156: 33.50 | L156: 29.00% | M156: Successful | N156: 2017-01-05
A157: 35 | B157: 2015-09-04 | D157: TCI | E157: Accu | F157: 226.00 | H157: 292 | I157: 292.00 | J157: Target Achieved | K157: 66.00 | L157: 29.20% | M157: Successful | N157: 2015-10-09
A158: 36 | B158: 2015-09-07 | D158: Kalpataru Power Transmission Ltd | E158: Accu | F158: 232.50 | H158: 312.5 | I158: 310.00 | J158: Target Achieved | K158: 80.00 | L158: 34.41% | M158: Successful | N158: 2017-03-29
A159: 37 | B159: 2015-09-21 | D159: LLOYD ELECTRIC & ENG LTD | E159: Accu | F159: 196.50 | H159: 238 | I159: 238.00 | J159: Target Achieved | K159: 41.50 | L159: 21.12% | M159: Successful | N159: 2015-10-14
A160: 38 | B160: 2015-09-24 | D160: L&T Finance Holding | E160: Accu | F160: 65.00 | H160: 82 | I160: 82.00 | J160: Target Achieved | K160: 17.00 | L160: 26.15% | M160: Successful | N160: 2016-07-27
A161: 39 | B161: 2015-10-14 | D161: KEC International ltd | E161: Accu | F161: 144.00 | H161: 182.5 | I161: 181.00 | J161: Target Achieved | K161: 38.50 | L161: 26.74% | M161: Successful | N161: 2017-03-23
A162: 40 | B162: 2015-10-14 | D162: Gruh Finance | E162: Accu | F162: 264.00 | H162: 311 | I162: 311.00 | J162: Target Achieved | K162: 47.00 | L162: 17.80% | M162: Successful | N162: 2016-08-22
A163: 41 | B163: 2015-11-10 | D163: Pidilitind | E163: Buy | F163: 549.50 | H163: 630 | I163: 630.00 | J163: Target Achieved | K163: 80.50 | L163: 14.65% | M163: Successful | N163: 2016-02-19
A164: 42 | B164: 2015-12-04 | D164: Zensar Technology | E164: Accu | F164: 1027.50 | H164: 1315 | I164: 1250.00 | J164: Target Achieved | K164: =H164-F164 -> 287.50 | L164: 27.98% | M164: Successful | N164: 2018-05-24
A165: 43 | B165: 2015-12-29 | D165: Vinati Organics Ltd | E165: Accu | F165: 465.00 | H165: 540 | I165: 540.00 | J165: Target Achieved | K165: 75.00 | L165: =K165/F165 -> 16.13% | M165: Successful | N165: 2016-06-09
A166: 44 | B166: 2016-01-11 | D166: GSFC | E166: Buy | F166: 81.00 | H166: 110 | I166: 110.00 | J166: Target Achieved | K166: 29.00 | L166: 35.80% | M166: Successful | N166: 2017-01-10
A167: 45 | B167: 2016-01-13 | D167: SSWL | E167: Buy | F167: 417.50 | H167: 547 | I167: 535.00 | J167: Target Achieved | K167: 129.50 | L167: 31.02% | M167: Successful | N167: 2016-07-27
A168: 46 | B168: 2016-02-08 | D168: Persistent System Ltd | E168: Accu | F168: 650.00 | H168: 800 | I168: 800.00 | J168: Target Achieved | K168: 150.00 | L168: 23.08% | M168: Successful | N168: 2018-02-23
A169: 47 | B169: 2016-03-04 | D169: UPL | E169: Accu | F169: 437.50 | H169: 504.5 | I169: 522.00 | J169: Profit of Rs.67/- | K169: 67.00 | L169: 15.31% | M169: Successful | N169: 2016-04-20
A170: 48 | B170: 2016-03-09 | D170: Ashoka Buildcon Ltd | E170: Accu | F170: 189.50 | H170: 218 | I170: 218.00 | J170: Target Achieved | K170: 28.50 | L170: 15.04% | M170: Successful | N170: 2017-10-26
A171: 49 | B171: 2016-04-11 | D171: PTC INDIA FIN SERV LTD | E171: Accu | F171: 36-37 | I171: 60.00 | J171: Open
A172: 50 | B172: 2016-04-12 | D172: CAMLINFINE $ | E172: Accu | F172: 93.00 | H172: 149 | I172: 140.00 | J172: Profit of Rs 56/- | K172: 56.00 | L172: =K172/F172 -> 60.22% | M172: Successful | N172: 2017-01-05
A173: 51 | B173: 2016-04-12 | D173: Greaves Cotton Ltd. | E173: Accu | F173: 130.00 | H173: 150 | I173: 150-155 | J173: Target Achieved | K173: 20.00 | L173: 15.38% | M173: Successful | N173: 2016-07-13
A174: 52 | B174: 2016-04-13 | D174: DHFL | E174: Accu | F174: 196.00 | H174: 299 | I174: 299.00 | J174: Target Achieved | K174: 103.00 | L174: 52.55% | M174: Successful | N174: 2016-09-07
A175: 53 | B175: 2016-04-13 | D175: Magma | E175: Accu | F175: 88.00 | H175: 103 | I175: 103.00 | J175: Target Achieved | K175: 15.00 | L175: 17.05% | M175: Successful | N175: 2016-06-09
A176: 54 | B176: 2016-05-02 | D176: KEC International ltd $ | E176: Accu | F176: 127.50 | H176: 148 | I176: 148-150 | J176: Target Achieved | K176: 20.50 | L176: 16.08% | M176: Successful | N176: 2016-07-13
A177: 55 | B177: 2016-05-03 | D177: Mindtree | E177: Accu | F177: 675.00 | H177: 815 | I177: 790-800 | J177: Target Achieved | K177: 140.00 | L177: 20.74% | M177: Successful | N177: 2018-02-23
A178: 56 | B178: 2016-06-01 | D178: Atulauto | E178: Accu | F178: 495-505 | I178: 565-570 | J178: Open
A179: 57 | B179: 2016-06-06 | D179: TRITURBINE | E179: Accu | F179: 110.00 | H179: 126.5 | I179: 125.00 | J179: Profit of Rs.16.50/- | K179: 16.50 | L179: =K179/F179 -> 15.00% | M179: Successful | N179: 2016-07-01
A180: 58 | B180: 2016-06-17 | D180: Pennar Industries Ltd | E180: Accu | F180: 44.00 | H180: 69.5 | I180: 69.50 | J180: Profit of Rs.25.50/- | K180: 25.50 | L180: =K180/F180 -> 57.95% | M180: Successful | N180: 2017-08-30
A181: 59 | B181: 2016-06-28 | D181: EVEREADY INDS. IND. LTD. | E181: Accu | F181: 262.50 | H181: 340 | I181: 333.00 | J181: Profit of Rs.77.50/- | K181: 77.50 | L181: =K181/F181 -> 29.52% | M181: Successful | N181: 2017-10-09
A182: 60 | B182: 2016-06-28 | D182: FIEM INDUSTRIES LIMITED | E182: Accu | F182: 840.00 | H182: 1230 | I182: 1230.00 | J182: Target Achieved | K182: 390.00 | L182: =K182/F182 -> 46.43% | M182: Successful | N182: 2016-10-06
A183: 61 | B183: 2016-07-05 | D183: Bajaj Corp Ltd | E183: Accu | F183: 395 | H183: 468.50 | I183: 510.00 | J183: Part profit of Rs.73.50/- | K183: 73.50 | L183: =K183/F183 -> 19% | M183: Successful | N183: 2017-08-30
A184: 62 | B184: 2016-08-02 | D184: GPPL $ | E184: Buy | F184: 167-172 | I184: 198-200 | J184: Open
A185: 63 | B185: 2016-08-04 | D185: WONDERLA HOLIDAYS LTD | E185: Accu | F185: 395-405 | I185: 475.00 | J185: Open
A186: 64 | B186: 2016-08-11 | D186: CAMLINFINE | E186: Accu | F186: 86.50 | H186: 130 | I186: 130.00 | J186: Profit of Rs.43.50/- | K186: =H186-F186 -> 43.50 | L186: =K186/F186 -> 50.29% | M186: Successful | N186: 2017-12-22
A187: 65 | B187: 2016-08-18 | D187: GRANULES | E187: Accu | F187: 133.5 | H187: 126.50 | I187: 178.00 | J187: Exit | K187: -7.00 | L187: -5.24% | M187: Unsuccessful | N187: 2016-09-02
A188: 66 | B188: 2016-08-31 | D188: VA TECH WABAG | E188: Accu | F188: 560.00 | H188: 725 | I188: 725.00 | J188: Target Achieved | K188: 165.00 | L188: 29.46% | M188: Successful | N188: 2016-03-27
A189: 67 | B189: 2016-09-01 | D189: SKIPPER LIMITED | E189: Accu | F189: 160.50 | H189: 210 | I189: 210.00 | J189: Target Achieved | K189: 49.50 | L189: 30.84% | M189: Successful | N189: 2017-05-16
A190: 68 | B190: 2016-10-03 | D190: IFB Industries | E190: Accu | F190: 430.00 | H190: 596 | I190: 575.00 | J190: Profit of Rs.166/- | K190: 166.00 | L190: 38.60% | M190: Successful | N190: 2017-02-03
A191: 69 | B191: 2016-10-14 | D191: ASIANTILES | E191: Accu | F191: 280.00 | H191: 345 | I191: 345.00 | J191: Target Achieved | K191: 65.00 | L191: 23.21% | M191: Successful | N191: 2017-03-20
A192: 70 | B192: 2016-10-14 | D192: DEEPIND | E192: Accu | F192: 245.00 | H192: 325.5 | I192: 330.00 | J192: Profit of Rs.80.5/- | K192: 80.50 | L192: 32.86% | M192: Successful | N192: 2017-02-03
A193: 71 | B193: 2016-10-17 | D193: DCBBANK | E193: Accu | F193: 125.00 | H193: 160 | I193: 160.00 | J193: Target Achieved | K193: 35.00 | L193: 28.00% | M193: Successful | N193: 2017-03-09
A194: 72 | B194: 2016-10-17 | D194: ORIENTREF | E194: Accu | F194: 114.00 | H194: 145 | I194: 145.00 | J194: Target Achieved | K194: 31.00 | L194: =K194/F194 -> 27.19% | M194: Successful | N194: 2017-05-04
A195: 73 | B195: 2016-10-17 | D195: GANECOS | E195: Accu | F195: 212.00 | H195: 280 | I195: 276.00 | J195: Profit of Rs.68/- | K195: 68.00 | L195: =K195/F195 -> 32.08% | M195: Successful | N195: 2017-05-03
A196: 74 | B196: 2016-11-04 | D196: NBCC | E196: Accu | F196: 155.00 | H196: 210 | I196: 210.00 | J196: Profit of Rs.55/- | K196: 55.00 | L196: =K196/F196 -> 35.48% | M196: Successful | N196: 2017-07-28
A197: 75 | B197: 2016-12-06 | D197: PRECAM | E197: Accu | F197: 148-153 | I197: 174.00 | J197: Open
A198: 76 | B198: 2016-12-08 | D198: INFRATEL | E198: Accu | F198: 380.00 | H198: 478 | I198: 468.00 | J198: Target Achieved | K198: 98.00 | L198: =K198/F198 -> 25.79% | M198: Successful | N198: 2017-10-17
A199: 77 | B199: 2016-12-30 | D199: GODREJPROP | E199: Accu | F199: 305.00 | H199: 375 | I199: 375.00 | J199: Target Achieved | K199: 70.00 | L199: 22.95% | M199: Successful | N199: 2017-02-02
A200: 78 | B200: 2017-01-04 | D200: DEEPAKNTR | E200: Accu | F200: 99.50 | H200: 158 | I200: 158.00 | J200: Target Achieved | K200: 58.50 | L200: 58.79% | M200: Successful | N200: 2017-06-12
A201: 79 | B201: 2017-02-20 | D201: SUBROS | E201: Accu | F201: 202.50 | H201: 234 | I201: 234.00 | J201: Target Achieved | K201: 31.50 | L201: 15.56% | M201: Successful | N201: 2017-04-11
A202: 80 | B202: 2017-02-20 | D202: RECLTD | E202: Accu | F202: 140.50 | H202: 220 | I202: 220.00 | J202: Target Achieved | K202: 79.50 | L202: 56.58% | M202: Successful | N202: 2017-05-09
A203: 81 | B203: 2017-03-24 | D203: VRLLOG | E203: Accu | F203: 300.50 | H203: 417.5 | I203: 420.00 | J203: Profit of Rs.117/- | K203: 117.00 | L203: 38.94% | M203: Successful | N203: 2017-12-01
A204: 82 | B204: 2017-03-24 | D204: FIEMIND | E204: Accu | F204: 850.00 | H204: 1042.5 | I204: 1023.00 | J204: Profit of Rs 192.50/- | K204: 192.50 | L204: 22.65% | M204: Successful | N204: 2017-04-05
A205: 83 | B205: 2017-04-05 | D205: RATNAMANI | E205: Accu | F205: 785.00 | H205: 930 | I205: 920.00 | J205: Profit of Rs.145/- | K205: 145.00 | L205: 18.47% | M205: Successful | N205: 2017-08-29
A206: 84 | B206: 2017-04-06 | D206: ZEEMEDIA | E206: Accu | F206: 39-41 | I206: 60.00 | J206: Open
A207: 85 | B207: 2017-04-12 | D207: DABUR | E207: Accu | F207: 289.50 | H207: 354 | I207: 360.00 | J207: Profit of Rs.64.5/- | K207: 64.50 | L207: =K207/F207 -> 22.28% | M207: Successful | N207: 2017-11-01
A208: 86 | B208: 2017-04-20 | D208: KPRMILL | E208: Accu | F208: 700.00 | H208: 840 | I208: 840.00 | J208: Profit of Rs.140/- | K208: 140.00 | L208: =K208/F208 -> 20.00% | M208: Successful | N208: 2017-06-07
A209: 87 | B209: 2017-05-22 | D209: GREAVESCOT | E209: Accu | F209: 153-158 | I209: 190.00 | J209: Open
A210: 88 | B210: 2017-06-01 | D210: ESSELPACK | E210: Accu | F210: 260 | H210: 311.00 | I210: 340.00 | J210: Part profit of Rs.51/- | K210: =H210-F210 -> 51.00 | L210: =K210/F210 -> 20% | M210: Successful | N210: 2017-11-17
A211: 89 | B211: 2017-06-15 | D211: KEI | E211: Accu | F211: 214.50 | H211: 262 | I211: 262.00 | J211: Profit of Rs.47.5/- | K211: =H211-F211 -> 47.50 | L211: 22.14% | M211: Successful | N211: 2017-08-30
A212: 90 | B212: 2017-07-17 | D212: MAYURUNIQ | E212: Accu | F212: 370.00 | H212: 447.5 | I212: 450.00 | J212: Target Achieved | K212: 77.50 | L212: 20.95% | M212: Successful | N212: 2017-10-27
A213: 91 | B213: 2017-07-27 | D213: RAMCOCEM | E213: Accu | F213: 657.50 | H213: 825 | I213: 820.00 | J213: Target Achieved | K213: 167.50 | L213: 25.48% | M213: Successful | N213: 2017-12-21
A214: 92 | B214: 2017-08-17 | D214: FINPIPE | E214: Accu | F214: 605.00 | H214: 750 | I214: 750.00 | J214: Profit of Rs.145/- | K214: 145.00 | L214: 23.97% | M214: Successful | N214: 2017-10-19
A215: 93 | B215: 2017-09-01 | D215: SHK | E215: Accu | F215: 255 | H215: 307.50 | I215: 320.00 | J215: Part profit of Rs.52.5/- | K215: 52.50 | L215: 21% | M215: Successful | N215: 2017-12-29
A216: 94 | B216: 2017-09-19 | D216: SKIPPER | E216: Accu | F216: 215.00 | H216: 258 | I216: 258.00 | J216: Target Achieved | K216: 43.00 | L216: 20.00% | M216: Successful | N216: 2017-11-01
A217: 95 | B217: 2017-09-20 | D217: CAMLINFINE | E217: Accu | F217: 75.00 | H217: 90 | I217: 90.00 | J217: Profit of Rs.15.00/- | K217: 15.00 | L217: 20.00% | M217: Successful | N217: 2017-10-11
A218: 96 | B218: 2017-10-03 | D218: GNA | E218: Accu | F218: 315.00 | H218: 392 | I218: 384.00 | J218: Profit of Rs.77/- | K218: 77.00 | L218: 24.44% | M218: Successful | N218: 2017-10-09
A219: 97 | B219: 2017-10-05 | D219: NOCIL | E219: Accu | F219: 145.00 | H219: 179 | I219: 180.00 | J219: Profit of Rs.34/- | K219: 34.00 | L219: 23.45% | M219: Successful | N219: 2017-10-17
A220: 98 | B220: 2017-10-06 | D220: CENTURYPLY | E220: Accu | F220: 256.00 | H220: 323 | I220: 320.00 | J220: Target Achieved | K220: 67.00 | L220: 26.17% | M220: Successful | N220: 2017-11-28
A221: 99 | B221: 2017-10-09 | D221: RECLTD | E221: Accu | F221: 152.5 | H221: 183.50 | I221: 210.00 | J221: Part Profit of Rs.31/- | K221: 31.00 | L221: 20% | M221: Successful | N221: 2017-11-03
A222: 100 | B222: 2017-10-09 | D222: EIHOTEL | E222: Accu | F222: 137.50 | H222: 184 | I222: 183.00 | J222: Profit of Rs.46.5/- | K222: 46.50 | L222: 33.82% | M222: Successful | N222: 2018-01-08
A223: 101 | B223: 2017-10-10 | D223: BOROSIL | E223: Accu | F223: 895.00 | H223: 1122.5 | I223: 1078.00 | J223: Profit of Rs.227.5/- | K223: 227.50 | L223: 25.42% | M223: Successful | N223: 2018-01-17
A224: 102 | B224: 2017-10-10 | D224: NRBBEARING | E224: Accu | F224: 125.50 | H224: 158 | I224: 155.00 | J224: Profit of Rs.32.5/- | K224: 32.50 | L224: 25.90% | M224: Successful | N224: 2017-11-28
A225: 103 | B225: 2017-10-12 | D225: CYIENT | E225: Accu | F225: 525.00 | H225: 629 | I225: 629.00 | J225: Target Achieved | K225: 104.00 | L225: 19.81% | M225: Successful | N225: 2018-01-19
A226: 104 | B226: 2017-11-07 | D226: HATSUN | E226: Accu | F226: 740.00 | H226: 892.5 | I226: 900.00 | J226: Profit of Rs.152.5/- | K226: 152.50 | L226: 20.61% | M226: Successful | N226: 2017-11-13
A227: 105 | B227: 2017-12-04 | D227: SANGHIIND | E227: Accu | F227: 118.50 | H227: 143.5 | I227: 145.00 | J227: Profit of Rs.25/- | K227: 25.00 | L227: 21.10% | M227: Successful | N227: 2017-12-28
A228: 106 | B228: 2017-12-05 | D228: ALLCARGO | E228: Accu | F228: 177.5 | H228: 215.00 | I228: 230.00 | J228: Part Profit of Rs.37.5/- | K228: 37.50 | L228: 21% | M228: Successful | N228: 2017-12-27
A229: 107 | B229: 2017-12-21 | D229: KAJARIACER | E229: Accu | F229: 710-720 | I229: 872.00 | J229: Open
A230: 108 | B230: 2017-12-29 | D230: GNA | E230: Accu | F230: 435.00 | H230: 542.5 | I230: 539.00 | J230: Target Achieved | K230: =H230-F230 -> 107.50 | L230: =K230/F230 -> 24.71% | M230: Successful | N230: 2018-04-16
A231: 109 | B231: 2017-12-29 | D231: ZENSARTECH | E231: Accu | F231: 885.00 | H231: 1090 | I231: 1084.00 | J231: Target Achieved | K231: 205.00 | L231: =K231/F231 -> 23.16% | M231: Successful | N231: 2018-04-23
A232: 110 | B232: 2018-02-07 | D232: GREAVESCOT | E232: Accu | F232: 130-132 | I232: 190.00 | J232: Open
A233: 111 | B233: 2018-02-27 | D233: MOLDTKPAC | E233: Accu | F233: 320-330 | I233: 398.00 | J233: Open
A234: 112 | B234: 2018-03-05 | D234: LICHSGFIN | E234: Accu | F234: 505-515 | I234: 672.00 | J234: Open
A235: 113 | B235: 2018-04-02 | D235: EVERESTIND | E235: Accu | F235: 485-500 | I235: 613.00 | J235: Open
A236: 114 | B236: 2018-04-04 | D236: GPPL | E236: Accu | F236: 140-143 | I236: 180.00 | J236: Open
A237: 115 | B237: 2018-04-19 | D237: MANPASAND | E237: Accu | F237: 430 | H237: 220.00 | I237: 537.00 | J237: Loss of Rs.210/- | K237: =H237-F237 -> -210.00 | L237: =K237/F237 -> -48.84% | M237: Unsuccessful | N237: 2018-06-01
A238: 116 | B238: 2018-04-30 | D238: HEIDELBERG | E238: Accu | F238: 154-158 | I238: 196.00 | J238: Open
A239: 117 | B239: 2018-05-17 | D239: PHILIPCARB | E239: Accu | F239: 230-240 | I239: 348.00 | J239: Open
A240: 118 | B240: 2018-06-07 | D240: KEC | E240: Accu | F240: 340-345 | I240: 439.00 | J240: Open
A241: 119 | B241: 2018-07-04 | D241: ASHOKLEY | E241: Accu | F241: 125-130 | I241: 170.00 | J241: Open
F242: Reinitiated $
A244: Disclaimer:
A245: This document has been prepared by the Retail Research Desk of Asit C Mehta
A246: Investment Intermediates Ltd. and is meant for use of the recipient only
A247: and is not for circulation. This document is not to be reported or
A248: copied or made available to others. It should not be considered to be
A249: taken as an offer to sell or a solicitation to buy any security. The
A250: information contained herein is from sources believed reliable. We do
A251: not represent that it is accurate or complete and it should not be
A252: relied upon as such. We may from time to time have positions in and buy
A253: and sell securities referred to herein

Sheet Call Tracker (Currency) (hidden)
A1: Master Trade High Risk
A2: Sr.no | B2: Date | C2: Company | D2: Rec | E2: Rec Price | F2: Stop Loss | G2: Call Closed At | H2: Target | I2: Remark | K2: Profit / Loss per share | L2: Gain / Loss per Lot | M2: Lot | N2: Status | O2: Closed Date
A3: 1 | B3: 2017-05-08 | C3: USDINR MAY FUT | D3: Buy | E3: 64.3935 | F3: 64.29 | G3: 64.66 | H3: 64.59 | I3: Profit of Rs.0.27/- | K3: 0.27 | L3: 266.5 | M3: 1000 | N3: Successful | O3: 2017-05-09 | R3: P
A4: 2 | B4: 2017-05-08 | C4: USDINR JUN FUT | D4: Buy | E4: 64.6535 | F4: 64.45 | G4: 64.965 | H4: 65.05 | I4: Profit of Rs 0.31/- | K4: 0.31 | L4: 311.5 | M4: 1000 | N4: Successful | O4: 2017-05-09 | R4: P
A5: 3 | B5: 2017-05-09 | C5: EUROINR MAY FUT | D5: Sell | E5: 70.65 | F5: 70.8 | G5: 70.07 | H5: 70.4 | I5: Profit of Rs 0.58/- | K5: 0.58 | L5: 580 | M5: 1000 | N5: Successful | O5: 2017-05-12 | R5: P
A6: 4 | B6: 2017-05-09 | C6: GBPINR MAY FUT | D6: Buy | E6: 83.774 | F6: 83.37 | G6: 83.37 | H6: 84.77 | I6: Loss of Rs 0.40/- | K6: -0.40 | L6: -404 | M6: 1000 | N6: Unsuccessful | O6: 2017-05-11 | R6: P
A7: 5 | B7: 2017-05-11 | C7: USDINR MAY FUT | D7: Buy | E7: 64.6555 | F7: 64.55 | G7: 64.55 | H7: 64.86 | I7: Loss of Rs.0.1055/- | K7: -0.1055 | L7: =K7*M7 -> -105.50 | M7: 1000 | N7: Unsuccessful | O7: 2017-05-11 | R7: P
A8: 6 | B8: 2017-05-15 | C8: USDINR MAY FUT | D8: Buy | E8: 64.2275 | F8: 64.08 | G8: 64.46 | H8: 64.48 | I8: Profit of Rs 0.23/- | K8: 0.23 | L8: 232.5 | M8: 1000 | N8: Successful | O8: 2017-05-18 | R8: P
A9: 7 | B9: 2017-05-19 | C9: USDINR MAY FUT | D9: Sell | E9: 64.83 | F9: 65 | G9: 65 | H9: 64.5 | I9: Loss of Rs.0.17/- | K9: -0.17 | L9: -170 | M9: 1000 | N9: Unsuccessful | O9: 2017-05-19 | R9: P
A10: 8 | B10: 2017-05-23 | C10: USDINR MAY FUT | D10: Buy | E10: 64.83 | F10: 64.62 | G10: 64.95 | H10: 65.2 | I10: Profit of Rs 0.12/- | K10: 0.12 | L10: 120 | M10: 1000 | N10: Successful | O10: 2017-05-24 | R10: P
A11: 9 | B11: 2017-05-25 | C11: USDINR MAY FUT | D11: Buy | E11: 64.57 | F11: 64.25 | G11: 64.56 | H11: 65 | I11: Loss of Rs.0.01/- | K11: -0.01 | L11: -10 | M11: 1000 | N11: Neutral | O11: 2017-05-29 | R11: P
A12: 10 | B12: 2017-05-30 | C12: USDINR JUN FUT | D12: Buy | E12: 64.9125 | F12: 64.71 | G12: 64.71 | H12: 65.31 | I12: Loss of Rs.0.20/- | K12: -0.20 | L12: -202.5 | M12: 1000 | N12: Unsuccessful | O12: 2017-05-31 | R12: P
A13: 11 | B13: 2017-06-01 | C13: USDINR JUN FUT | D13: Buy | E13: 64.655 | F13: 64.45 | G13: 64.45 | H13: 65.05 | I13: Loss of Rs.0.20/- | K13: =G13-E13 -> -0.20 | L13: =K13*M13 -> -205 | M13: 1000.00 | N13: Unsuccessful | O13: 2017-06-08 | R13: P
A14: 12 | B14: 2017-06-12 | C14: USDINR JUN FUT | D14: Buy | E14: 64.45 | F14: 64 | G14: 64.7625 | H14: 65.2 | I14: Profit of Rs 0.31/- | K14: 0.31 | L14: 312.5 | M14: 1000 | N14: Successful | O14: 2017-06-16
A15: 13 | B15: 2017-06-16 | C15: USDINR JUN FUT | D15: Buy | E15: 64.51 | F15: 64.2 | G15: 64.7 | H15: 65.11 | I15: Profit of Rs 0.19/- | K15: 0.19 | L15: 190 | M15: 1000 | N15: Successful | O15: 2017-06-21
A16: 14 | B16: 2017-06-22 | C16: USDINR JUN FUT | D16: Buy | E16: 64.56 | F16: 64.2 | G16: 64.2 | H16: 65.1 | I16: Loss of Rs.0.36/- | K16: -0.36 | L16: -360 | M16: 1000.00 | N16: Unsuccessful | O16: 2017-06-30
A17: 15 | B17: 2017-07-10 | C17: USDINR JUL FUT | D17: Buy | E17: 64.67 | F17: 64.4 | G17: 64.4 | H17: 65.15 | I17: Loss of Rs.0.27/- | K17: -0.27 | L17: -270 | M17: 1000.00 | N17: Unsuccessful | O17: 2017-07-31
A18: 16 | B18: 2017-08-02 | C18: USDINR AUG FUT | D18: Buy | E18: 64.235 | F18: 63.98 | G18: 63.98 | H18: 64.75 | I18: Loss of Rs.0.26/- | K18: -0.26 | L18: -255 | M18: 1000.00 | N18: Unsuccessful | O18: 2017-08-02
A19: 17 | B19: 2017-08-08 | C19: USDINR AUG FUT | D19: Buy | E19: 63.9425 | F19: 63.6 | G19: 64.15 | H19: 64.5 | I19: Profit of Rs 0.21/- | K19: 0.21 | L19: 207.5 | M19: 1000 | N19: Successful | O19: 2017-08-10
A20: 18 | B20: 2017-08-22 | C20: USDINR AUG FUT | D20: Buy | E20: 64.1175 | F20: 63.9 | G20: 64.01 | H20: 64.5 | I20: Loss of Rs.0.11/- | K20: =G20-E20 -> -0.11 | L20: =K20*M20 -> -107.5 | M20: 1000.00 | N20: Unsuccessful | O20: 2017-08-29
A21: 19 | B21: 2017-09-01 | C21: USDINR SEP FUT | D21: Buy | E21: 64.1 | F21: 63.8 | G21: 64.205 | H21: 64.7 | I21: Profit of Rs 0.11/- | K21: 0.11 | L21: 105 | M21: 1000 | N21: Successful | O21: 2017-09-01
A22: 20 | B22: 2017-09-04 | C22: USDINR SEP FUT | D22: Buy | E22: 64.095 | F22: 63.8 | G22: 64.195 | H22: 64.7 | I22: Profit of Rs 0.10/- | K22: 0.10 | L22: =K22*M22 -> 100 | M22: 1000 | N22: Successful | O22: 2017-09-04
A23: 21 | B23: 2017-09-05 | C23: USDINR SEP FUT | D23: Buy | E23: 64.25 | F23: 64 | G23: 64.355 | H23: 64.75 | I23: Profit of Rs 0.11/- | K23: =G23-E23 -> 0.11 | L23: =K23*M23 -> 105 | M23: 1000 | N23: Successful | O23: 2017-09-06
A24: 22 | B24: 2017-09-06 | C24: USDINR SEP FUT | D24: Sell | E24: 64.365 | F24: 64.5 | G24: 64.265 | H24: 64 | I24: Profit of Rs 0.10/- | K24: =E24-G24 -> 0.10 | L24: 100 | M24: 1000 | N24: Successful | O24: 2017-09-06
A25: 23 | B25: 2017-09-07 | C25: USDINR SEP FUT | D25: Buy | E25: 64.145 | F25: 63.9 | G25: 64.2565 | H25: 64.65 | I25: Profit of Rs 0.11/- | K25: =G25-E25 -> 0.11 | L25: =K25*M25 -> 111.5 | M25: 1000 | N25: Successful | O25: 2017-09-14
A26: 24 | B26: 2017-09-11 | C26: JPYINR SEP FUT | D26: Sell | E26: 59.0285 | F26: 59.25 | G26: 58.645 | H26: 58.5 | I26: Profit of Rs 0.38/- | K26: =E26-G26 -> 0.38 | L26: 383.5 | M26: 1000 | N26: Successful | O26: 2017-09-12
A27: 25 | B27: 2017-09-14 | C27: USDINR SEP FUT | D27: Buy | E27: 64.145 | F27: 63.95 | G27: 64.26 | H27: 64.5 | I27: Profit of Rs 0.12/- | K27: =G27-E27 -> 0.12 | L27: 115 | M27: 1000 | N27: Successful | O27: 2017-09-19
A28: 26 | B28: 2017-09-20 | C28: USDINR SEP FUT | D28: Buy | E28: 64.3515 | F28: 64.15 | G28: 64.57 | H28: 64.75 | I28: Profit of Rs 0.22/- | K28: =G28-E28 -> 0.22 | L28: =K28*M28 -> 218.5 | M28: 1000 | N28: Successful | O28: 2017-09-21
A29: 27 | B29: 2017-09-21 | C29: USDINR SEP FUT | D29: Sell | E29: 64.795 | F29: 65.05 | G29: 65.05 | H29: 64.4 | I29: Loss of Rs.0.17/- | K29: -0.17 | L29: -170 | M29: 1000.00 | N29: Unsuccessful | O29: 2017-09-22
A30: 28 | B30: 2017-09-25 | C30: USDINR SEP FUT | D30: Buy | E30: 64.77 | F30: 64.4 | G30: 64.92 | H30: 65.1 | I30: Profit of Rs 0.15/- | K30: =G30-E30 -> 0.15 | L30: =K30*M30 -> 150 | M30: 1000 | N30: Successful | O30: 2017-09-25
A31: 29 | B31: 2017-09-25 | C31: USDINR SEP FUT | D31: Sell | E31: 65.1077 | F31: 65.3 | G31: 65.3 | H31: 64.5 | I31: Loss of Rs.0.19/- | K31: -0.19 | L31: -190 | M31: 1000.00 | N31: Unsuccessful | O31: 2017-09-26
A32: 30 | B32: 2017-09-27 | C32: USDINR SEP FUT | D32: Sell | E32: 65.7225 | F32: 65.83 | G32: 65.7 | H32: 65.52 | I32: Profit of Rs 0.02/- | K32: =E32-G32 -> 0.02 | L32: =K32*M32 -> 22.5 | M32: 1000 | N32: Neutral | O32: 2017-09-27
A33: 31 | B33: 2017-09-27 | C33: USDINR OCT FUT | D33: Sell | E33: 66 | F33: 66.5 | G33: 65.895 | H33: 65 | I33: Profit of Rs 0.11/- | K33: =E33-G33 -> 0.11 | L33: 105 | M33: 1000 | N33: Successful | O33: 2017-09-27
A34: 32 | B34: 2017-09-28 | C34: USDINR OCT FUT | D34: Sell | E34: 66.075 | F34: 66.3 | G34: 65.96 | H34: 65.4 | I34: Profit of Rs 0.12/- | K34: =E34-G34 -> 0.12 | L34: =K34*M34 -> 115 | M34: 1000 | N34: Successful | O34: 2017-09-28
A35: 33 | B35: 2017-09-29 | C35: GBPINR OCT fut | D35: Buy | E35: 87.745 | F35: 87.5 | G35: 87.84 | H35: 88.25 | I35: Profit of Rs 0.09/- | K35: =G35-E35 -> 0.09 | L35: 95 | M35: 1000 | N35: Successful | O35: 2017-09-29
A36: 34 | B36: 2017-09-29 | C36: USDINR OCT FUT | D36: Buy | E36: 65.514 | F36: 65.25 | G36: 65.85 | H36: 66 | I36: Profit of Rs 0.34/- | K36: 0.34 | L36: =K36*M36 -> 336 | M36: 1000 | N36: Successful | O36: 2017-10-03
A37: 35 | B37: 2017-10-09 | C37: USDINR OCT FUT | D37: Buy | E37: 65.48 | F37: 65.23 | G37: 65.5775 | H37: 65.95 | I37: Profit of Rs 0.10/- | K37: =G37-E37 -> 0.10 | L37: =K37*M37 -> 97.5 | M37: 1000 | N37: Successful | O37: 2017-10-09
A38: 36 | B38: 2017-10-10 | C38: USDINR OCT FUT | D38: Buy | E38: 65.41 | F38: 65.15 | G38: 65.5075 | H38: 66 | I38: Profit of Rs 0.10/- | K38: 0.10 | L38: 97.5 | M38: 1000 | N38: Successful | O38: 2017-10-10
A39: 37 | B39: 2017-10-11 | C39: USDINR OCT FUT | D39: Buy | E39: 65.38 | F39: 65.13 | G39: 65.13 | H39: 65.88 | I39: Loss of Rs.0.25/- | K39: -0.25 | L39: -250 | M39: 1000.00 | N39: Unsuccessful | O39: 2017-10-13
A40: 38 | B40: 2017-10-16 | C40: USDINR OCT FUT | D40: Buy | E40: 64.7925 | F40: 64.54 | G40: 64.905 | H40: 65.3 | I40: Profit of Rs 0.11/- | K40: =G40-E40 -> 0.11 | L40: =K40*M40 -> 112.5 | M40: 1000 | N40: Successful | O40: 2017-10-17
A41: 39 | B41: 2017-10-23 | C41: USDINR OCT FUT | D41: Buy | E41: 65.115 | F41: 64.85 | G41: 65.21 | H41: 65.5 | I41: Profit of Rs 0.09/- | K41: =G41-E41 -> 0.09 | L41: =K41*M41 -> 95 | M41: 1000 | N41: Successful | O41: 2017-10-25
A42: 40 | B42: 2017-10-23 | C42: JPYINR OCT FUT | D42: Buy | E42: 57.285 | F42: 57.03 | G42: 57.38 | H42: 58.4 | I42: Profit of Rs 0.10/- | K42: =G42-E42 -> 0.10 | L42: =K42*M42 -> 95 | M42: 1000 | N42: Successful | O42: 2017-10-23
A43: 41 | B43: 2017-10-26 | C43: USDINR OCT FUT | D43: Buy | E43: 64.755 | F43: 64.5 | G43: 64.87 | H43: 65.25 | I43: Profit of Rs 0.12/- | K43: 0.12 | L43: 115 | M43: 1000 | N43: Successful | O43: 2017-10-25
A44: 42 | B44: 2017-10-30 | C44: USDINR NOV FUT | D44: Buy | E44: 65.035 | F44: 64.79 | G44: 64.79 | H44: 65.5 | I44: Loss of Rs.0.24/- | K44: -0.24 | L44: -245 | M44: 1000.00 | N44: Unsuccessful | O44: 2017-11-01
A45: 43 | B45: 2017-11-01 | C45: JPYINR NOV FUT | D45: Buy | E45: 56.9875 | F45: 56.73 | G45: 57.0959 | H45: 57.5 | I45: Profit of Rs 0.11/- | K45: =G45-E45 -> 0.11 | L45: =K45*M45 -> 108.4 | M45: 1000 | N45: Successful | O45: 2017-11-07
A46: 44 | B46: 2017-11-02 | C46: USDINR NOV FUT | D46: Buy | E46: 64.7838 | F46: 64.5 | G46: 64.89 | H46: 65.25 | I46: Profit of Rs 0.11/- | K46: =G46-E46 -> 0.11 | L46: =K46*M46 -> 106.2 | M46: 1000 | N46: Successful | O46: 2017-11-06
A47: 45 | B47: 2017-11-08 | C47: USDINR NOV FUT | D47: Buy | E47: 65.1363 | F47: 64.8375 | G47: 65.235 | H47: 65.73 | I47: Profit of Rs 0.10/- | K47: =G47-E47 -> 0.10 | L47: =K47*M47 -> 98.7 | M47: 1000 | N47: Successful | O47: 2017-11-10
A48: 46 | B48: 2017-11-08 | C48: GBPINR NOV FUT | D48: Buy | E48: 85.4983 | F48: 85.25 | G48: 85.6 | H48: 86 | I48: Profit of Rs 0.10/- | K48: =G48-E48 -> 0.10 | L48: =K48*M48 -> 101.7 | M48: 1000 | N48: Successful | O48: 2017-11-09
A49: 47 | B49: 2017-11-16 | C49: EURINR NOV FUT | D49: Buy | E49: 76.8975 | F49: 76.3975 | G49: 76.3975 | H49: 77.8975 | I49: Loss of Rs.0.50/- | K49: =G49-E49 -> -0.50 | L49: -500 | M49: 1000.00 | N49: Unsuccessful | O49: 2017-11-01
A50: 48 | B50: 2017-11-16 | C50: JPYINR NOV FUT | D50: Buy | E50: 57.6625 | F50: 57.2675 | G50: 57.8075 | H50: 58.6675 | I50: Profit of Rs 0.14/- | K50: =G50-E50 -> 0.14 | L50: =K50*M50 -> 145 | M50: 1000 | N50: Successful | O50: 2017-11-17
A51: 49 | B51: 2017-11-22 | C51: EURINR NOV FUT | D51: Buy | E51: 76.175 | F51: 75.95 | G51: 76.335 | H51: 76.6 | I51: Profit of Rs 0.16/- | K51: 0.16 | L51: =K51*M51 -> 160 | M51: 1000 | N51: Successful | O51: 2017-11-22
A52: 50 | B52: 2017-11-22 | C52: USDINR NOV FUT | D52: Buy | E52: 64.87 | F52: 64.5 | G52: 64.5 | H52: 65.5 | I52: Loss of Rs.0.37/- | K52: -0.37 | L52: -370 | M52: 1000.00 | N52: Unsuccessful | O52: 2017-11-27
A53: 51 | B53: 2017-11-28 | C53: GBPINR DEC FUT | D53: Buy | E53: 86.17 | F53: 85.85 | G53: 86.46 | H53: 87 | I53: Profit of Rs 0.29/- | K53: 0.29 | L53: =K53*M53 -> 290 | M53: 1000 | N53: Successful | O53: 2017-11-29
A54: 52 | B54: 2017-11-28 | C54: JPYINR DEC FUT | D54: Buy | E54: 58.16 | F54: 57.85 | G54: 57.85 | H54: 58.6 | I54: Loss of Rs.0.31/- | K54: -0.31 | L54: -310 | M54: 1000.00 | N54: Unsuccessful | O54: 2017-11-29
A55: 53 | B55: 2017-11-28 | C55: USDINR DEC FUT | D55: Buy | E55: 64.63 | F55: 64.13 | G55: 64.13 | H55: 65.63 | I55: Loss of Rs.0.50/- | K55: -0.50 | L55: =K55*M55 -> -500 | M55: 1000.00 | N55: Unsuccessful | O55: 2017-12-15
A56: 54 | B56: 2017-11-28 | C56: EURINR DEC FUT | D56: Buy | E56: 76.93 | F56: 76.43 | G56: 76.43 | H56: 77.93 | I56: Loss of Rs.0.50/- | K56: =G56-E56 -> -0.50 | L56: =K56*M56 -> -500 | M56: 1000.00 | N56: Unsuccessful | O56: 2017-11-29
A57: 55 | B57: 2017-12-12 | C57: EURINR DEC FUT | D57: Buy | E57: 76.105 | F57: 75.7 | G57: 76.27 | H57: 76.8 | I57: Profit of Rs 0.16/- | K57: =G57-E57 -> 0.16 | L57: 165 | M57: 1000 | N57: Successful | O57: 2017-12-14
A58: 56 | B58: 2017-12-12 | C58: JPYINR DEC FUT | D58: Buy | E58: 56.975 | F58: 56.7 | G58: 57.21 | H58: 57.6 | I58: Profit of Rs 0.23/- | K58: =G58-E58 -> 0.23 | L58: =K58*M58 -> 235 | M58: 1000 | N58: Successful | O58: 2017-12-14

Sheet Sheet2 (hidden)
A1: SYMBOL | B1: SERIES | C1: OPEN | D1: HIGH | E1: LOW | F1: CLOSE | G1: LAST | H1: PREVCLOSE | I1: TOTTRDQTY | J1: TOTTRDVAL | K1: TIMESTAMP | L1: TOTALTRADES | M1: ISIN | N1: ISIN
A2: 20MICRONS | B2: EQ | C2: 36.85 | D2: 36.85 | E2: 34.95 | F2: 35.55 | G2: 35.4 | H2: 35.8 | I2: 23427 | J2: 831022 | K2: 2018-07-04 | L2: 328 | M2: INE144J01027
A3: 21STCENMGM | B3: EQ | C3: 35 | D3: 35.2 | E3: 34.5 | F3: 35.2 | G3: 35.2 | H3: 37.05 | I3: 1504 | J3: 52363.65 | K3: 2018-07-04 | L3: 19 | M3: INE253B01015
A4: 3IINFOTECH | B4: EQ | C4: 4.3 | D4: 4.3 | E4: 3.95 | F4: 4 | G4: 4.05 | H4: 4.25 | I4: 6770409 | J4: 27582585.25 | K4: 2018-07-04 | L4: 3576 | M4: INE748C01020
A5: 3MINDIA | B5: EQ | C5: 19471 | D5: 19749.95 | E5: 19446.5 | F5: 19561.25 | G5: 19600 | H5: 19553.75 | I5: 446 | J5: 8730645.7 | K5: 2018-07-04 | L5: 170 | M5: INE470A01017
A6: 3PLAND | B6: EQ | C6: 14.4 | D6: 14.55 | E6: 12.55 | F6: 13.75 | G6: 14.5 | H6: 14 | I6: 6954 | J6: 99666.4 | K6: 2018-07-04 | L6: 49 | M6: INE105C01023
A7: 5PAISA | B7: EQ | C7: 307.15 | D7: 316.9 | E7: 299.8 | F7: 301.6 | G7: 301 | H7: 315.55 | I7: 9924 | J7: 3020291.4 | K7: 2018-07-04 | L7: 374 | M7: INE618L01018
A8: 63MOONS | B8: EQ | C8: 76.8 | D8: 78 | E8: 75.05 | F8: 75.85 | G8: 75.9 | H8: 76.95 | I8: 152873 | J8: 11687441.85 | K8: 2018-07-04 | L8: 2444 | M8: INE111B01023
A9: 8KMILES | B9: EQ | C9: 319 | D9: 348 | E9: 317.4 | F9: 348 | G9: 348 | H9: 316.4 | I9: 2860435 | J9: 976014770.2 | K9: 2018-07-04 | L9: 55697 | M9: INE650K01021
A10: A2ZINFRA | B10: EQ | C10: 19.8 | D10: 20.25 | E10: 19.6 | F10: 19.75 | G10: 19.75 | H10: 19.85 | I10: 239993 | J10: 4769079.1 | K10: 2018-07-04 | L10: 1000 | M10: INE619I01012
A11: AARTIDRUGS | B11: EQ | C11: 543 | D11: 558.95 | E11: 543 | F11: 553.8 | G11: 552.6 | H11: 537.8 | I11: 17179 | J11: 9490584.7 | K11: 2018-07-04 | L11: 1358 | M11: INE767A01016
A12: AARTIIND | B12: EQ | C12: 1215.65 | D12: 1222 | E12: 1190 | F12: 1198.7 | G12: 1194.3 | H12: 1215.65 | I12: 16236 | J12: 19484301.8 | K12: 2018-07-04 | L12: 1636 | M12: INE769A01020
A13: AARVEEDEN | B13: EQ | C13: 31 | D13: 31.5 | E13: 30.5 | F13: 31.15 | G13: 31.4 | H13: 31.45 | I13: 3599 | J13: 111806.6 | K13: 2018-07-04 | L13: 42 | M13: INE273D01019
A14: ABAN | B14: EQ | C14: 115.2 | D14: 115.25 | E14: 111.2 | F14: 113.75 | G14: 112.9 | H14: 116.2 | I14: 844093 | J14: 95542859.05 | K14: 2018-07-04 | L14: 9211 | M14: INE421A01028
A15: ABB | B15: EQ | C15: 1175.55 | D15: 1189.85 | E15: 1171.05 | F15: 1179.35 | G15: 1174.4 | H15: 1173.55 | I15: 20762 | J15: 24501114.75 | K15: 2018-07-04 | L15: 2200 | M15: INE117A01022
A16: ABBOTINDIA | B16: EQ | C16: 7147.75 | D16: 7190 | E16: 7104.8 | F16: 7146.85 | G16: 7150 | H16: 7091.6 | I16: 8039 | J16: 57455318.8 | K16: 2018-07-04 | L16: 1118 | M16: INE358A01014
A17: ABCAPITAL | B17: EQ | C17: 129.9 | D17: 130 | E17: 128 | F17: 129.05 | G17: 128.7 | H17: 129.75 | I17: 836873 | J17: 107778672.5 | K17: 2018-07-04 | L17: 14725 | M17: INE674K01013
A18: ABFRL | B18: EQ | C18: 138.2 | D18: 140.5 | E18: 137.05 | F18: 137.9 | G18: 138.05 | H18: 139.55 | I18: 143894 | J18: 19916149.9 | K18: 2018-07-04 | L18: 2657 | M18: INE647O01011
A19: ACC | B19: EQ | C19: 1334 | D19: 1359.5 | E19: 1331.75 | F19: 1350.85 | G19: 1350.9 | H19: 1332.85 | I19: 389155 | J19: 525018886.4 | K19: 2018-07-04 | L19: 13222 | M19: INE012A01025
A20: ACCELYA | B20: EQ | C20: 1172.9 | D20: 1172.9 | E20: 1159 | F20: 1168 | G20: 1167 | H20: 1172.9 | I20: 826 | J20: 965184.8 | K20: 2018-07-04 | L20: 68 | M20: INE793A01012
A21: ACE | B21: EQ | C21: 121.9 | D21: 128.25 | E21: 119.3 | F21: 126.5 | G21: 124.5 | H21: 123.95 | I21: 454475 | J21: 56224195.9 | K21: 2018-07-04 | L21: 5117 | M21: INE731H01025
A22: ADANIENT | B22: EQ | C22: 106.3 | D22: 108.75 | E22: 103.75 | F22: 107.7 | G22: 107.5 | H22: 106.25 | I22: 7081273 | J22: 753136205.8 | K22: 2018-07-04 | L22: 32971 | M22: INE423A01024
A23: ADANIGREEN | B23: EQ | C23: 26 | D23: 29.95 | E23: 25.8 | F23: 29.6 | G23: 29.8 | H23: 26.35 | I23: 1033451 | J23: 29037861.2 | K23: 2018-07-04 | L23: 6363 | M23: INE364U01010
A24: ADANIPORTS | B24: EQ | C24: 362.95 | D24: 363.5 | E24: 355.95 | F24: 359.95 | G24: 359 | H24: 362.75 | I24: 1616705 | J24: 580848020.9 | K24: 2018-07-04 | L24: 45410 | M24: INE742F01042
A25: ADANIPOWER | B25: EQ | C25: 15.9 | D25: 16.3 | E25: 15.7 | F25: 16.1 | G25: 16 | H25: 16 | I25: 8746331 | J25: 139772298.5 | K25: 2018-07-04 | L25: 9899 | M25: INE814H01011
A26: ADANITRANS | B26: EQ | C26: 151.25 | D26: 159.5 | E26: 151.25 | F26: 156.85 | G26: 156.9 | H26: 153.65 | I26: 593481 | J26: 91299424.35 | K26: 2018-07-04 | L26: 3515 | M26: INE931S01010
A27: ADFFOODS | B27: EQ | C27: 233.9 | D27: 236.05 | E27: 230.5 | F27: 234.7 | G27: 235.2 | H27: 232.45 | I27: 74268 | J27: 17329433.35 | K27: 2018-07-04 | L27: 1270 | M27: INE982B01019
A28: ADHUNIK | B28: EQ | C28: 3.25 | D28: 3.35 | E28: 3.2 | F28: 3.3 | G28: 3.3 | H28: 3.35 | I28: 18433 | J28: 60465.7 | K28: 2018-07-04 | L28: 46 | M28: INE400H01019
A29: ADHUNIKIND | B29: EQ | C29: 67.1 | D29: 73.8 | E29: 67.1 | F29: 71.9 | G29: 71.9 | H29: 70.6 | I29: 52741 | J29: 3762401.85 | K29: 2018-07-04 | L29: 290 | M29: INE452L01012
A30: ADLABS | B30: EQ | C30: 36.6 | D30: 37.6 | E30: 35.7 | F30: 37.35 | G30: 37.6 | H30: 36.35 | I30: 113712 | J30: 4205365.9 | K30: 2018-07-04 | L30: 1096 | M30: INE172N01012
A31: ADORWELD | B31: EQ | C31: 306 | D31: 306.9 | E31: 302.1 | F31: 303.4 | G31: 303 | H31: 305.55 | I31: 5333 | J31: 1620220.35 | K31: 2018-07-04 | L31: 204 | M31: INE045A01017
A32: ADROITINFO | B32: EQ | C32: 29.5 | D32: 32.55 | E32: 29 | F32: 29.75 | G32: 29.3 | H32: 28.35 | I32: 190050 | J32: 5806088.6 | K32: 2018-07-04 | L32: 975 | M32: INE737B01033
A33: ADSL | B33: EQ | C33: 18 | D33: 18 | E33: 17.05 | F33: 17.45 | G33: 17.5 | H33: 17.55 | I33: 42447 | J33: 739823.65 | K33: 2018-07-04 | L33: 160 | M33: INE102I01027
A34: ADVANIHOTR | B34: EQ | C34: 51.05 | D34: 51.3 | E34: 49.15 | F34: 50.2 | G34: 49.75 | H34: 49.95 | I34: 34484 | J34: 1731644.65 | K34: 2018-07-04 | L34: 324 | M34: INE199C01026
A35: ADVENZYMES | B35: EQ | C35: 213 | D35: 215.45 | E35: 212 | F35: 212.3 | G35: 212.1 | H35: 213.25 | I35: 43371 | J35: 9231524.95 | K35: 2018-07-04 | L35: 1229 | M35: INE837H01020
A36: AEGISCHEM | B36: EQ | C36: 207.65 | D36: 211 | E36: 207.2 | F36: 209.4 | G36: 211 | H36: 207.45 | I36: 38566 | J36: 8057863.25 | K36: 2018-07-04 | L36: 1948 | M36: INE208C01025
A37: AFL | B37: EQ | C37: 54.9 | D37: 56.5 | E37: 54.15 | F37: 55.75 | G37: 55.4 | H37: 54.9 | I37: 556 | J37: 30650.65 | K37: 2018-07-04 | L37: 11 | M37: INE020G01017
A38: AGARIND | B38: EQ | C38: 295 | D38: 300 | E38: 277 | F38: 278.95 | G38: 279.95 | H38: 290.75 | I38: 3911 | J38: 1103755.85 | K38: 2018-07-04 | L38: 180 | M38: INE204E01012
A39: AGCNET | B39: EQ | C39: 103 | D39: 103 | E39: 101.2 | F39: 101.95 | G39: 101.3 | H39: 102.05 | I39: 2016 | J39: 206128.8 | K39: 2018-07-04 | L39: 57 | M39: INE676A01019
A40: AGLSL | B40: EQ | C40: 80 | D40: 83.5 | E40: 79.15 | F40: 83.15 | G40: 83.5 | H40: 82.1 | I40: 887 | J40: 73213.05 | K40: 2018-07-04 | L40: 20 | M40: INE517U01013
A41: AGRITECH | B41: EQ | C41: 104.7 | D41: 104.7 | E41: 102 | F41: 103.05 | G41: 104.3 | H41: 102.7 | I41: 21224 | J41: 2193015.3 | K41: 2018-07-04 | L41: 615 | M41: INE449G01018
A42: AHLEAST | B42: EQ | C42: 267.05 | D42: 267.05 | E42: 259.1 | F42: 259.3 | G42: 259.3 | H42: 257.1 | I42: 295 | J42: 77269.4 | K42: 2018-07-04 | L42: 70 | M42: INE926K01017
A43: AHLUCONT | B43: EQ | C43: 362.35 | D43: 366.8 | E43: 360.05 | F43: 363.5 | G43: 363.1 | H43: 364.3 | I43: 770 | J43: 279853.5 | K43: 2018-07-04 | L43: 54 | M43: INE758C01029
A44: AHLWEST | B44: BE | C44: 304.95 | D44: 311 | E44: 290 | F44: 301 | G44: 301 | H44: 305 | I44: 217 | J44: 65546 | K44: 2018-07-04 | L44: 4 | M44: INE915K01010
A45: AIAENG | B45: EQ | C45: 1511.6 | D45: 1570 | E45: 1489.55 | F45: 1549.45 | G45: 1552 | H45: 1515.65 | I45: 134255 | J45: 204467448.3 | K45: 2018-07-04 | L45: 1882 | M45: INE212H01026
A46: AICHAMP | B46: BE | C46: 22.65 | D46: 22.65 | E46: 22.65 | F46: 22.65 | G46: 22.65 | H46: 23.75 | I46: 502 | J46: 11370.3 | K46: 2018-07-04 | L46: 4 | M46: INE768E01024
A47: AIFL | B47: EQ | C47: 445.55 | D47: 448.85 | E47: 445 | F47: 445.5 | G47: 445 | H47: 445.1 | I47: 95365 | J47: 42490875.8 | K47: 2018-07-04 | L47: 1010 | M47: INE428O01016
A48: AJANTPHARM | B48: EQ | C48: 1038.9 | D48: 1049.45 | E48: 1022 | F48: 1030.8 | G48: 1032 | H48: 1028.75 | I48: 597062 | J48: 617390716.6 | K48: 2018-07-04 | L48: 15226 | M48: INE031B01049
A49: AJMERA | B49: EQ | C49: 206.5 | D49: 210 | E49: 204.1 | F49: 207.9 | G49: 208.95 | H49: 206.55 | I49: 34027 | J49: 7057386.7 | K49: 2018-07-04 | L49: 886 | M49: INE298G01027
A50: AKSHARCHEM | B50: EQ | C50: 538 | D50: 546.9 | E50: 533 | F50: 535.7 | G50: 535 | H50: 538.35 | I50: 1293 | J50: 694604.8 | K50: 2018-07-04 | L50: 164 | M50: INE542B01011
A51: AKSHOPTFBR | B51: EQ | C51: 25.2 | D51: 25.6 | E51: 25 | F51: 25.35 | G51: 25.45 | H51: 25.35 | I51: 327438 | J51: 8270005.65 | K51: 2018-07-04 | L51: 1059 | M51: INE523B01011
A52: AKZOINDIA | B52: EQ | C52: 1876 | D52: 1880.9 | E52: 1860.25 | F52: 1876.6 | G52: 1880 | H52: 1870.7 | I52: 1364 | J52: 2557861.7 | K52: 2018-07-04 | L52: 755 | M52: INE133A01011
A53: ALANKIT | B53: EQ | C53: 28.2 | D53: 28.2 | E53: 26.65 | F53: 26.9 | G53: 26.95 | H53: 28.3 | I53: 656691 | J53: 17956407.35 | K53: 2018-07-04 | L53: 1927 | M53: INE914E01040
A54: ALBERTDAVD | B54: EQ | C54: 440 | D54: 460 | E54: 439.95 | F54: 444.55 | G54: 443 | H54: 432.35 | I54: 6207 | J54: 2774542.75 | K54: 2018-07-04 | L54: 284 | M54: INE155C01010
A55: ALBK | B55: EQ | C55: 41 | D55: 41.3 | E55: 40.4 | F55: 40.9 | G55: 40.85 | H55: 41.2 | I55: 3784225 | J55: 154649246.8 | K55: 2018-07-04 | L55: 7371 | M55: INE428A01015
A56: ALCHEM | B56: BE | C56: 6 | D56: 6.2 | E56: 5.9 | F56: 6 | G56: 6 | H56: 6.2 | I56: 2419 | J56: 14758 | K56: 2018-07-04 | L56: 11 | M56: INE964B01033
A57: ALEMBICLTD | B57: EQ | C57: 39.35 | D57: 41.9 | E57: 39 | F57: 40.7 | G57: 40.65 | H57: 39.35 | I57: 660888 | J57: 27003538.95 | K57: 2018-07-04 | L57: 3681 | M57: INE426A01027
A58: ALICON | B58: EQ | C58: 590.35 | D58: 591.35 | E58: 575.25 | F58: 580.8 | G58: 583 | H58: 590.5 | I58: 418 | J58: 242046.6 | K58: 2018-07-04 | L58: 86 | M58: INE062D01024
A59: ALKALI | B59: EQ | C59: 64.15 | D59: 64.15 | E59: 62.4 | F59: 63.6 | G59: 63.5 | H59: 62.55 | I59: 2135 | J59: 134181.95 | K59: 2018-07-04 | L59: 75 | M59: INE773I01017
A60: ALKEM | B60: EQ | C60: 1898 | D60: 1902.95 | E60: 1860.05 | F60: 1868.15 | G60: 1869.95 | H60: 1894.9 | I60: 11980 | J60: 22471619 | K60: 2018-07-04 | L60: 2842 | M60: INE540L01014
A61: ALKYLAMINE | B61: EQ | C61: 629.4 | D61: 634.35 | E61: 600.05 | F61: 626.6 | G61: 627.65 | H61: 629.4 | I61: 3151 | J61: 1940702.55 | K61: 2018-07-04 | L61: 324 | M61: INE150B01021
A62: ALLCARGO | B62: EQ | C62: 115.1 | D62: 119.7 | E62: 112.05 | F62: 117.3 | G62: 118.5 | H62: 111.25 | I62: 1332958 | J62: 153516502.3 | K62: 2018-07-04 | L62: 16052 | M62: INE418H01029
A63: ALLSEC | B63: EQ | C63: 278.7 | D63: 278.7 | E63: 265.25 | F63: 269.1 | G63: 269.7 | H63: 268.15 | I63: 5982 | J63: 1603355.85 | K63: 2018-07-04 | L63: 280 | M63: INE835G01018
A64: ALMONDZ | B64: BE | C64: 31.55 | D64: 32.2 | E64: 30.3 | F64: 31.05 | G64: 31.05 | H64: 31.8 | I64: 3826 | J64: 119430.8 | K64: 2018-07-04 | L64: 12 | M64: INE326B01027
A65: ALOKTEXT | B65: BE | C65: 4.45 | D65: 4.45 | E65: 4.45 | F65: 4.45 | G65: 4.45 | H65: 4.25 | I65: 816380 | J65: 3632891 | K65: 2018-07-04 | L65: 413 | M65: INE270A01011
A66: ALPA | B66: EQ | C66: 26 | D66: 27.6 | E66: 25.25 | F66: 26.15 | G66: 26.3 | H66: 25.9 | I66: 23531 | J66: 619445.6 | K66: 2018-07-04 | L66: 162 | M66: INE385I01010
A67: ALPHAGEO | B67: EQ | C67: 596.3 | D67: 608 | E67: 547.7 | F67: 562.85 | G67: 555 | H67: 595.5 | I67: 54632 | J67: 31571737.45 | K67: 2018-07-04 | L67: 1869 | M67: INE137C01018
A68: ALPSINDUS | B68: BE | C68: 1.95 | D68: 2 | E68: 1.95 | F68: 2 | G68: 2 | H68: 1.95 | I68: 4846 | J68: 9542 | K68: 2018-07-04 | L68: 9 | M68: INE093B01015
A69: AMARAJABAT | B69: EQ | C69: 760 | D69: 781.65 | E69: 756.05 | F69: 777 | G69: 776.95 | H69: 762.35 | I69: 446982 | J69: 346133241.9 | K69: 2018-07-04 | L69: 11675 | M69: INE885A01032
A70: AMBER | B70: EQ | C70: 997.05 | D70: 1062.9 | E70: 985.6 | F70: 1031.5 | G70: 1025.65 | H70: 1020.25 | I70: 109038 | J70: 112066392.8 | K70: 2018-07-04 | L70: 10149 | M70: INE371P01015
A71: AMBIKCO | B71: EQ | C71: 1280 | D71: 1300 | E71: 1266.35 | F71: 1297.9 | G71: 1300 | H71: 1286.3 | I71: 2121 | J71: 2745818.3 | K71: 2018-07-04 | L71: 268 | M71: INE540G01014
A72: AMBUJACEM | B72: EQ | C72: 201.4 | D72: 204.3 | E72: 199.7 | F72: 201 | G72: 200.9 | H72: 200.9 | I72: 2262034 | J72: 456475042.7 | K72: 2018-07-04 | L72: 12653 | M72: INE079A01024
A73: AMDIND | B73: EQ | C73: 22.5 | D73: 22.5 | E73: 21.2 | F73: 21.3 | G73: 21.2 | H73: 21.9 | I73: 2315 | J73: 50507.95 | K73: 2018-07-04 | L73: 16 | M73: INE005I01014
A74: AMJLAND | B74: EQ | C74: 27 | D74: 27.3 | E74: 25.3 | F74: 26.4 | G74: 26.3 | H74: 26.75 | I74: 193723 | J74: 5070532.45 | K74: 2018-07-04 | L74: 960 | M74: INE606A01024
A75: AMRUTANJAN | B75: EQ | C75: 273 | D75: 274.95 | E75: 269.5 | F75: 270.3 | G75: 270 | H75: 273.2 | I75: 10556 | J75: 2852659.65 | K75: 2018-07-04 | L75: 119 | M75: INE098F01031
A76: ANANTRAJ | B76: EQ | C76: 38.6 | D76: 38.6 | E76: 37.3 | F76: 38.05 | G76: 37.8 | H76: 38.3 | I76: 423264 | J76: 15959844.3 | K76: 2018-07-04 | L76: 2157 | M76: INE242C01024
A77: ANDHRABANK | B77: EQ | C77: 32.3 | D77: 32.35 | E77: 31.5 | F77: 31.95 | G77: 32.05 | H77: 32.2 | I77: 3138403 | J77: 99998165.8 | K77: 2018-07-04 | L77: 5255 | M77: INE434A01013
A78: ANDHRACEMT | B78: EQ | C78: 8.95 | D78: 9.05 | E78: 8.9 | F78: 8.9 | G78: 8.9 | H78: 8.95 | I78: 63910 | J78: 571089.75 | K78: 2018-07-04 | L78: 145 | M78: INE666E01012
A79: ANDHRSUGAR | B79: EQ | C79: 326.5 | D79: 340 | E79: 326.5 | F79: 332.05 | G79: 340 | H79: 332.3 | I79: 11330 | J79: 3759626.95 | K79: 2018-07-04 | L79: 485 | M79: INE715B01013
A80: ANGIND | B80: BE | C80: 3.05 | D80: 3.05 | E80: 3.05 | F80: 3.05 | G80: 3.05 | H80: 3.2 | I80: 621 | J80: 1894.05 | K80: 2018-07-04 | L80: 6 | M80: INE017D01010
A81: ANIKINDS | B81: BE | C81: 30.5 | D81: 30.5 | E81: 28.05 | F81: 28.45 | G81: 28.3 | H81: 29.1 | I81: 3288 | J81: 93574.05 | K81: 2018-07-04 | L81: 37 | M81: INE087B01017
A82: ANKITMETAL | B82: BE | C82: 1 | D82: 1 | E82: 1 | F82: 1 | G82: 1 | H82: 1 | I82: 852 | J82: 852 | K82: 2018-07-04 | L82: 6 | M82: INE106I01010
A83: ANSALAPI | B83: EQ | C83: 17 | D83: 17.05 | E83: 16.7 | F83: 16.85 | G83: 16.7 | H83: 17 | I83: 54244 | J83: 920206.8 | K83: 2018-07-04 | L83: 140 | M83: INE436A01026
A84: ANSALHSG | B84: EQ | C84: 14.9 | D84: 14.95 | E84: 14.5 | F84: 14.8 | G84: 14.9 | H84: 15 | I84: 9797 | J84: 144495.8 | K84: 2018-07-04 | L84: 90 | M84: INE880B01015
A85: ANTGRAPHIC | B85: BE | C85: 0.6 | D85: 0.6 | E85: 0.55 | F85: 0.55 | G85: 0.55 | H85: 0.6 | I85: 23373 | J85: 13021.3 | K85: 2018-07-04 | L85: 16 | M85: INE414B01021
A86: APARINDS | B86: EQ | C86: 659.3 | D86: 665.55 | E86: 652.5 | F86: 659.95 | G86: 659.3 | H86: 659.2 | I86: 1007 | J86: 665281.35 | K86: 2018-07-04 | L86: 184 | M86: INE372A01015
A87: APCL | B87: EQ | C87: 155.8 | D87: 156 | E87: 144.25 | F87: 150.3 | G87: 153.3 | H87: 150.3 | I87: 2433 | J87: 366807.4 | K87: 2018-07-04 | L87: 150 | M87: INE071F01012
A88: APCOTEXIND | B88: EQ | C88: 508 | D88: 508.25 | E88: 492 | F88: 500.4 | G88: 498.05 | H88: 508.85 | I88: 9997 | J88: 5000694.7 | K88: 2018-07-04 | L88: 507 | M88: INE116A01024
A89: APEX | B89: EQ | C89: 383.05 | D89: 400.2 | E89: 370.55 | F89: 398.4 | G89: 395 | H89: 381.15 | I89: 234053 | J89: 91406661.45 | K89: 2018-07-04 | L89: 5180 | M89: INE346W01013
A90: APLAPOLLO | B90: EQ | C90: 1610 | D90: 1665.9 | E90: 1585.15 | F90: 1653.65 | G90: 1660 | H90: 1600.4 | I90: 25076 | J90: 40958943.75 | K90: 2018-07-04 | L90: 3464 | M90: INE702C01019
A91: APLLTD | B91: EQ | C91: 536.55 | D91: 554 | E91: 533.45 | F91: 539.35 | G91: 537.5 | H91: 532.3 | I91: 216087 | J91: 118083883.8 | K91: 2018-07-04 | L91: 6145 | M91: INE901L01018
A92: APOLLO | B92: EQ | C92: 147.05 | D92: 150.95 | E92: 147.05 | F92: 149.85 | G92: 150 | H92: 149.55 | I92: 58227 | J92: 8727524.75 | K92: 2018-07-04 | L92: 834 | M92: INE713T01010
A93: APOLLOHOSP | B93: EQ | C93: 1053.15 | D93: 1085 | E93: 1053 | F93: 1081.9 | G93: 1080.5 | H93: 1063.8 | I93: 449504 | J93: 483098934.3 | K93: 2018-07-04 | L93: 13376 | M93: INE437A01024
A94: APOLLOTYRE | B94: EQ | C94: 251.9 | D94: 254.15 | E94: 246.65 | F94: 253.3 | G94: 253.35 | H94: 251.65 | I94: 2113615 | J94: 528675211.6 | K94: 2018-07-04 | L94: 20757 | M94: INE438A01022
A95: APOLSINHOT | B95: EQ | C95: 1355.05 | D95: 1434.55 | E95: 1350 | F95: 1386.45 | G95: 1398 | H95: 1391.55 | I95: 2471 | J95: 3452018.35 | K95: 2018-07-04 | L95: 271 | M95: INE451F01016
A96: APTECHT | B96: EQ | C96: 241.2 | D96: 250.75 | E96: 241.2 | F96: 244.3 | G96: 244.8 | H96: 243.1 | I96: 245729 | J96: 60412818.7 | K96: 2018-07-04 | L96: 4931 | M96: INE266F01018
A97: ARCHIDPLY | B97: EQ | C97: 60.95 | D97: 63.4 | E97: 59.1 | F97: 61.7 | G97: 61.5 | H97: 60.45 | I97: 20594 | J97: 1263246.45 | K97: 2018-07-04 | L97: 493 | M97: INE877I01016
A98: ARCHIES | B98: BE | C98: 28.5 | D98: 28.5 | E98: 27.35 | F98: 27.6 | G98: 27.5 | H98: 27.7 | I98: 8887 | J98: 247845.7 | K98: 2018-07-04 | L98: 88 | M98: INE731A01020
A99: ARCOTECH | B99: EQ | C99: 14 | D99: 14.65 | E99: 13.8 | F99: 13.95 | G99: 13.9 | H99: 14.35 | I99: 126965 | J99: 1777927.6 | K99: 2018-07-04 | L99: 566 | M99: INE574I01035
A100: ARIES | B100: EQ | C100: 123.6 | D100: 123.6 | E100: 118 | F100: 119.45 | G100: 119.1 | H100: 122.75 | I100: 18316 | J100: 2197539.1 | K100: 2018-07-04 | L100: 445 | M100: INE298I01015
A101: ARIHANT | B101: EQ | C101: 36 | D101: 36 | E101: 36 | F101: 36 | G101: 36 | H101: 36.05 | I101: 38 | J101: 1368 | K101: 2018-07-04 | L101: 3 | M101: INE413D01011
A102: ARIHANTSUP | B102: EQ | C102: 70.2 | D102: 71.45 | E102: 64.5 | F102: 67.45 | G102: 68.15 | H102: 69.05 | I102: 81503 | J102: 5452923 | K102: 2018-07-04 | L102: 1303 | M102: INE643K01018
A103: ARMANFIN | B103: BE | C103: 320 | D103: 350.7 | E103: 320 | F103: 340.35 | G103: 350.7 | H103: 334.05 | I103: 2189 | J103: 743181.75 | K103: 2018-07-04 | L103: 23 | M103: INE109C01017
A104: AROGRANITE | B104: EQ | C104: 57.85 | D104: 58.05 | E104: 54.9 | F104: 55.5 | G104: 55.25 | H104: 57 | I104: 13137 | J104: 740564.3 | K104: 2018-07-04 | L104: 200 | M104: INE210C01013
A105: ARROWGREEN | B105: EQ | C105: 84.8 | D105: 84.8 | E105: 84.8 | F105: 84.8 | G105: 84.8 | H105: 89.25 | I105: 1530 | J105: 129744 | K105: 2018-07-04 | L105: 54 | M105: INE570D01018
A106: ARROWTEX | B106: EQ | C106: 31.7 | D106: 31.7 | E106: 30.55 | F106: 30.95 | G106: 31 | H106: 31.3 | I106: 3792 | J106: 117143.15 | K106: 2018-07-04 | L106: 59 | M106: INE933J01015
A107: ARSHIYA | B107: EQ | C107: 58 | D107: 60.7 | E107: 56.7 | F107: 59.45 | G107: 60 | H107: 59.15 | I107: 61548 | J107: 3600667.5 | K107: 2018-07-04 | L107: 816 | M107: INE968D01022
A108: ARSSINFRA | B108: BE | C108: 25.6 | D108: 27.9 | E108: 25.45 | F108: 25.5 | G108: 25.5 | H108: 26.75 | I108: 14308 | J108: 369219.4 | K108: 2018-07-04 | L108: 103 | M108: INE267I01010
A109: ARVIND | B109: EQ | C109: 390 | D109: 397.7 | E109: 388.35 | F109: 396.75 | G109: 396.3 | H109: 390.5 | I109: 720410 | J109: 283128224.9 | K109: 2018-07-04 | L109: 10952 | M109: INE034A01011
A110: ARVSMART | B110: EQ | C110: 157 | D110: 161 | E110: 154.7 | F110: 159.85 | G110: 159.6 | H110: 158.3 | I110: 8296 | J110: 1305134.95 | K110: 2018-07-04 | L110: 341 | M110: INE034S01021
A111: ASAHIINDIA | B111: EQ | C111: 329.85 | D111: 347 | E111: 329.85 | F111: 342.45 | G111: 342.8 | H111: 330.1 | I111: 33766 | J111: 11418686.7 | K111: 2018-07-04 | L111: 749 | M111: INE439A01020
A112: ASAHISONG | B112: EQ | C112: 248 | D112: 262 | E112: 247 | F112: 258.55 | G112: 255 | H112: 247.95 | I112: 3642 | J112: 932487.3 | K112: 2018-07-04 | L112: 192 | M112: INE228I01012
A113: ASAL | B113: EQ | C113: 61.7 | D113: 67.65 | E113: 58 | F113: 58.95 | G113: 58.85 | H113: 56.4 | I113: 712058 | J113: 46070368.3 | K113: 2018-07-04 | L113: 7179 | M113: INE900C01027
A114: ASHAPURMIN | B114: EQ | C114: 43.2 | D114: 44.7 | E114: 42.65 | F114: 43.9 | G114: 44.25 | H114: 42.75 | I114: 65570 | J114: 2859216.3 | K114: 2018-07-04 | L114: 468 | M114: INE348A01023
A115: ASHIANA | B115: EQ | C115: 135.55 | D115: 135.55 | E115: 133.15 | F115: 133.95 | G115: 134 | H115: 135.15 | I115: 8320 | J115: 1118080.85 | K115: 2018-07-04 | L115: 217 | M115: INE365D01021
A116: ASHIMASYN | B116: EQ | C116: 19.85 | D116: 20.35 | E116: 19.05 | F116: 19.35 | G116: 19.45 | H116: 19.95 | I116: 70772 | J116: 1379781.9 | K116: 2018-07-04 | L116: 251 | M116: INE440A01010
A117: ASHOKA | B117: EQ | C117: 233.5 | D117: 238.5 | E117: 226.45 | F117: 228 | G117: 228.25 | H117: 231.6 | I117: 146582 | J117: 34040035.7 | K117: 2018-07-04 | L117: 4041 | M117: INE442H01029
A118: ASHOKLEY | B118: EQ | C118: 129.3 | D118: 129.5 | E118: 126.55 | F118: 127.85 | G118: 127.9 | H118: 129.5 | I118: 16028413 | J118: 2048049738 | K118: 2018-07-04 | L118: 135571 | M118: INE208A01029
A119: ASIANHOTNR | B119: EQ | C119: 240.5 | D119: 250 | E119: 240.1 | F119: 248.35 | G119: 250 | H119: 240.05 | I119: 241 | J119: 57982.3 | K119: 2018-07-04 | L119: 11 | M119: INE363A01022
A120: ASIANPAINT | B120: EQ | C120: 1296 | D120: 1299.95 | E120: 1282.75 | F120: 1289.8 | G120: 1289 | H120: 1291.85 | I120: 619316 | J120: 800070029.1 | K120: 2018-07-04 | L120: 28639 | M120: INE021A01026
A121: ASIANTILES | B121: EQ | C121: 289.85 | D121: 289.85 | E121: 277.15 | F121: 285.15 | G121: 284.5 | H121: 285.65 | I121: 76780 | J121: 21783008.15 | K121: 2018-07-04 | L121: 3320 | M121: INE022I01019
A122: ASPINWALL | B122: EQ | C122: 273 | D122: 284.95 | E122: 266.6 | F122: 268.3 | G122: 267.75 | H122: 273.3 | I122: 378 | J122: 102636.4 | K122: 2018-07-04 | L122: 14 | M122: INE991I01015
A123: ASSAMCO | B123: EQ | C123: 2.75 | D123: 2.95 | E123: 2.7 | F123: 2.8 | G123: 2.8 | H123: 2.75 | I123: 316649 | J123: 896654.5 | K123: 2018-07-04 | L123: 237 | M123: INE442A01024
A124: ASTEC | B124: EQ | C124: 643 | D124: 654 | E124: 626 | F124: 630.7 | G124: 630 | H124: 641.15 | I124: 23216 | J124: 14850895.45 | K124: 2018-07-04 | L124: 1801 | M124: INE563J01010
A125: ASTERDM | B125: EQ | C125: 168.4 | D125: 170.5 | E125: 166.1 | F125: 169.85 | G125: 170.5 | H125: 168.5 | I125: 29479 | J125: 4978630.25 | K125: 2018-07-04 | L125: 1153 | M125: INE914M01019
A126: ASTRAL | B126: EQ | C126: 989 | D126: 995 | E126: 975.85 | F126: 980.75 | G126: 977 | H126: 980.7 | I126: 259242 | J126: 255672089.4 | K126: 2018-07-04 | L126: 2720 | M126: INE006I01046
A127: ASTRAMICRO | B127: EQ | C127: 102.4 | D127: 104.35 | E127: 101.5 | F127: 103.25 | G127: 102.4 | H127: 101.9 | I127: 371332 | J127: 38154287.5 | K127: 2018-07-04 | L127: 4226 | M127: INE386C01029
A128: ASTRAZEN | B128: EQ | C128: 1444.95 | D128: 1465 | E128: 1411.1 | F128: 1422.5 | G128: 1422 | H128: 1444.35 | I128: 23632 | J128: 34026844.7 | K128: 2018-07-04 | L128: 2186 | M128: INE203A01020
A129: ASTRON | B129: EQ | C129: 106.55 | D129: 112.3 | E129: 106.5 | F129: 111.05 | G129: 112 | H129: 106.5 | I129: 227940 | J129: 25094743.4 | K129: 2018-07-04 | L129: 2544 | M129: INE646X01014
A130: ATFL | B130: EQ | C130: 661.15 | D130: 674.35 | E130: 655 | F130: 664.65 | G130: 660.3 | H130: 659.3 | I130: 5157 | J130: 3423410.25 | K130: 2018-07-04 | L130: 396 | M130: INE209A01019
A131: ATLANTA | B131: EQ | C131: 41.25 | D131: 41.25 | E131: 40 | F131: 40.4 | G131: 40.25 | H131: 41.4 | I131: 52379 | J131: 2129221.55 | K131: 2018-07-04 | L131: 695 | M131: INE285H01022
A132: ATLASCYCLE | B132: BE | C132: 125.1 | D132: 127 | E132: 123 | F132: 124.95 | G132: 125 | H132: 124.9 | I132: 1557 | J132: 192989.55 | K132: 2018-07-04 | L132: 28 | M132: INE446A01025
A133: ATUL | B133: EQ | C133: 2715 | D133: 2719 | E133: 2665.1 | F133: 2683.85 | G133: 2669.85 | H133: 2694.4 | I133: 4507 | J133: 12149775.55 | K133: 2018-07-04 | L133: 505 | M133: INE100A01010
A134: ATULAUTO | B134: EQ | C134: 391 | D134: 396.8 | E134: 386.55 | F134: 396.45 | G134: 392.9 | H134: 390.9 | I134: 6039 | J134: 2377434.65 | K134: 2018-07-04 | L134: 229 | M134: INE951D01028
A135: AUBANK | B135: EQ | C135: 674.6 | D135: 693.1 | E135: 664 | F135: 680.2 | G135: 678.95 | H135: 670.6 | I135: 76880 | J135: 52241105.45 | K135: 2018-07-04 | L135: 4769 | M135: INE949L01017
A136: AURIONPRO | B136: EQ | C136: 196 | D136: 202.85 | E136: 196 | F136: 199.95 | G136: 199.15 | H136: 200 | I136: 13539 | J136: 2700683.15 | K136: 2018-07-04 | L136: 541 | M136: INE132H01018
A137: AUROPHARMA | B137: EQ | C137: 629 | D137: 633.4 | E137: 620.3 | F137: 625.45 | G137: 626.1 | H137: 626.8 | I137: 2634480 | J137: 1652835068 | K137: 2018-07-04 | L137: 50859 | M137: INE406A01037
A138: AUSOMENT | B138: EQ | C138: 68 | D138: 69.25 | E138: 66.3 | F138: 67.6 | G138: 67.6 | H138: 67.75 | I138: 2052 | J138: 138674.9 | K138: 2018-07-04 | L138: 99 | M138: INE218C01016
A139: AUTOAXLES | B139: EQ | C139: 1173.05 | D139: 1185 | E139: 1161 | F139: 1174.05 | G139: 1172 | H139: 1176.9 | I139: 6305 | J139: 7413217.8 | K139: 2018-07-04 | L139: 678 | M139: INE449A01011
A140: AUTOIND | B140: EQ | C140: 65 | D140: 65.5 | E140: 62.7 | F140: 63.55 | G140: 63.15 | H140: 64.6 | I140: 11060 | J140: 708245.65 | K140: 2018-07-04 | L140: 454 | M140: INE718H01014
A141: AUTOLITIND | B141: EQ | C141: 57.1 | D141: 57.9 | E141: 55.35 | F141: 56.65 | G141: 56.55 | H141: 57.05 | I141: 2807 | J141: 159213.4 | K141: 2018-07-04 | L141: 56 | M141: INE448A01013
A142: AVADHSUGAR | B142: EQ | C142: 323.6 | D142: 333.8 | E142: 320.05 | F142: 323.3 | G142: 322.7 | H142: 323.7 | I142: 10102 | J142: 3306253.9 | K142: 2018-07-04 | L142: 485 | M142: INE349W01017
A143: AVANTIFEED | B143: EQ | C143: 480 | D143: 514 | E143: 470 | F143: 509 | G143: 506.7 | H143: 483.05 | I143: 2371506 | J143: 1181854200 | K143: 2018-07-04 | L143: 84643 | M143: INE871C01038
A144: AVTNPL | B144: EQ | C144: 33.9 | D144: 33.9 | E144: 32.55 | F144: 33 | G144: 32.75 | H144: 33.7 | I144: 47701 | J144: 1586271.8 | K144: 2018-07-04 | L144: 427 | M144: INE488D01021
A145: AXISBANK | B145: EQ | C145: 511.95 | D145: 516.25 | E145: 507.65 | F145: 514.75 | G145: 515.05 | H145: 511.55 | I145: 3893493 | J145: 1994243263 | K145: 2018-07-04 | L145: 42527 | M145: INE238A01034
A146: AXISCADES | B146: EQ | C146: 105.5 | D146: 117.7 | E146: 103.1 | F146: 115.65 | G146: 116 | H146: 105.5 | I146: 511781 | J146: 57035168.25 | K146: 2018-07-04 | L146: 9059 | M146: INE555B01013
A147: AXISGOLD | B147: EQ | C147: 2710.05 | D147: 2718 | E147: 2700 | F147: 2700.7 | G147: 2700 | H147: 2680 | I147: 15 | J147: 40593.05 | K147: 2018-07-04 | L147: 13 | M147: INF846K01347
A148: AXISNIFTY | B148: EQ | C148: 1080 | D148: 1085 | E148: 1080 | F148: 1085 | G148: 1085 | H148: 1073.93 | I148: 17 | J148: 18412 | K148: 2018-07-04 | L148: 3 | M148: INF846K01ZL0
A149: AYMSYNTEX | B149: EQ | C149: 46.3 | D149: 48.7 | E149: 46.1 | F149: 47.65 | G149: 47.9 | H149: 48.05 | I149: 32238 | J149: 1533021.8 | K149: 2018-07-04 | L149: 225 | M149: INE193B01039
A150: BAFNAPHARM | B150: EQ | C150: 22.45 | D150: 22.6 | E150: 21.95 | F150: 22.35 | G150: 22.6 | H150: 22.15 | I150: 12952 | J150: 287958.9 | K150: 2018-07-04 | L150: 100 | M150: INE878I01014
A151: BAGFILMS | B151: EQ | C151: 4.25 | D151: 4.4 | E151: 4.25 | F151: 4.3 | G151: 4.3 | H151: 4.3 | I151: 49311 | J151: 212512.45 | K151: 2018-07-04 | L151: 85 | M151: INE116D01028
A152: BAJAJ-AUTO | B152: EQ | C152: 2869.95 | D152: 2989 | E152: 2855.8 | F152: 2979.05 | G152: 2988.8 | H152: 2862.4 | I152: 845034 | J152: 2482223644 | K152: 2018-07-04 | L152: 36881 | M152: INE917I01010
A153: BAJAJCORP | B153: EQ | C153: 404.8 | D153: 420 | E153: 401.3 | F153: 408.75 | G153: 407.5 | H153: 401.65 | I153: 27839 | J153: 11419511.8 | K153: 2018-07-04 | L153: 2102 | M153: INE933K01021
A154: BAJAJELEC | B154: EQ | C154: 525.9 | D154: 535.5 | E154: 519.5 | F154: 522.05 | G154: 521.75 | H154: 525.65 | I154: 314949 | J154: 166348841.5 | K154: 2018-07-04 | L154: 10290 | M154: INE193E01025
A155: BAJAJFINSV | B155: EQ | C155: 5897 | D155: 6049 | E155: 5877.9 | F155: 6032.85 | G155: 6035 | H155: 5885.2 | I155: 192202 | J155: 1149524317 | K155: 2018-07-04 | L155: 18755 | M155: INE918I01018
A156: BAJAJHIND | B156: EQ | C156: 6.5 | D156: 6.55 | E156: 6.35 | F156: 6.5 | G156: 6.5 | H156: 6.5 | I156: 1221065 | J156: 7899560.55 | K156: 2018-07-04 | L156: 1348 | M156: INE306A01021
A157: BAJAJHLDNG | B157: EQ | C157: 2914.15 | D157: 2980 | E157: 2885.55 | F157: 2959.5 | G157: 2940 | H157: 2895.9 | I157: 16920 | J157: 49647517.15 | K157: 2018-07-04 | L157: 2956 | M157: INE118A01012
A158: BAJFINANCE | B158: EQ | C158: 2333 | D158: 2345 | E158: 2306.55 | F158: 2331.4 | G158: 2326.3 | H158: 2321.1 | I158: 916379 | J158: 2134896393 | K158: 2018-07-04 | L158: 33159 | M158: INE296A01024
A159: BALAJITELE | B159: EQ | C159: 115.25 | D159: 117.55 | E159: 115.1 | F159: 116.05 | G159: 116.2 | H159: 118.15 | I159: 43889 | J159: 5088302.95 | K159: 2018-07-04 | L159: 508 | M159: INE794B01026
A160: BALAMINES | B160: EQ | C160: 538.85 | D160: 550.85 | E160: 532.5 | F160: 535.75 | G160: 535 | H160: 538.85 | I160: 10753 | J160: 5762377.8 | K160: 2018-07-04 | L160: 487 | M160: INE050E01027
A161: BALKRISHNA | B161: EQ | C161: 68.1 | D161: 69.6 | E161: 68.1 | F161: 68.45 | G161: 68.3 | H161: 69.45 | I161: 1563 | J161: 107545.85 | K161: 2018-07-04 | L161: 91 | M161: INE875R01011
A162: BALKRISIND | B162: EQ | C162: 1082.6 | D162: 1147 | E162: 1075.9 | F162: 1138.6 | G162: 1140.8 | H162: 1082.55 | I162: 851693 | J162: 948076998.2 | K162: 2018-07-04 | L162: 15852 | M162: INE787D01026
A163: BALLARPUR | B163: EQ | C163: 10.2 | D163: 10.4 | E163: 10.05 | F163: 10.1 | G163: 10.15 | H163: 10.15 | I163: 574375 | J163: 5872393.75 | K163: 2018-07-04 | L163: 1251 | M163: INE294A01037
A164: BALMLAWRIE | B164: EQ | C164: 210.9 | D164: 211.4 | E164: 207.65 | F164: 208.65 | G164: 208.3 | H164: 211.85 | I164: 54016 | J164: 11288304.7 | K164: 2018-07-04 | L164: 1412 | M164: INE164A01016
A165: BALPHARMA | B165: EQ | C165: 78.15 | D165: 79.85 | E165: 78 | F165: 78.95 | G165: 78.3 | H165: 77.6 | I165: 11628 | J165: 917134.45 | K165: 2018-07-04 | L165: 187 | M165: INE083D01012
A166: BALRAMCHIN | B166: EQ | C166: 62.5 | D166: 63.35 | E166: 62 | F166: 62.6 | G166: 62.5 | H166: 62.6 | I166: 4209570 | J166: 262792225 | K166: 2018-07-04 | L166: 7872 | M166: INE119A01028
A167: BANARBEADS | B167: EQ | C167: 41.5 | D167: 43.85 | E167: 40.3 | F167: 40.6 | G167: 40.3 | H167: 41.5 | I167: 3016 | J167: 123233.65 | K167: 2018-07-04 | L167: 39 | M167: INE655B01011
A168: BANARISUG | B168: EQ | C168: 1452.65 | D168: 1457.8 | E168: 1449.9 | F168: 1450 | G168: 1450 | H168: 1475.05 | I168: 1393 | J168: 2020047.05 | K168: 2018-07-04 | L168: 46 | M168: INE459A01010
A169: BANCOINDIA | B169: EQ | C169: 202.15 | D169: 205.3 | E169: 200.05 | F169: 203.95 | G169: 204.9 | H169: 201.65 | I169: 21023 | J169: 4273537.2 | K169: 2018-07-04 | L169: 646 | M169: INE213C01025
A170: BANDHANBNK | B170: EQ | C170: 552.8 | D170: 558.7 | E170: 545.05 | F170: 548.45 | G170: 548 | H170: 559.25 | I170: 367351 | J170: 202452519.7 | K170: 2018-07-04 | L170: 13262 | M170: INE545U01014
A171: BANG | B171: EQ | C171: 53.6 | D171: 57.95 | E171: 52.35 | F171: 55.8 | G171: 57 | H171: 53.05 | I171: 144240 | J171: 8020244.45 | K171: 2018-07-04 | L171: 1102 | M171: INE863I01016
A172: BANKBARODA | B172: EQ | C172: 113 | D172: 113.8 | E172: 112.25 | F172: 113.1 | G172: 113.25 | H172: 113 | I172: 8861062 | J172: 1000876697 | K172: 2018-07-04 | L172: 32142 | M172: INE028A01039
A173: BANKBEES | B173: EQ | C173: 2660.6 | D173: 2693.2 | E173: 2653.16 | F173: 2691.24 | G173: 2692.98 | H173: 2662.82 | I173: 49212 | J173: 131895981.1 | K173: 2018-07-04 | L173: 310 | M173: INF732E01078
A174: BANKINDIA | B174: EQ | C174: 87 | D174: 87.5 | E174: 85 | F174: 85.9 | G174: 85.85 | H174: 86.95 | I174: 4868538 | J174: 418909098.3 | K174: 2018-07-04 | L174: 15795 | M174: INE084A01016
A175: BANSWRAS | B175: EQ | C175: 87.55 | D175: 88.95 | E175: 85.75 | F175: 86 | G175: 86 | H175: 87.75 | I175: 2460 | J175: 211795 | K175: 2018-07-04 | L175: 58 | M175: INE629D01012
A176: BARTRONICS | B176: BE | C176: 10 | D176: 10 | E176: 9.5 | F176: 9.75 | G176: 9.8 | H176: 9.8 | I176: 27543 | J176: 266057 | K176: 2018-07-04 | L176: 91 | M176: INE855F01034
A177: BASF | B177: EQ | C177: 1891.95 | D177: 1960 | E177: 1891.95 | F177: 1942.75 | G177: 1957 | H177: 1892 | I177: 19085 | J177: 37031667.4 | K177: 2018-07-04 | L177: 1084 | M177: INE373A01013
A178: BASML | B178: EQ | C178: 211.9 | D178: 211.9 | E178: 207 | F178: 209.7 | G178: 209.95 | H178: 204.75 | I178: 119 | J178: 24978.85 | K178: 2018-07-04 | L178: 10 | M178: INE186H01014
A179: BATAINDIA | B179: EQ | C179: 836.95 | D179: 846.8 | E179: 826.2 | F179: 828.7 | G179: 830.65 | H179: 835.85 | I179: 1060828 | J179: 886931963.1 | K179: 2018-07-04 | L179: 30236 | M179: INE176A01028
A180: BAYERCROP | B180: EQ | C180: 4552.05 | D180: 4585 | E180: 4505.45 | F180: 4561.9 | G180: 4562 | H180: 4537.4 | I180: 3165 | J180: 14412168.25 | K180: 2018-07-04 | L180: 1482 | M180: INE462A01022
A181: BBL | B181: EQ | C181: 1216.4 | D181: 1217.1 | E181: 1193.7 | F181: 1206.6 | G181: 1214 | H181: 1210.15 | I181: 8747 | J181: 10541318.25 | K181: 2018-07-04 | L181: 472 | M181: INE464A01028
A182: BBTC | B182: EQ | C182: 1437.95 | D182: 1456.95 | E182: 1412.25 | F182: 1437.1 | G182: 1433.9 | H182: 1425.15 | I182: 110263 | J182: 158837543.4 | K182: 2018-07-04 | L182: 4978 | M182: INE050A01025
A183: BDL | B183: EQ | C183: 375 | D183: 379.6 | E183: 372.2 | F183: 376.35 | G183: 378 | H183: 377.7 | I183: 10830 | J183: 4057074.8 | K183: 2018-07-04 | L183: 577 | M183: INE171Z01018
A184: BEARDSELL | B184: EQ | C184: 36.6 | D184: 37.5 | E184: 36.4 | F184: 36.8 | G184: 36.55 | H184: 37.55 | I184: 359 | J184: 13199.7 | K184: 2018-07-04 | L184: 25 | M184: INE520H01022
A185: BEDMUTHA | B185: BE | C185: 18.85 | D185: 18.85 | E185: 17.7 | F185: 17.8 | G185: 17.8 | H185: 18 | I185: 6895 | J185: 122835.25 | K185: 2018-07-04 | L185: 13 | M185: INE844K01012
A186: BEL | B186: EQ | C186: 106.85 | D186: 107.25 | E186: 103.85 | F186: 104.35 | G186: 104.5 | H186: 107.45 | I186: 4352715 | J186: 456675290.9 | K186: 2018-07-04 | L186: 29544 | M186: INE263A01024
A187: BEML | B187: EQ | C187: 818 | D187: 833.9 | E187: 810 | F187: 825.9 | G187: 823.3 | H187: 819.15 | I187: 764319 | J187: 629303419.4 | K187: 2018-07-04 | L187: 21592 | M187: INE258A01016
A188: BEPL | B188: EQ | C188: 139.75 | D188: 147.35 | E188: 139 | F188: 147.35 | G188: 147.35 | H188: 140.35 | I188: 431125 | J188: 62243140.1 | K188: 2018-07-04 | L188: 3611 | M188: INE922A01025
A189: BERGEPAINT | B189: EQ | C189: 287 | D189: 288.75 | E189: 283.5 | F189: 286.15 | G189: 286 | H189: 286.15 | I189: 460699 | J189: 131941432.8 | K189: 2018-07-04 | L189: 5237 | M189: INE463A01038
A190: BFINVEST | B190: EQ | C190: 226 | D190: 233.5 | E190: 223.15 | F190: 232.3 | G190: 233.5 | H190: 225.75 | I190: 116651 | J190: 26731090.4 | K190: 2018-07-04 | L190: 3493 | M190: INE878K01010
A191: BFUTILITIE | B191: EQ | C191: 307.9 | D191: 317.9 | E191: 304.3 | F191: 310.25 | G191: 309 | H191: 307.65 | I191: 313815 | J191: 97463583.7 | K191: 2018-07-04 | L191: 7659 | M191: INE243D01012
A192: BGLOBAL | B192: BE | C192: 2.95 | D192: 3.05 | E192: 2.85 | F192: 2.85 | G192: 2.85 | H192: 2.95 | I192: 19490 | J192: 56068.6 | K192: 2018-07-04 | L192: 42 | M192: INE224M01013
A193: BGRENERGY | B193: EQ | C193: 92.2 | D193: 93.45 | E193: 91.25 | F193: 92 | G193: 91.7 | H193: 91.8 | I193: 124438 | J193: 11468598.75 | K193: 2018-07-04 | L193: 1309 | M193: INE661I01014
A194: BHAGERIA | B194: EQ | C194: 295 | D194: 301.65 | E194: 293 | F194: 293.9 | G194: 296.9 | H194: 295.7 | I194: 7745 | J194: 2289531.25 | K194: 2018-07-04 | L194: 309 | M194: INE354C01027
A195: BHAGYANGR | B195: EQ | C195: 41.45 | D195: 41.75 | E195: 40 | F195: 40.6 | G195: 40.5 | H195: 39.95 | I195: 51551 | J195: 2099449.75 | K195: 2018-07-04 | L195: 385 | M195: INE458B01036
A196: BHAGYAPROP | B196: BE | C196: 20.3 | D196: 21.3 | E196: 20.05 | F196: 20.25 | G196: 20.25 | H196: 20.3 | I196: 13117 | J196: 266139.85 | K196: 2018-07-04 | L196: 16 | M196: INE363W01018
A197: BHANDARI | B197: EQ | C197: 2.35 | D197: 2.45 | E197: 2.3 | F197: 2.3 | G197: 2.3 | H197: 2.35 | I197: 186328 | J197: 438441.25 | K197: 2018-07-04 | L197: 79 | M197: INE474E01029
A198: BHARATFIN | B198: EQ | C198: 1177 | D198: 1198.15 | E198: 1173 | F198: 1194.25 | G198: 1190.35 | H198: 1180.95 | I198: 353296 | J198: 417562401.6 | K198: 2018-07-04 | L198: 13957 | M198: INE180K01011
A199: BHARATFORG | B199: EQ | C199: 621.9 | D199: 638.8 | E199: 615.8 | F199: 636.75 | G199: 636.55 | H199: 620.4 | I199: 1102281 | J199: 691368672.3 | K199: 2018-07-04 | L199: 37634 | M199: INE465A01025
A200: BHARATGEAR | B200: EQ | C200: 150.05 | D200: 154.45 | E200: 148.5 | F200: 150.2 | G200: 148.5 | H200: 150.85 | I200: 9491 | J200: 1437393.45 | K200: 2018-07-04 | L200: 252 | M200: INE561C01019
... 1444 more rows

Sheet Sheet1 (hidden)

Sheet Sheet3 (hidden)
